{"text_format":"3","workbook":"xlsx","n_sheets":13,"sheets":["DSFA-Erfordernis","DSFA","Risikomatrix","Risikomatrix2","Risikoanalyse","Risiken","Risikobeispiele","Risikoquellen","Risikobewältigung","Maßnahmen","Ergebnis","Risikoberechnung","Ausfüllhilfen"],"not_rendered":{"external_links":2,"defined_names":28},"read":"whole","date_system":"1900"}

{"sheet":"DSFA-Erfordernis","index":0,"n_rows":37,"n_cols":4,"rows_kept":37}
["Verarbeitung Krankenhaus-Informations-System (KIS) „Complete Recovery“","Datum: 13.12.2019"]
[]
["Beurteilung Erforderlichkeit einer Datenschutz-Folgenabschätzung:",{"$f":"IF(SUM(D35:D37)>=1,\"DSFA nicht erforderlich\",IF(SUM(D6:D34)>=1,\"DSFA erforderlich\",\"DSFA nicht erforderlich\"))","v":"DSFA nicht erforderlich"}]
[]
["Frage / Prüfung","Ja/Nein","Ja=0,5","Ja=1"]
["Birgt die Verarbeitung der personenbezogenen Daten ein hohes Risiko für die Rechte und Freiheiten der Betroffenen?",null,null,{"$f":"IF(B6=\"Ja\",1,0)","v":0}]
["Insbesondere prüfen (mehr als 2 Kriterien legen Vermutung nahe, dass DSFA erforderlich ist):"]
["Einsatz neuer Verarbeitungstechnologien, d. h. Technologien, zu denen der Verantwortliche noch keine DSFA durchgeführt hat",null,{"$f":"IF(B8=\"Ja\",0.5,0)","v":0},{"$f":"SUM(C8:C12)","v":0}]
["Einsatz neuer Verarbeitungen, d. h. Verfahren der Verarbeitung personenbezogener Daten, zu denen der Verantwortliche noch keine DSFA durchgeführt hat",null,{"$f":"IF(B9=\"Ja\",0.5,0)","v":0}]
["Verarbeitung großer Datenmengen",null,0]
["Verarbeitung von Daten einer großen Anzahl betroffener Personen",null,0]
["Verarbeitungen, welche betroffenen Personen die Wahrnehmung ihrer aus der DS-GVO resultierenden Rechte erschweren",null,0]
["Soll mit der Verarbeitung  die Persönlichkeit des Betroffenen systematisch und automatisiert bewertet werden, sodass rechtliche oder andere intensive Eingriffe für den Betroffenen daraus resultieren bzw. resultieren können?",null,null,{"$f":"IF(B13=\"Ja\",1,0)","v":0}]
["Sollen umfangreiche Mengen von Daten, die zu den besonderen Kategorien gehören, verarbeitet werden?",null,null,{"$f":"IF(B14=\"Ja\",1,0)","v":0}]
["Sollen umfangreiche Mengen von Daten über strafrechtliche Verurteilungen und Straftaten verarbeitet werden?",null,null,{"$f":"IF(B15=\"Ja\",1,0)","v":0}]
["Sollen öffentlich zugängliche Räume überwacht werden?",null,null,{"$f":"IF(B16=\"Ja\",1,0)","v":0}]
["Befindet sich die Verarbeitung auf der vom EU Datenschutz-Ausschuss genehmigten Blacklist der nationalen Aufsichtsbehörde?"]
["Verarbeitung von biometrischen Daten zur eindeutigen Identifizierung natürlicher Personen, wenn mindestens ein weiteres folgendes Kriterium aus WP 248 Rev. 01 zutrifft:\n• Daten zu schutzbedürftigen Betroffenen\n• Systematische Überwachung\n• Innovative Nutzung oder Anwendung neuer technologischer oder organisatorischer Lösungen\n• Bewerten oder Einstufen (Scoring)\n• Abgleichen oder Zusammenführen von Datensätzen\n• Automatisierte Entscheidungsfin- dung mit Rechtswirkung oder ähn- lich bedeutsamer Wirkung\n• Betroffene werden an der Ausübung eines Rechts oder der Nutzung einer Dienstleistung bzw. Durchführung eines Vertrags gehindert",null,null,{"$f":"IF(B18=\"Ja\",1,0)","v":0}]
["Verarbeitung von genetischen Daten im Sinne von Artikel 4 Nr. 13 DSGVO, , wenn mindestens ein weiteres folgendes Kriterium aus WP 248 Rev. 01 zutrifft:\n• Daten zu schutzbedürftigen Betroffenen\n• Systematische Überwachung\n• Innovative Nutzung oder Anwendung neuer technologischer oder organisatorischer Lösungen\n• Bewerten oder Einstufen (Scoring)\n• Abgleichen oder Zusammenführen von Datensätzen\n• Automatisierte Entscheidungsfin- dung mit Rechtswirkung oder ähn- lich bedeutsamer Wirkung\n• Betroffene werden an der Ausübung eines Rechts oder der Nutzung einer Dienstleistung bzw. Durchführung eines Vertrags gehindert",null,null,0]
["Umfangreiche Verarbeitung von Daten,  die dem Sozial-, einem Berufs- oder besonderen Amtsgeheimnis unterliegen, auch wenn es sich nicht um Daten gemäß Art. 9 Abs. 1 und 10 DS- GVO handelt",null,null,0]
["Umfangreiche Verarbeitung von personenbezogenen Daten über den Aufenthalt von natürlichen Personen",null,null,0]
["Zusammenführung von personenbezogenen Daten aus verschiedenen Quellen und Verarbeitung der so zusammengeführten Daten, sofern\n• die Zusammenführung oder  Verarbeitung in großem Umfang vorgenommen werden,\n• für Zwecke erfolgen, für welche nicht alle der zu verarbeitenden Daten direkt bei den betroffenen Personen erhoben wurden,\n• die Anwendung von Algorithmen einschließen, die für die betroffenen Personen nicht nachvollziehbar sind, und\nder Erzeugung von Datengrundlagen dienen,  die dazu genutzt werden können, Entscheidungen zu treffen, die Rechtswirkung gegenüber den betroffenen Personen entfalten, oder  diese in ähnlich erheblicher Weise beeinträchtigen können",null,null,0]
["Mobile optisch-elektronische Erfassung personenbezogener Daten in öffentlichen Bereichen, sofern die Daten aus ein oder mehreren Erfassungssystemen in großem Umfang zentral zusammengeführt werden",null,null,0]
["Umfangreiche Erhebung und Veröffentlichung oder Übermittlung von personenbezogenen Daten, die zur Bewertung des Verhaltens und anderer persönlicher Aspekte von Personen dienen und von Dritten dazu genutzt werden können, Entscheidungen zu treffen, die Rechtswirkung gegenüber den bewerteten Personen entfalten, oder diese in ähnlich erheblicher Weise beeinträchtigen",null,null,0]
["Umfangreiche Verarbeitung von personenbezogenen Daten über das Verhalten von Beschäftigten, die zur Bewertung ihrer Arbeitstätigkeit derart eingesetzt werden können, dass sich Rechtsfolgen für die Betroffenen ergeben oder diese Betroffenen in anderer Weise erheblich beeinträchtigt werden",null,null,0]
["Erstellung umfassender Profile über die Interessen, das Netz persönlicher  Beziehungen oder die Persönlichkeit der Betroffenen",null,null,0]
["Zusammenführung von personenbezogenen Daten aus verschiedenen Quellen und der Verarbeitung der so zusammengeführten Daten, sofern\n• die Zusammenführung oder  Verarbeitung in großem Umfang vorgenommen werden,\n• für Zwecke erfolgen, für welche nicht alle der zu verarbeitenden Daten direkt bei den betroffenen Personen erhoben wurden,\n• die Anwendung von Algorithmen einschließen, die für die betroffenen Personen nicht nachvollziehbar sind, und\n• der Entdeckung vorher unbekannter Zusammenhänge zwischen den Daten für nicht im Vorhinein bestimmte Zwecke dienen",null,null,0]
["Einsatz von künstlicher Intelligenz zur Verarbeitung personenbezogener Daten zur Steuerung der Interaktion mit den Betroffenen oder zur Bewertung persönlicher Aspekte der betroffenen Person",null,null,0]
["Nicht bestimmungsgemäße Nutzung von Sensoren eines Mobilfunkgeräts im Besitz der betroffenen Personen oder von Funksignalen, die von solchen Geräten versandt werden, zur Bestimmung des Aufenthaltsorts oder der Bewegung von Personen über einen substantiellen Zeitraum",null,null,0]
["Automatisierte Auswertung von Video- oder Audio-Aufnahmen zur Bewertung der Persönlichkeit der Betroffenen",null,null,0]
["Erstellung umfassender Profile über die Bewegung und das Kaufverhalten von Betroffenen",null,null,0]
["Anonymisierung von besonderen personenbezogenen Daten nach Artikel 9 DS-GVO nicht nur in Einzelfällen (in Bezug auf die Zahl der betroffenen Personen und die Angaben je betroffener Person) zum Zweck der Übermittlung an Dritte",null,null,0]
["Verarbeitung von personenbezogenen Daten gemäß Art. 9 Abs. 1 und Art. 10 DS-GVO - auch wenn sie nicht als „umfangreich“ im Sinne des Art 35 Abs. 3 lit. b) anzusehen ist - sofern eine nicht einmalige Datenerhebung mittels der innovativen Nutzung von Sensoren oder mobilen Anwendungen stattfindet und diese Daten von einer zentralen Stelle empfangen und aufbereitet werden.",null,null,0]
["Verarbeitung von Daten gemäß Art. 9 Abs. 1 und Art. 10 DS-GVO -  auch wenn sie nicht als\n„umfangreich“ im Sinne des Art 35 Abs. 3 lit. b) anzusehen ist – sofern die Daten durch die Anbieter neuer Technologien dazu verwendet werden, die Leistungsfähigkeit der Personen zu bestimmen.",null,null,0]
["Ausnahmetatbestand: Liegt eine Datenschutz-Folgenabschätzung im Sinne des Art. 35 Abs. 10 DS-GVO vor und wurde seitens des für den Verantwortlichen geltenden Mitgliedsstaates keine darüber hinausgehende DSFA angeordnet?",null,null,0]
["Azsnahmetatbestand: Existiert eine DSFA für einen ähnlichen Verarbeitungsvorgang mit ähnlich hohem Risiko i.S.v. Art. 35 Abs. 1 Satz 2 DS-GVO?",null,null,0]
["Ausnahmetatbestand: Steht die Verarbeitung auf einer „White-List“ gemäß Art. 35 Abs. 5 DS-GVO?",null,null,0]

{"sheet":"DSFA","index":1,"n_rows":142,"n_cols":23,"rows_kept":142,"merged":[[1,0,1,5],[1,6,1,12],[1,13,1,19]]}
[null,null,"frei",null,"Liste","Liste","Liste","Liste","Formel","Formel","Formel","Liste","frei","Liste","Liste","Formel","Formel","Formel","Liste"]
["Verarbeitungstätigkeit: ",{"$nulls":5},"Riskoanalyse VOR Maßnahmenfestlegung",{"$nulls":6},"Riskoanalyse NACH Maßnahmenfestlegung",{"$nulls":6},"Ergebnis","Summe Bewertung"]
["lfd.\nNr.","Risiko-ursprung","Risiken","Risikobeispiele","Risiko-\nquellen\n","Risiko-\nverantwort-\nlicher","Schadens-höhe","Eintritts-wahrschein-lichkeit","Verkettung","ohne Formel","Risiko-\nbewertung","Risiko-\nbewäl-\ntigung","Maß-\nnahmen","Schadens-höhe","Eintritts-wahrschein-lichkeit","Verkettung","ohne Formel","Risiko-\nbewertung","Risiko-\nbewäl-\ntigung","Maß-\nnahmen",{"$f":"IF(V3>0,\"Weitere Maßnahmen erforderlich, bzw. Aufsichtsbehörde einschalten\",\"Verfahren kann durchgeführt werden\")","v":"Verfahren kann durchgeführt werden"},{"$f":"SUM(W:W)","v":0}]
[null,null,"nach Erwägungsgrund 83 DS-GVO",{"$nulls":3},"- Niedrig\n- Normal\n- Hoch\n- Sehr hoch","- Niedrig\n- Mittel\n- Hoch",null,null,"- Kein Risiko\n- Voraussichtlich kein Risiko\n- (Normales) Risiko\n- Erhebliches Risiko\n- Hohes Risiko\n- untragbares Risiko","Risiko-\n vermeidung,\n minimierung,\n handhabung,\n übertragung,",null,"- Niedrig\n- Normal\n- Hoch\n- Sehr hoch","- Niedrig\n- Mittel\n- Hoch",null,null,"- Kein Risiko\n- Voraussichtlich kein Risiko\n- (Normales) Risiko\n- Erhebliches Risiko\n- Hohes Risiko","Risiko-\n vermeidung,\n minimierung,\n handhabung,\n übertragung,"]
["Nr.",null,"Bitte Auswahl anklicken","Bitte Auswahl anklicken","Bitte Auswahl anklicken","Freitext","Bitte Auswahl \nanklicken","Bitte Auswahl anklicken",null,null,"Kennzeichnung folgt automatisch","Bitte Auswahl anklicken","Bitte Auswahl anklicken","Bitte Auswahl \nanklicken","Bitte Auswahl anklicken",null,null,"Kennzeichnung folgt automatisch","Bitte Auswahl anklicken","Bitte Auswahl anklicken","Bitte Auswahl anklicken","Zähler","Ergebnisbewertung"]
[{"$f":"ROW()-5","v":{"v":1,"d":"1."}},{"$nulls":7},{"$f":"CONCATENATE(G6,H6)","v":""},{"$f":"I6","v":""},{"$f":"IF(ISNA(VLOOKUP(J6,Risikoberechnung!$A$2:$B$13,2,FALSE)),\"x\",VLOOKUP(J6,Risikoberechnung!$A$2:$B$13,2,FALSE))","v":"x"},{"$nulls":4},{"$f":"CONCATENATE(N6,O6)","v":""},{"$f":"P6","v":""},{"$f":"IF(ISNA(VLOOKUP(Q6,Risikoberechnung!$A$2:$B$13,2,FALSE)),\"x\",VLOOKUP(Q6,Risikoberechnung!$A$2:$B$13,2,FALSE))","v":"x"},{"$nulls":3},1,{"$f":"IF(U6=Ergebnis!$C$4,0,(IF(U6=Ergebnis!$C$5,1,\"x\")))","v":"x"}]
[{"$f":"ROW()-5","v":{"v":2,"d":"2."}},{"$nulls":7},{"$f":"CONCATENATE(G7,H7)","v":""},"",{"$f":"IF(ISNA(VLOOKUP(J7,Risikoberechnung!$A$2:$B$13,2,FALSE)),\"x\",VLOOKUP(J7,Risikoberechnung!$A$2:$B$13,2,FALSE))","v":"x"},{"$nulls":4},{"$f":"CONCATENATE(N7,O7)","v":""},"",{"$f":"IF(ISNA(VLOOKUP(Q7,Risikoberechnung!$A$2:$B$13,2,FALSE)),\"x\",VLOOKUP(Q7,Risikoberechnung!$A$2:$B$13,2,FALSE))","v":"x"},{"$nulls":3},1,{"$f":"IF(U7=Ergebnis!$C$4,0,(IF(U7=Ergebnis!$C$5,1,\"x\")))","v":"x"}]
[{"v":3,"d":"3."},{"$nulls":7},"",{"$f":"I8","v":""},{"$f":"IF(ISNA(VLOOKUP(J8,Risikoberechnung!$A$2:$B$13,2,FALSE)),\"x\",VLOOKUP(J8,Risikoberechnung!$A$2:$B$13,2,FALSE))","v":"x"},{"$nulls":4},"","",{"$f":"IF(ISNA(VLOOKUP(Q8,Risikoberechnung!$A$2:$B$13,2,FALSE)),\"x\",VLOOKUP(Q8,Risikoberechnung!$A$2:$B$13,2,FALSE))","v":"x"},{"$nulls":3},1,{"$f":"IF(U8=Ergebnis!$C$4,0,(IF(U8=Ergebnis!$C$5,1,\"x\")))","v":"x"}]
[{"v":4,"d":"4."},{"$nulls":7},{"$f":"CONCATENATE(G9,H9)","v":""},{"$f":"I9","v":""},{"$f":"IF(ISNA(VLOOKUP(J9,Risikoberechnung!$A$2:$B$13,2,FALSE)),\"x\",VLOOKUP(J9,Risikoberechnung!$A$2:$B$13,2,FALSE))","v":"x"},{"$nulls":4},{"$f":"CONCATENATE(N9,O9)","v":""},{"$f":"P9","v":""},{"$f":"IF(ISNA(VLOOKUP(Q9,Risikoberechnung!$A$2:$B$13,2,FALSE)),\"x\",VLOOKUP(Q9,Risikoberechnung!$A$2:$B$13,2,FALSE))","v":"x"},{"$nulls":3},1,{"$f":"IF(U9=Ergebnis!$C$4,0,(IF(U9=Ergebnis!$C$5,1,\"x\")))","v":"x"}]
[{"v":5,"d":"5."},{"$nulls":7},"",{"$f":"I10","v":""},{"$f":"IF(ISNA(VLOOKUP(J10,Risikoberechnung!$A$2:$B$13,2,FALSE)),\"x\",VLOOKUP(J10,Risikoberechnung!$A$2:$B$13,2,FALSE))","v":"x"},{"$nulls":4},"","",{"$f":"IF(ISNA(VLOOKUP(Q10,Risikoberechnung!$A$2:$B$13,2,FALSE)),\"x\",VLOOKUP(Q10,Risikoberechnung!$A$2:$B$13,2,FALSE))","v":"x"},{"$nulls":3},1,{"$f":"IF(U10=Ergebnis!$C$4,0,(IF(U10=Ergebnis!$C$5,1,\"x\")))","v":"x"}]
[{"v":6,"d":"6."},{"$nulls":7},"",{"$f":"I11","v":""},{"$f":"IF(ISNA(VLOOKUP(J11,Risikoberechnung!$A$2:$B$13,2,FALSE)),\"x\",VLOOKUP(J11,Risikoberechnung!$A$2:$B$13,2,FALSE))","v":"x"},{"$nulls":4},"","",{"$f":"IF(ISNA(VLOOKUP(Q11,Risikoberechnung!$A$2:$B$13,2,FALSE)),\"x\",VLOOKUP(Q11,Risikoberechnung!$A$2:$B$13,2,FALSE))","v":"x"},{"$nulls":3},1,{"$f":"IF(U11=Ergebnis!$C$4,0,(IF(U11=Ergebnis!$C$5,1,\"x\")))","v":"x"}]
[{"v":7,"d":"7."},{"$nulls":7},"","",{"$f":"IF(ISNA(VLOOKUP(J12,Risikoberechnung!$A$2:$B$13,2,FALSE)),\"x\",VLOOKUP(J12,Risikoberechnung!$A$2:$B$13,2,FALSE))","v":"x"},{"$nulls":4},"","",{"$f":"IF(ISNA(VLOOKUP(Q12,Risikoberechnung!$A$2:$B$13,2,FALSE)),\"x\",VLOOKUP(Q12,Risikoberechnung!$A$2:$B$13,2,FALSE))","v":"x"},{"$nulls":3},1,{"$f":"IF(U12=Ergebnis!$C$4,0,(IF(U12=Ergebnis!$C$5,1,\"x\")))","v":"x"}]
[{"v":8,"d":"8."},{"$nulls":7},"","",{"$f":"IF(ISNA(VLOOKUP(J13,Risikoberechnung!$A$2:$B$13,2,FALSE)),\"x\",VLOOKUP(J13,Risikoberechnung!$A$2:$B$13,2,FALSE))","v":"x"},{"$nulls":4},"","",{"$f":"IF(ISNA(VLOOKUP(Q13,Risikoberechnung!$A$2:$B$13,2,FALSE)),\"x\",VLOOKUP(Q13,Risikoberechnung!$A$2:$B$13,2,FALSE))","v":"x"},{"$nulls":3},1,{"$f":"IF(U13=Ergebnis!$C$4,0,(IF(U13=Ergebnis!$C$5,1,\"x\")))","v":"x"}]
[{"v":9,"d":"9."},{"$nulls":7},"","",{"$f":"IF(ISNA(VLOOKUP(J14,Risikoberechnung!$A$2:$B$13,2,FALSE)),\"x\",VLOOKUP(J14,Risikoberechnung!$A$2:$B$13,2,FALSE))","v":"x"},{"$nulls":4},"","",{"$f":"IF(ISNA(VLOOKUP(Q14,Risikoberechnung!$A$2:$B$13,2,FALSE)),\"x\",VLOOKUP(Q14,Risikoberechnung!$A$2:$B$13,2,FALSE))","v":"x"},{"$nulls":3},1,{"$f":"IF(U14=Ergebnis!$C$4,0,(IF(U14=Ergebnis!$C$5,1,\"x\")))","v":"x"}]
[{"v":10,"d":"10."},{"$nulls":7},{"$f":"CONCATENATE(G15,H15)","v":""},"",{"$f":"IF(ISNA(VLOOKUP(J15,Risikoberechnung!$A$2:$B$13,2,FALSE)),\"x\",VLOOKUP(J15,Risikoberechnung!$A$2:$B$13,2,FALSE))","v":"x"},{"$nulls":4},"","",{"$f":"IF(ISNA(VLOOKUP(Q15,Risikoberechnung!$A$2:$B$13,2,FALSE)),\"x\",VLOOKUP(Q15,Risikoberechnung!$A$2:$B$13,2,FALSE))","v":"x"},{"$nulls":3},1,{"$f":"IF(U15=Ergebnis!$C$4,0,(IF(U15=Ergebnis!$C$5,1,\"x\")))","v":"x"}]
[{"v":11,"d":"11."},{"$nulls":7},{"$f":"CONCATENATE(G16,H16)","v":""},"",{"$f":"IF(ISNA(VLOOKUP(J16,Risikoberechnung!$A$2:$B$13,2,FALSE)),\"x\",VLOOKUP(J16,Risikoberechnung!$A$2:$B$13,2,FALSE))","v":"x"},{"$nulls":4},"","",{"$f":"IF(ISNA(VLOOKUP(Q16,Risikoberechnung!$A$2:$B$13,2,FALSE)),\"x\",VLOOKUP(Q16,Risikoberechnung!$A$2:$B$13,2,FALSE))","v":"x"},{"$nulls":3},1,{"$f":"IF(U16=Ergebnis!$C$4,0,(IF(U16=Ergebnis!$C$5,1,\"x\")))","v":"x"}]
[{"v":12,"d":"12."},{"$nulls":7},"","",{"$f":"IF(ISNA(VLOOKUP(J17,Risikoberechnung!$A$2:$B$13,2,FALSE)),\"x\",VLOOKUP(J17,Risikoberechnung!$A$2:$B$13,2,FALSE))","v":"x"},{"$nulls":4},"","",{"$f":"IF(ISNA(VLOOKUP(Q17,Risikoberechnung!$A$2:$B$13,2,FALSE)),\"x\",VLOOKUP(Q17,Risikoberechnung!$A$2:$B$13,2,FALSE))","v":"x"},{"$nulls":3},1,{"$f":"IF(U17=Ergebnis!$C$4,0,(IF(U17=Ergebnis!$C$5,1,\"x\")))","v":"x"}]
[{"v":13,"d":"13."},{"$nulls":7},"","",{"$f":"IF(ISNA(VLOOKUP(J18,Risikoberechnung!$A$2:$B$13,2,FALSE)),\"x\",VLOOKUP(J18,Risikoberechnung!$A$2:$B$13,2,FALSE))","v":"x"},{"$nulls":4},"","",{"$f":"IF(ISNA(VLOOKUP(Q18,Risikoberechnung!$A$2:$B$13,2,FALSE)),\"x\",VLOOKUP(Q18,Risikoberechnung!$A$2:$B$13,2,FALSE))","v":"x"},{"$nulls":3},1,{"$f":"IF(U18=Ergebnis!$C$4,0,(IF(U18=Ergebnis!$C$5,1,\"x\")))","v":"x"}]
[{"v":14,"d":"14."},{"$nulls":7},"","",{"$f":"IF(ISNA(VLOOKUP(J19,Risikoberechnung!$A$2:$B$13,2,FALSE)),\"x\",VLOOKUP(J19,Risikoberechnung!$A$2:$B$13,2,FALSE))","v":"x"},{"$nulls":4},"","",{"$f":"IF(ISNA(VLOOKUP(Q19,Risikoberechnung!$A$2:$B$13,2,FALSE)),\"x\",VLOOKUP(Q19,Risikoberechnung!$A$2:$B$13,2,FALSE))","v":"x"},{"$nulls":3},1,{"$f":"IF(U19=Ergebnis!$C$4,0,(IF(U19=Ergebnis!$C$5,1,\"x\")))","v":"x"}]
[{"v":15,"d":"15."},{"$nulls":7},"","",{"$f":"IF(ISNA(VLOOKUP(J20,Risikoberechnung!$A$2:$B$13,2,FALSE)),\"x\",VLOOKUP(J20,Risikoberechnung!$A$2:$B$13,2,FALSE))","v":"x"},{"$nulls":4},"","",{"$f":"IF(ISNA(VLOOKUP(Q20,Risikoberechnung!$A$2:$B$13,2,FALSE)),\"x\",VLOOKUP(Q20,Risikoberechnung!$A$2:$B$13,2,FALSE))","v":"x"},{"$nulls":3},1,{"$f":"IF(U20=Ergebnis!$C$4,0,(IF(U20=Ergebnis!$C$5,1,\"x\")))","v":"x"}]
[{"v":16,"d":"16."},{"$nulls":7},"","",{"$f":"IF(ISNA(VLOOKUP(J21,Risikoberechnung!$A$2:$B$13,2,FALSE)),\"x\",VLOOKUP(J21,Risikoberechnung!$A$2:$B$13,2,FALSE))","v":"x"},{"$nulls":4},"","",{"$f":"IF(ISNA(VLOOKUP(Q21,Risikoberechnung!$A$2:$B$13,2,FALSE)),\"x\",VLOOKUP(Q21,Risikoberechnung!$A$2:$B$13,2,FALSE))","v":"x"},{"$nulls":3},1,{"$f":"IF(U21=Ergebnis!$C$4,0,(IF(U21=Ergebnis!$C$5,1,\"x\")))","v":"x"}]
[{"v":17,"d":"17."},{"$nulls":7},"","",{"$f":"IF(ISNA(VLOOKUP(J22,Risikoberechnung!$A$2:$B$13,2,FALSE)),\"x\",VLOOKUP(J22,Risikoberechnung!$A$2:$B$13,2,FALSE))","v":"x"},{"$nulls":4},"","",{"$f":"IF(ISNA(VLOOKUP(Q22,Risikoberechnung!$A$2:$B$13,2,FALSE)),\"x\",VLOOKUP(Q22,Risikoberechnung!$A$2:$B$13,2,FALSE))","v":"x"},{"$nulls":3},1,{"$f":"IF(U22=Ergebnis!$C$4,0,(IF(U22=Ergebnis!$C$5,1,\"x\")))","v":"x"}]
[{"v":18,"d":"18."},{"$nulls":7},"","",{"$f":"IF(ISNA(VLOOKUP(J23,Risikoberechnung!$A$2:$B$13,2,FALSE)),\"x\",VLOOKUP(J23,Risikoberechnung!$A$2:$B$13,2,FALSE))","v":"x"},{"$nulls":4},"","",{"$f":"IF(ISNA(VLOOKUP(Q23,Risikoberechnung!$A$2:$B$13,2,FALSE)),\"x\",VLOOKUP(Q23,Risikoberechnung!$A$2:$B$13,2,FALSE))","v":"x"},{"$nulls":3},1,{"$f":"IF(U23=Ergebnis!$C$4,0,(IF(U23=Ergebnis!$C$5,1,\"x\")))","v":"x"}]
[{"v":19,"d":"19."},{"$nulls":7},"","",{"$f":"IF(ISNA(VLOOKUP(J24,Risikoberechnung!$A$2:$B$13,2,FALSE)),\"x\",VLOOKUP(J24,Risikoberechnung!$A$2:$B$13,2,FALSE))","v":"x"},{"$nulls":4},"","",{"$f":"IF(ISNA(VLOOKUP(Q24,Risikoberechnung!$A$2:$B$13,2,FALSE)),\"x\",VLOOKUP(Q24,Risikoberechnung!$A$2:$B$13,2,FALSE))","v":"x"},{"$nulls":3},1,{"$f":"IF(U24=Ergebnis!$C$4,0,(IF(U24=Ergebnis!$C$5,1,\"x\")))","v":"x"}]
[{"v":20,"d":"20."},{"$nulls":7},"","",{"$f":"IF(ISNA(VLOOKUP(J25,Risikoberechnung!$A$2:$B$13,2,FALSE)),\"x\",VLOOKUP(J25,Risikoberechnung!$A$2:$B$13,2,FALSE))","v":"x"},{"$nulls":4},"","",{"$f":"IF(ISNA(VLOOKUP(Q25,Risikoberechnung!$A$2:$B$13,2,FALSE)),\"x\",VLOOKUP(Q25,Risikoberechnung!$A$2:$B$13,2,FALSE))","v":"x"},{"$nulls":3},1,{"$f":"IF(U25=Ergebnis!$C$4,0,(IF(U25=Ergebnis!$C$5,1,\"x\")))","v":"x"}]
[{"v":21,"d":"21."},{"$nulls":7},"","",{"$f":"IF(ISNA(VLOOKUP(J26,Risikoberechnung!$A$2:$B$13,2,FALSE)),\"x\",VLOOKUP(J26,Risikoberechnung!$A$2:$B$13,2,FALSE))","v":"x"},{"$nulls":4},"","",{"$f":"IF(ISNA(VLOOKUP(Q26,Risikoberechnung!$A$2:$B$13,2,FALSE)),\"x\",VLOOKUP(Q26,Risikoberechnung!$A$2:$B$13,2,FALSE))","v":"x"},{"$nulls":3},1,{"$f":"IF(U26=Ergebnis!$C$4,0,(IF(U26=Ergebnis!$C$5,1,\"x\")))","v":"x"}]
[{"v":22,"d":"22."},{"$nulls":7},"","",{"$f":"IF(ISNA(VLOOKUP(J27,Risikoberechnung!$A$2:$B$13,2,FALSE)),\"x\",VLOOKUP(J27,Risikoberechnung!$A$2:$B$13,2,FALSE))","v":"x"},{"$nulls":4},"","",{"$f":"IF(ISNA(VLOOKUP(Q27,Risikoberechnung!$A$2:$B$13,2,FALSE)),\"x\",VLOOKUP(Q27,Risikoberechnung!$A$2:$B$13,2,FALSE))","v":"x"},{"$nulls":3},1,{"$f":"IF(U27=Ergebnis!$C$4,0,(IF(U27=Ergebnis!$C$5,1,\"x\")))","v":"x"}]
[{"v":23,"d":"23."},{"$nulls":7},"","",{"$f":"IF(ISNA(VLOOKUP(J28,Risikoberechnung!$A$2:$B$13,2,FALSE)),\"x\",VLOOKUP(J28,Risikoberechnung!$A$2:$B$13,2,FALSE))","v":"x"},{"$nulls":4},"","",{"$f":"IF(ISNA(VLOOKUP(Q28,Risikoberechnung!$A$2:$B$13,2,FALSE)),\"x\",VLOOKUP(Q28,Risikoberechnung!$A$2:$B$13,2,FALSE))","v":"x"},{"$nulls":3},1,{"$f":"IF(U28=Ergebnis!$C$4,0,(IF(U28=Ergebnis!$C$5,1,\"x\")))","v":"x"}]
[{"v":24,"d":"24."},{"$nulls":7},"","",{"$f":"IF(ISNA(VLOOKUP(J29,Risikoberechnung!$A$2:$B$13,2,FALSE)),\"x\",VLOOKUP(J29,Risikoberechnung!$A$2:$B$13,2,FALSE))","v":"x"},{"$nulls":4},"","",{"$f":"IF(ISNA(VLOOKUP(Q29,Risikoberechnung!$A$2:$B$13,2,FALSE)),\"x\",VLOOKUP(Q29,Risikoberechnung!$A$2:$B$13,2,FALSE))","v":"x"},{"$nulls":3},1,{"$f":"IF(U29=Ergebnis!$C$4,0,(IF(U29=Ergebnis!$C$5,1,\"x\")))","v":"x"}]
[{"v":25,"d":"25."},{"$nulls":7},"","",{"$f":"IF(ISNA(VLOOKUP(J30,Risikoberechnung!$A$2:$B$13,2,FALSE)),\"x\",VLOOKUP(J30,Risikoberechnung!$A$2:$B$13,2,FALSE))","v":"x"},{"$nulls":4},"","",{"$f":"IF(ISNA(VLOOKUP(Q30,Risikoberechnung!$A$2:$B$13,2,FALSE)),\"x\",VLOOKUP(Q30,Risikoberechnung!$A$2:$B$13,2,FALSE))","v":"x"},{"$nulls":3},1,{"$f":"IF(U30=Ergebnis!$C$4,0,(IF(U30=Ergebnis!$C$5,1,\"x\")))","v":"x"}]
[{"v":26,"d":"26."},{"$nulls":7},"","",{"$f":"IF(ISNA(VLOOKUP(J31,Risikoberechnung!$A$2:$B$13,2,FALSE)),\"x\",VLOOKUP(J31,Risikoberechnung!$A$2:$B$13,2,FALSE))","v":"x"},{"$nulls":4},"","",{"$f":"IF(ISNA(VLOOKUP(Q31,Risikoberechnung!$A$2:$B$13,2,FALSE)),\"x\",VLOOKUP(Q31,Risikoberechnung!$A$2:$B$13,2,FALSE))","v":"x"},{"$nulls":3},1,{"$f":"IF(U31=Ergebnis!$C$4,0,(IF(U31=Ergebnis!$C$5,1,\"x\")))","v":"x"}]
[{"v":27,"d":"27."},{"$nulls":7},"","",{"$f":"IF(ISNA(VLOOKUP(J32,Risikoberechnung!$A$2:$B$13,2,FALSE)),\"x\",VLOOKUP(J32,Risikoberechnung!$A$2:$B$13,2,FALSE))","v":"x"},{"$nulls":4},"","",{"$f":"IF(ISNA(VLOOKUP(Q32,Risikoberechnung!$A$2:$B$13,2,FALSE)),\"x\",VLOOKUP(Q32,Risikoberechnung!$A$2:$B$13,2,FALSE))","v":"x"},{"$nulls":3},1,{"$f":"IF(U32=Ergebnis!$C$4,0,(IF(U32=Ergebnis!$C$5,1,\"x\")))","v":"x"}]
[{"v":28,"d":"28."},{"$nulls":7},"","",{"$f":"IF(ISNA(VLOOKUP(J33,Risikoberechnung!$A$2:$B$13,2,FALSE)),\"x\",VLOOKUP(J33,Risikoberechnung!$A$2:$B$13,2,FALSE))","v":"x"},{"$nulls":4},"","",{"$f":"IF(ISNA(VLOOKUP(Q33,Risikoberechnung!$A$2:$B$13,2,FALSE)),\"x\",VLOOKUP(Q33,Risikoberechnung!$A$2:$B$13,2,FALSE))","v":"x"},{"$nulls":3},1,{"$f":"IF(U33=Ergebnis!$C$4,0,(IF(U33=Ergebnis!$C$5,1,\"x\")))","v":"x"}]
[{"v":29,"d":"29."},{"$nulls":7},"","",{"$f":"IF(ISNA(VLOOKUP(J34,Risikoberechnung!$A$2:$B$13,2,FALSE)),\"x\",VLOOKUP(J34,Risikoberechnung!$A$2:$B$13,2,FALSE))","v":"x"},{"$nulls":4},"","",{"$f":"IF(ISNA(VLOOKUP(Q34,Risikoberechnung!$A$2:$B$13,2,FALSE)),\"x\",VLOOKUP(Q34,Risikoberechnung!$A$2:$B$13,2,FALSE))","v":"x"},{"$nulls":3},1,{"$f":"IF(U34=Ergebnis!$C$4,0,(IF(U34=Ergebnis!$C$5,1,\"x\")))","v":"x"}]
[{"v":30,"d":"30."},{"$nulls":7},"","",{"$f":"IF(ISNA(VLOOKUP(J35,Risikoberechnung!$A$2:$B$13,2,FALSE)),\"x\",VLOOKUP(J35,Risikoberechnung!$A$2:$B$13,2,FALSE))","v":"x"},{"$nulls":4},"","",{"$f":"IF(ISNA(VLOOKUP(Q35,Risikoberechnung!$A$2:$B$13,2,FALSE)),\"x\",VLOOKUP(Q35,Risikoberechnung!$A$2:$B$13,2,FALSE))","v":"x"},{"$nulls":3},1,{"$f":"IF(U35=Ergebnis!$C$4,0,(IF(U35=Ergebnis!$C$5,1,\"x\")))","v":"x"}]
[{"v":31,"d":"31."},{"$nulls":7},"","",{"$f":"IF(ISNA(VLOOKUP(J36,Risikoberechnung!$A$2:$B$13,2,FALSE)),\"x\",VLOOKUP(J36,Risikoberechnung!$A$2:$B$13,2,FALSE))","v":"x"},{"$nulls":4},"","",{"$f":"IF(ISNA(VLOOKUP(Q36,Risikoberechnung!$A$2:$B$13,2,FALSE)),\"x\",VLOOKUP(Q36,Risikoberechnung!$A$2:$B$13,2,FALSE))","v":"x"},{"$nulls":3},1,{"$f":"IF(U36=Ergebnis!$C$4,0,(IF(U36=Ergebnis!$C$5,1,\"x\")))","v":"x"}]
[{"v":32,"d":"32."},{"$nulls":7},"","",{"$f":"IF(ISNA(VLOOKUP(J37,Risikoberechnung!$A$2:$B$13,2,FALSE)),\"x\",VLOOKUP(J37,Risikoberechnung!$A$2:$B$13,2,FALSE))","v":"x"},{"$nulls":4},"","",{"$f":"IF(ISNA(VLOOKUP(Q37,Risikoberechnung!$A$2:$B$13,2,FALSE)),\"x\",VLOOKUP(Q37,Risikoberechnung!$A$2:$B$13,2,FALSE))","v":"x"},{"$nulls":3},1,{"$f":"IF(U37=Ergebnis!$C$4,0,(IF(U37=Ergebnis!$C$5,1,\"x\")))","v":"x"}]
[{"v":33,"d":"33."},{"$nulls":7},"","",{"$f":"IF(ISNA(VLOOKUP(J38,Risikoberechnung!$A$2:$B$13,2,FALSE)),\"x\",VLOOKUP(J38,Risikoberechnung!$A$2:$B$13,2,FALSE))","v":"x"},{"$nulls":4},"","",{"$f":"IF(ISNA(VLOOKUP(Q38,Risikoberechnung!$A$2:$B$13,2,FALSE)),\"x\",VLOOKUP(Q38,Risikoberechnung!$A$2:$B$13,2,FALSE))","v":"x"},{"$nulls":3},1,{"$f":"IF(U38=Ergebnis!$C$4,0,(IF(U38=Ergebnis!$C$5,1,\"x\")))","v":"x"}]
[{"v":34,"d":"34."},{"$nulls":7},"","",{"$f":"IF(ISNA(VLOOKUP(J39,Risikoberechnung!$A$2:$B$13,2,FALSE)),\"x\",VLOOKUP(J39,Risikoberechnung!$A$2:$B$13,2,FALSE))","v":"x"},{"$nulls":4},"","",{"$f":"IF(ISNA(VLOOKUP(Q39,Risikoberechnung!$A$2:$B$13,2,FALSE)),\"x\",VLOOKUP(Q39,Risikoberechnung!$A$2:$B$13,2,FALSE))","v":"x"},{"$nulls":3},1,{"$f":"IF(U39=Ergebnis!$C$4,0,(IF(U39=Ergebnis!$C$5,1,\"x\")))","v":"x"}]
[{"v":35,"d":"35."},{"$nulls":7},"","",{"$f":"IF(ISNA(VLOOKUP(J40,Risikoberechnung!$A$2:$B$13,2,FALSE)),\"x\",VLOOKUP(J40,Risikoberechnung!$A$2:$B$13,2,FALSE))","v":"x"},{"$nulls":4},"","",{"$f":"IF(ISNA(VLOOKUP(Q40,Risikoberechnung!$A$2:$B$13,2,FALSE)),\"x\",VLOOKUP(Q40,Risikoberechnung!$A$2:$B$13,2,FALSE))","v":"x"},{"$nulls":3},1,{"$f":"IF(U40=Ergebnis!$C$4,0,(IF(U40=Ergebnis!$C$5,1,\"x\")))","v":"x"}]
[{"v":36,"d":"36."},{"$nulls":7},"","",{"$f":"IF(ISNA(VLOOKUP(J41,Risikoberechnung!$A$2:$B$13,2,FALSE)),\"x\",VLOOKUP(J41,Risikoberechnung!$A$2:$B$13,2,FALSE))","v":"x"},{"$nulls":4},"","",{"$f":"IF(ISNA(VLOOKUP(Q41,Risikoberechnung!$A$2:$B$13,2,FALSE)),\"x\",VLOOKUP(Q41,Risikoberechnung!$A$2:$B$13,2,FALSE))","v":"x"},{"$nulls":3},1,{"$f":"IF(U41=Ergebnis!$C$4,0,(IF(U41=Ergebnis!$C$5,1,\"x\")))","v":"x"}]
[{"v":37,"d":"37."},{"$nulls":7},"","",{"$f":"IF(ISNA(VLOOKUP(J42,Risikoberechnung!$A$2:$B$13,2,FALSE)),\"x\",VLOOKUP(J42,Risikoberechnung!$A$2:$B$13,2,FALSE))","v":"x"},{"$nulls":4},"","",{"$f":"IF(ISNA(VLOOKUP(Q42,Risikoberechnung!$A$2:$B$13,2,FALSE)),\"x\",VLOOKUP(Q42,Risikoberechnung!$A$2:$B$13,2,FALSE))","v":"x"},{"$nulls":3},1,{"$f":"IF(U42=Ergebnis!$C$4,0,(IF(U42=Ergebnis!$C$5,1,\"x\")))","v":"x"}]
[{"v":38,"d":"38."},{"$nulls":7},"","",{"$f":"IF(ISNA(VLOOKUP(J43,Risikoberechnung!$A$2:$B$13,2,FALSE)),\"x\",VLOOKUP(J43,Risikoberechnung!$A$2:$B$13,2,FALSE))","v":"x"},{"$nulls":4},"","",{"$f":"IF(ISNA(VLOOKUP(Q43,Risikoberechnung!$A$2:$B$13,2,FALSE)),\"x\",VLOOKUP(Q43,Risikoberechnung!$A$2:$B$13,2,FALSE))","v":"x"},{"$nulls":3},1,{"$f":"IF(U43=Ergebnis!$C$4,0,(IF(U43=Ergebnis!$C$5,1,\"x\")))","v":"x"}]
[{"v":39,"d":"39."},{"$nulls":7},"","",{"$f":"IF(ISNA(VLOOKUP(J44,Risikoberechnung!$A$2:$B$13,2,FALSE)),\"x\",VLOOKUP(J44,Risikoberechnung!$A$2:$B$13,2,FALSE))","v":"x"},{"$nulls":4},"","",{"$f":"IF(ISNA(VLOOKUP(Q44,Risikoberechnung!$A$2:$B$13,2,FALSE)),\"x\",VLOOKUP(Q44,Risikoberechnung!$A$2:$B$13,2,FALSE))","v":"x"},{"$nulls":3},1,{"$f":"IF(U44=Ergebnis!$C$4,0,(IF(U44=Ergebnis!$C$5,1,\"x\")))","v":"x"}]
[{"v":40,"d":"40."},{"$nulls":7},"","",{"$f":"IF(ISNA(VLOOKUP(J45,Risikoberechnung!$A$2:$B$13,2,FALSE)),\"x\",VLOOKUP(J45,Risikoberechnung!$A$2:$B$13,2,FALSE))","v":"x"},{"$nulls":4},"","",{"$f":"IF(ISNA(VLOOKUP(Q45,Risikoberechnung!$A$2:$B$13,2,FALSE)),\"x\",VLOOKUP(Q45,Risikoberechnung!$A$2:$B$13,2,FALSE))","v":"x"},{"$nulls":3},1,{"$f":"IF(U45=Ergebnis!$C$4,0,(IF(U45=Ergebnis!$C$5,1,\"x\")))","v":"x"}]
[{"v":41,"d":"41."},{"$nulls":7},"","",{"$f":"IF(ISNA(VLOOKUP(J46,Risikoberechnung!$A$2:$B$13,2,FALSE)),\"x\",VLOOKUP(J46,Risikoberechnung!$A$2:$B$13,2,FALSE))","v":"x"},{"$nulls":4},"","",{"$f":"IF(ISNA(VLOOKUP(Q46,Risikoberechnung!$A$2:$B$13,2,FALSE)),\"x\",VLOOKUP(Q46,Risikoberechnung!$A$2:$B$13,2,FALSE))","v":"x"},{"$nulls":3},1,{"$f":"IF(U46=Ergebnis!$C$4,0,(IF(U46=Ergebnis!$C$5,1,\"x\")))","v":"x"}]
[{"v":42,"d":"42."},{"$nulls":7},"","",{"$f":"IF(ISNA(VLOOKUP(J47,Risikoberechnung!$A$2:$B$13,2,FALSE)),\"x\",VLOOKUP(J47,Risikoberechnung!$A$2:$B$13,2,FALSE))","v":"x"},{"$nulls":4},"","",{"$f":"IF(ISNA(VLOOKUP(Q47,Risikoberechnung!$A$2:$B$13,2,FALSE)),\"x\",VLOOKUP(Q47,Risikoberechnung!$A$2:$B$13,2,FALSE))","v":"x"},{"$nulls":3},1,{"$f":"IF(U47=Ergebnis!$C$4,0,(IF(U47=Ergebnis!$C$5,1,\"x\")))","v":"x"}]
[{"v":43,"d":"43."},{"$nulls":7},"","",{"$f":"IF(ISNA(VLOOKUP(J48,Risikoberechnung!$A$2:$B$13,2,FALSE)),\"x\",VLOOKUP(J48,Risikoberechnung!$A$2:$B$13,2,FALSE))","v":"x"},{"$nulls":4},"","",{"$f":"IF(ISNA(VLOOKUP(Q48,Risikoberechnung!$A$2:$B$13,2,FALSE)),\"x\",VLOOKUP(Q48,Risikoberechnung!$A$2:$B$13,2,FALSE))","v":"x"},{"$nulls":3},1,{"$f":"IF(U48=Ergebnis!$C$4,0,(IF(U48=Ergebnis!$C$5,1,\"x\")))","v":"x"}]
[{"v":44,"d":"44."},{"$nulls":7},"","",{"$f":"IF(ISNA(VLOOKUP(J49,Risikoberechnung!$A$2:$B$13,2,FALSE)),\"x\",VLOOKUP(J49,Risikoberechnung!$A$2:$B$13,2,FALSE))","v":"x"},{"$nulls":4},"","",{"$f":"IF(ISNA(VLOOKUP(Q49,Risikoberechnung!$A$2:$B$13,2,FALSE)),\"x\",VLOOKUP(Q49,Risikoberechnung!$A$2:$B$13,2,FALSE))","v":"x"},{"$nulls":3},1,{"$f":"IF(U49=Ergebnis!$C$4,0,(IF(U49=Ergebnis!$C$5,1,\"x\")))","v":"x"}]
[{"v":45,"d":"45."},{"$nulls":7},"","",{"$f":"IF(ISNA(VLOOKUP(J50,Risikoberechnung!$A$2:$B$13,2,FALSE)),\"x\",VLOOKUP(J50,Risikoberechnung!$A$2:$B$13,2,FALSE))","v":"x"},{"$nulls":4},"","",{"$f":"IF(ISNA(VLOOKUP(Q50,Risikoberechnung!$A$2:$B$13,2,FALSE)),\"x\",VLOOKUP(Q50,Risikoberechnung!$A$2:$B$13,2,FALSE))","v":"x"},{"$nulls":3},1,{"$f":"IF(U50=Ergebnis!$C$4,0,(IF(U50=Ergebnis!$C$5,1,\"x\")))","v":"x"}]
[{"v":46,"d":"46."},{"$nulls":7},"","",{"$f":"IF(ISNA(VLOOKUP(J51,Risikoberechnung!$A$2:$B$13,2,FALSE)),\"x\",VLOOKUP(J51,Risikoberechnung!$A$2:$B$13,2,FALSE))","v":"x"},{"$nulls":4},"","",{"$f":"IF(ISNA(VLOOKUP(Q51,Risikoberechnung!$A$2:$B$13,2,FALSE)),\"x\",VLOOKUP(Q51,Risikoberechnung!$A$2:$B$13,2,FALSE))","v":"x"},{"$nulls":3},1,{"$f":"IF(U51=Ergebnis!$C$4,0,(IF(U51=Ergebnis!$C$5,1,\"x\")))","v":"x"}]
[{"v":47,"d":"47."},{"$nulls":7},"","",{"$f":"IF(ISNA(VLOOKUP(J52,Risikoberechnung!$A$2:$B$13,2,FALSE)),\"x\",VLOOKUP(J52,Risikoberechnung!$A$2:$B$13,2,FALSE))","v":"x"},{"$nulls":4},"","",{"$f":"IF(ISNA(VLOOKUP(Q52,Risikoberechnung!$A$2:$B$13,2,FALSE)),\"x\",VLOOKUP(Q52,Risikoberechnung!$A$2:$B$13,2,FALSE))","v":"x"},{"$nulls":3},1,{"$f":"IF(U52=Ergebnis!$C$4,0,(IF(U52=Ergebnis!$C$5,1,\"x\")))","v":"x"}]
[{"v":48,"d":"48."},{"$nulls":7},"","",{"$f":"IF(ISNA(VLOOKUP(J53,Risikoberechnung!$A$2:$B$13,2,FALSE)),\"x\",VLOOKUP(J53,Risikoberechnung!$A$2:$B$13,2,FALSE))","v":"x"},{"$nulls":4},"","",{"$f":"IF(ISNA(VLOOKUP(Q53,Risikoberechnung!$A$2:$B$13,2,FALSE)),\"x\",VLOOKUP(Q53,Risikoberechnung!$A$2:$B$13,2,FALSE))","v":"x"},{"$nulls":3},1,{"$f":"IF(U53=Ergebnis!$C$4,0,(IF(U53=Ergebnis!$C$5,1,\"x\")))","v":"x"}]
[{"v":49,"d":"49."},{"$nulls":7},"","",{"$f":"IF(ISNA(VLOOKUP(J54,Risikoberechnung!$A$2:$B$13,2,FALSE)),\"x\",VLOOKUP(J54,Risikoberechnung!$A$2:$B$13,2,FALSE))","v":"x"},{"$nulls":4},"","",{"$f":"IF(ISNA(VLOOKUP(Q54,Risikoberechnung!$A$2:$B$13,2,FALSE)),\"x\",VLOOKUP(Q54,Risikoberechnung!$A$2:$B$13,2,FALSE))","v":"x"},{"$nulls":3},1,{"$f":"IF(U54=Ergebnis!$C$4,0,(IF(U54=Ergebnis!$C$5,1,\"x\")))","v":"x"}]
[{"v":50,"d":"50."},{"$nulls":7},"","",{"$f":"IF(ISNA(VLOOKUP(J55,Risikoberechnung!$A$2:$B$13,2,FALSE)),\"x\",VLOOKUP(J55,Risikoberechnung!$A$2:$B$13,2,FALSE))","v":"x"},{"$nulls":4},"","",{"$f":"IF(ISNA(VLOOKUP(Q55,Risikoberechnung!$A$2:$B$13,2,FALSE)),\"x\",VLOOKUP(Q55,Risikoberechnung!$A$2:$B$13,2,FALSE))","v":"x"},{"$nulls":3},1,{"$f":"IF(U55=Ergebnis!$C$4,0,(IF(U55=Ergebnis!$C$5,1,\"x\")))","v":"x"}]
[{"v":51,"d":"51."},{"$nulls":7},"","",{"$f":"IF(ISNA(VLOOKUP(J56,Risikoberechnung!$A$2:$B$13,2,FALSE)),\"x\",VLOOKUP(J56,Risikoberechnung!$A$2:$B$13,2,FALSE))","v":"x"},{"$nulls":4},"","",{"$f":"IF(ISNA(VLOOKUP(Q56,Risikoberechnung!$A$2:$B$13,2,FALSE)),\"x\",VLOOKUP(Q56,Risikoberechnung!$A$2:$B$13,2,FALSE))","v":"x"},{"$nulls":3},1,{"$f":"IF(U56=Ergebnis!$C$4,0,(IF(U56=Ergebnis!$C$5,1,\"x\")))","v":"x"}]
[{"v":52,"d":"52."},{"$nulls":7},"","",{"$f":"IF(ISNA(VLOOKUP(J57,Risikoberechnung!$A$2:$B$13,2,FALSE)),\"x\",VLOOKUP(J57,Risikoberechnung!$A$2:$B$13,2,FALSE))","v":"x"},{"$nulls":4},"","",{"$f":"IF(ISNA(VLOOKUP(Q57,Risikoberechnung!$A$2:$B$13,2,FALSE)),\"x\",VLOOKUP(Q57,Risikoberechnung!$A$2:$B$13,2,FALSE))","v":"x"},{"$nulls":3},1,{"$f":"IF(U57=Ergebnis!$C$4,0,(IF(U57=Ergebnis!$C$5,1,\"x\")))","v":"x"}]
[{"v":53,"d":"53."},{"$nulls":7},"",{"$f":"I58","v":""},{"$f":"IF(ISNA(VLOOKUP(J58,Risikoberechnung!$A$2:$B$13,2,FALSE)),\"x\",VLOOKUP(J58,Risikoberechnung!$A$2:$B$13,2,FALSE))","v":"x"},{"$nulls":4},"","",{"$f":"IF(ISNA(VLOOKUP(Q58,Risikoberechnung!$A$2:$B$13,2,FALSE)),\"x\",VLOOKUP(Q58,Risikoberechnung!$A$2:$B$13,2,FALSE))","v":"x"},{"$nulls":3},1,{"$f":"IF(U58=Ergebnis!$C$4,0,(IF(U58=Ergebnis!$C$5,1,\"x\")))","v":"x"}]
[{"v":54,"d":"54."},{"$nulls":7},"","",{"$f":"IF(ISNA(VLOOKUP(J59,Risikoberechnung!$A$2:$B$13,2,FALSE)),\"x\",VLOOKUP(J59,Risikoberechnung!$A$2:$B$13,2,FALSE))","v":"x"},{"$nulls":4},"","",{"$f":"IF(ISNA(VLOOKUP(Q59,Risikoberechnung!$A$2:$B$13,2,FALSE)),\"x\",VLOOKUP(Q59,Risikoberechnung!$A$2:$B$13,2,FALSE))","v":"x"},{"$nulls":3},1,{"$f":"IF(U59=Ergebnis!$C$4,0,(IF(U59=Ergebnis!$C$5,1,\"x\")))","v":"x"}]
[{"v":55,"d":"55."},{"$nulls":7},"","",{"$f":"IF(ISNA(VLOOKUP(J60,Risikoberechnung!$A$2:$B$13,2,FALSE)),\"x\",VLOOKUP(J60,Risikoberechnung!$A$2:$B$13,2,FALSE))","v":"x"},{"$nulls":4},"","",{"$f":"IF(ISNA(VLOOKUP(Q60,Risikoberechnung!$A$2:$B$13,2,FALSE)),\"x\",VLOOKUP(Q60,Risikoberechnung!$A$2:$B$13,2,FALSE))","v":"x"},{"$nulls":3},1,{"$f":"IF(U60=Ergebnis!$C$4,0,(IF(U60=Ergebnis!$C$5,1,\"x\")))","v":"x"}]
[{"v":56,"d":"56."},{"$nulls":7},"","",{"$f":"IF(ISNA(VLOOKUP(J61,Risikoberechnung!$A$2:$B$13,2,FALSE)),\"x\",VLOOKUP(J61,Risikoberechnung!$A$2:$B$13,2,FALSE))","v":"x"},{"$nulls":4},"","",{"$f":"IF(ISNA(VLOOKUP(Q61,Risikoberechnung!$A$2:$B$13,2,FALSE)),\"x\",VLOOKUP(Q61,Risikoberechnung!$A$2:$B$13,2,FALSE))","v":"x"},{"$nulls":3},1,{"$f":"IF(U61=Ergebnis!$C$4,0,(IF(U61=Ergebnis!$C$5,1,\"x\")))","v":"x"}]
[{"v":57,"d":"57."},{"$nulls":7},"","",{"$f":"IF(ISNA(VLOOKUP(J62,Risikoberechnung!$A$2:$B$13,2,FALSE)),\"x\",VLOOKUP(J62,Risikoberechnung!$A$2:$B$13,2,FALSE))","v":"x"},{"$nulls":4},"","",{"$f":"IF(ISNA(VLOOKUP(Q62,Risikoberechnung!$A$2:$B$13,2,FALSE)),\"x\",VLOOKUP(Q62,Risikoberechnung!$A$2:$B$13,2,FALSE))","v":"x"},{"$nulls":3},1,{"$f":"IF(U62=Ergebnis!$C$4,0,(IF(U62=Ergebnis!$C$5,1,\"x\")))","v":"x"}]
[{"v":58,"d":"58."},{"$nulls":7},"","",{"$f":"IF(ISNA(VLOOKUP(J63,Risikoberechnung!$A$2:$B$13,2,FALSE)),\"x\",VLOOKUP(J63,Risikoberechnung!$A$2:$B$13,2,FALSE))","v":"x"},{"$nulls":4},"","",{"$f":"IF(ISNA(VLOOKUP(Q63,Risikoberechnung!$A$2:$B$13,2,FALSE)),\"x\",VLOOKUP(Q63,Risikoberechnung!$A$2:$B$13,2,FALSE))","v":"x"},{"$nulls":3},1,{"$f":"IF(U63=Ergebnis!$C$4,0,(IF(U63=Ergebnis!$C$5,1,\"x\")))","v":"x"}]
[{"v":59,"d":"59."},{"$nulls":7},"","",{"$f":"IF(ISNA(VLOOKUP(J64,Risikoberechnung!$A$2:$B$13,2,FALSE)),\"x\",VLOOKUP(J64,Risikoberechnung!$A$2:$B$13,2,FALSE))","v":"x"},{"$nulls":4},"","",{"$f":"IF(ISNA(VLOOKUP(Q64,Risikoberechnung!$A$2:$B$13,2,FALSE)),\"x\",VLOOKUP(Q64,Risikoberechnung!$A$2:$B$13,2,FALSE))","v":"x"},{"$nulls":3},1,{"$f":"IF(U64=Ergebnis!$C$4,0,(IF(U64=Ergebnis!$C$5,1,\"x\")))","v":"x"}]
[{"v":60,"d":"60."},{"$nulls":7},"","",{"$f":"IF(ISNA(VLOOKUP(J65,Risikoberechnung!$A$2:$B$13,2,FALSE)),\"x\",VLOOKUP(J65,Risikoberechnung!$A$2:$B$13,2,FALSE))","v":"x"},{"$nulls":4},"","",{"$f":"IF(ISNA(VLOOKUP(Q65,Risikoberechnung!$A$2:$B$13,2,FALSE)),\"x\",VLOOKUP(Q65,Risikoberechnung!$A$2:$B$13,2,FALSE))","v":"x"},{"$nulls":3},1,{"$f":"IF(U65=Ergebnis!$C$4,0,(IF(U65=Ergebnis!$C$5,1,\"x\")))","v":"x"}]
[{"v":61,"d":"61."},{"$nulls":7},"","",{"$f":"IF(ISNA(VLOOKUP(J66,Risikoberechnung!$A$2:$B$13,2,FALSE)),\"x\",VLOOKUP(J66,Risikoberechnung!$A$2:$B$13,2,FALSE))","v":"x"},{"$nulls":4},"","",{"$f":"IF(ISNA(VLOOKUP(Q66,Risikoberechnung!$A$2:$B$13,2,FALSE)),\"x\",VLOOKUP(Q66,Risikoberechnung!$A$2:$B$13,2,FALSE))","v":"x"},{"$nulls":3},1,{"$f":"IF(U66=Ergebnis!$C$4,0,(IF(U66=Ergebnis!$C$5,1,\"x\")))","v":"x"}]
[{"v":62,"d":"62."},{"$nulls":7},"","",{"$f":"IF(ISNA(VLOOKUP(J67,Risikoberechnung!$A$2:$B$13,2,FALSE)),\"x\",VLOOKUP(J67,Risikoberechnung!$A$2:$B$13,2,FALSE))","v":"x"},{"$nulls":4},"","",{"$f":"IF(ISNA(VLOOKUP(Q67,Risikoberechnung!$A$2:$B$13,2,FALSE)),\"x\",VLOOKUP(Q67,Risikoberechnung!$A$2:$B$13,2,FALSE))","v":"x"},{"$nulls":3},1,{"$f":"IF(U67=Ergebnis!$C$4,0,(IF(U67=Ergebnis!$C$5,1,\"x\")))","v":"x"}]
[{"v":63,"d":"63."},{"$nulls":7},"","",{"$f":"IF(ISNA(VLOOKUP(J68,Risikoberechnung!$A$2:$B$13,2,FALSE)),\"x\",VLOOKUP(J68,Risikoberechnung!$A$2:$B$13,2,FALSE))","v":"x"},{"$nulls":4},"","",{"$f":"IF(ISNA(VLOOKUP(Q68,Risikoberechnung!$A$2:$B$13,2,FALSE)),\"x\",VLOOKUP(Q68,Risikoberechnung!$A$2:$B$13,2,FALSE))","v":"x"},{"$nulls":3},1,{"$f":"IF(U68=Ergebnis!$C$4,0,(IF(U68=Ergebnis!$C$5,1,\"x\")))","v":"x"}]
[{"v":64,"d":"64."},{"$nulls":7},"","",{"$f":"IF(ISNA(VLOOKUP(J69,Risikoberechnung!$A$2:$B$13,2,FALSE)),\"x\",VLOOKUP(J69,Risikoberechnung!$A$2:$B$13,2,FALSE))","v":"x"},{"$nulls":4},"","",{"$f":"IF(ISNA(VLOOKUP(Q69,Risikoberechnung!$A$2:$B$13,2,FALSE)),\"x\",VLOOKUP(Q69,Risikoberechnung!$A$2:$B$13,2,FALSE))","v":"x"},{"$nulls":3},1,{"$f":"IF(U69=Ergebnis!$C$4,0,(IF(U69=Ergebnis!$C$5,1,\"x\")))","v":"x"}]
[{"v":65,"d":"65."},{"$nulls":7},"","",{"$f":"IF(ISNA(VLOOKUP(J70,Risikoberechnung!$A$2:$B$13,2,FALSE)),\"x\",VLOOKUP(J70,Risikoberechnung!$A$2:$B$13,2,FALSE))","v":"x"},{"$nulls":4},"","",{"$f":"IF(ISNA(VLOOKUP(Q70,Risikoberechnung!$A$2:$B$13,2,FALSE)),\"x\",VLOOKUP(Q70,Risikoberechnung!$A$2:$B$13,2,FALSE))","v":"x"},{"$nulls":3},1,{"$f":"IF(U70=Ergebnis!$C$4,0,(IF(U70=Ergebnis!$C$5,1,\"x\")))","v":"x"}]
[{"$f":"ROW()-5","v":{"v":66,"d":"66."}},{"$nulls":7},{"$f":"CONCATENATE(G71,H71)","v":""},"",{"$f":"IF(ISNA(VLOOKUP(J71,Risikoberechnung!$A$2:$B$13,2,FALSE)),\"x\",VLOOKUP(J71,Risikoberechnung!$A$2:$B$13,2,FALSE))","v":"x"},{"$nulls":4},{"$f":"CONCATENATE(N71,O71)","v":""},"",{"$f":"IF(ISNA(VLOOKUP(Q71,Risikoberechnung!$A$2:$B$13,2,FALSE)),\"x\",VLOOKUP(Q71,Risikoberechnung!$A$2:$B$13,2,FALSE))","v":"x"},{"$nulls":3},1,{"$f":"IF(U71=Ergebnis!$C$4,0,(IF(U71=Ergebnis!$C$5,1,\"x\")))","v":"x"}]
[{"v":67,"d":"67."},{"$nulls":7},"","",{"$f":"IF(ISNA(VLOOKUP(J72,Risikoberechnung!$A$2:$B$13,2,FALSE)),\"x\",VLOOKUP(J72,Risikoberechnung!$A$2:$B$13,2,FALSE))","v":"x"},{"$nulls":4},"","",{"$f":"IF(ISNA(VLOOKUP(Q72,Risikoberechnung!$A$2:$B$13,2,FALSE)),\"x\",VLOOKUP(Q72,Risikoberechnung!$A$2:$B$13,2,FALSE))","v":"x"},{"$nulls":3},1,{"$f":"IF(U72=Ergebnis!$C$4,0,(IF(U72=Ergebnis!$C$5,1,\"x\")))","v":"x"}]
[{"v":68,"d":"68."},{"$nulls":7},"","",{"$f":"IF(ISNA(VLOOKUP(J73,Risikoberechnung!$A$2:$B$13,2,FALSE)),\"x\",VLOOKUP(J73,Risikoberechnung!$A$2:$B$13,2,FALSE))","v":"x"},{"$nulls":4},"","",{"$f":"IF(ISNA(VLOOKUP(Q73,Risikoberechnung!$A$2:$B$13,2,FALSE)),\"x\",VLOOKUP(Q73,Risikoberechnung!$A$2:$B$13,2,FALSE))","v":"x"},{"$nulls":3},1,{"$f":"IF(U73=Ergebnis!$C$4,0,(IF(U73=Ergebnis!$C$5,1,\"x\")))","v":"x"}]
[{"v":69,"d":"69."},{"$nulls":7},"","",{"$f":"IF(ISNA(VLOOKUP(J74,Risikoberechnung!$A$2:$B$13,2,FALSE)),\"x\",VLOOKUP(J74,Risikoberechnung!$A$2:$B$13,2,FALSE))","v":"x"},{"$nulls":4},"","",{"$f":"IF(ISNA(VLOOKUP(Q74,Risikoberechnung!$A$2:$B$13,2,FALSE)),\"x\",VLOOKUP(Q74,Risikoberechnung!$A$2:$B$13,2,FALSE))","v":"x"},{"$nulls":3},1,{"$f":"IF(U74=Ergebnis!$C$4,0,(IF(U74=Ergebnis!$C$5,1,\"x\")))","v":"x"}]
[{"v":70,"d":"70."},{"$nulls":7},"","",{"$f":"IF(ISNA(VLOOKUP(J75,Risikoberechnung!$A$2:$B$13,2,FALSE)),\"x\",VLOOKUP(J75,Risikoberechnung!$A$2:$B$13,2,FALSE))","v":"x"},{"$nulls":4},"","",{"$f":"IF(ISNA(VLOOKUP(Q75,Risikoberechnung!$A$2:$B$13,2,FALSE)),\"x\",VLOOKUP(Q75,Risikoberechnung!$A$2:$B$13,2,FALSE))","v":"x"},{"$nulls":3},1,{"$f":"IF(U75=Ergebnis!$C$4,0,(IF(U75=Ergebnis!$C$5,1,\"x\")))","v":"x"}]
[{"v":71,"d":"71."},{"$nulls":7},"","",{"$f":"IF(ISNA(VLOOKUP(J76,Risikoberechnung!$A$2:$B$13,2,FALSE)),\"x\",VLOOKUP(J76,Risikoberechnung!$A$2:$B$13,2,FALSE))","v":"x"},{"$nulls":4},"","",{"$f":"IF(ISNA(VLOOKUP(Q76,Risikoberechnung!$A$2:$B$13,2,FALSE)),\"x\",VLOOKUP(Q76,Risikoberechnung!$A$2:$B$13,2,FALSE))","v":"x"},{"$nulls":3},1,{"$f":"IF(U76=Ergebnis!$C$4,0,(IF(U76=Ergebnis!$C$5,1,\"x\")))","v":"x"}]
[{"v":72,"d":"72."},{"$nulls":7},"","",{"$f":"IF(ISNA(VLOOKUP(J77,Risikoberechnung!$A$2:$B$13,2,FALSE)),\"x\",VLOOKUP(J77,Risikoberechnung!$A$2:$B$13,2,FALSE))","v":"x"},{"$nulls":4},"","",{"$f":"IF(ISNA(VLOOKUP(Q77,Risikoberechnung!$A$2:$B$13,2,FALSE)),\"x\",VLOOKUP(Q77,Risikoberechnung!$A$2:$B$13,2,FALSE))","v":"x"},{"$nulls":3},1,{"$f":"IF(U77=Ergebnis!$C$4,0,(IF(U77=Ergebnis!$C$5,1,\"x\")))","v":"x"}]
[{"v":73,"d":"73."},{"$nulls":7},"","",{"$f":"IF(ISNA(VLOOKUP(J78,Risikoberechnung!$A$2:$B$13,2,FALSE)),\"x\",VLOOKUP(J78,Risikoberechnung!$A$2:$B$13,2,FALSE))","v":"x"},{"$nulls":4},"","",{"$f":"IF(ISNA(VLOOKUP(Q78,Risikoberechnung!$A$2:$B$13,2,FALSE)),\"x\",VLOOKUP(Q78,Risikoberechnung!$A$2:$B$13,2,FALSE))","v":"x"},{"$nulls":3},1,{"$f":"IF(U78=Ergebnis!$C$4,0,(IF(U78=Ergebnis!$C$5,1,\"x\")))","v":"x"}]
[{"v":74,"d":"74."},{"$nulls":7},"","",{"$f":"IF(ISNA(VLOOKUP(J79,Risikoberechnung!$A$2:$B$13,2,FALSE)),\"x\",VLOOKUP(J79,Risikoberechnung!$A$2:$B$13,2,FALSE))","v":"x"},{"$nulls":4},"","",{"$f":"IF(ISNA(VLOOKUP(Q79,Risikoberechnung!$A$2:$B$13,2,FALSE)),\"x\",VLOOKUP(Q79,Risikoberechnung!$A$2:$B$13,2,FALSE))","v":"x"},{"$nulls":3},1,{"$f":"IF(U79=Ergebnis!$C$4,0,(IF(U79=Ergebnis!$C$5,1,\"x\")))","v":"x"}]
[{"v":75,"d":"75."},{"$nulls":7},"","",{"$f":"IF(ISNA(VLOOKUP(J80,Risikoberechnung!$A$2:$B$13,2,FALSE)),\"x\",VLOOKUP(J80,Risikoberechnung!$A$2:$B$13,2,FALSE))","v":"x"},{"$nulls":4},"","",{"$f":"IF(ISNA(VLOOKUP(Q80,Risikoberechnung!$A$2:$B$13,2,FALSE)),\"x\",VLOOKUP(Q80,Risikoberechnung!$A$2:$B$13,2,FALSE))","v":"x"},{"$nulls":3},1,{"$f":"IF(U80=Ergebnis!$C$4,0,(IF(U80=Ergebnis!$C$5,1,\"x\")))","v":"x"}]
[{"v":76,"d":"76."},{"$nulls":7},"","",{"$f":"IF(ISNA(VLOOKUP(J81,Risikoberechnung!$A$2:$B$13,2,FALSE)),\"x\",VLOOKUP(J81,Risikoberechnung!$A$2:$B$13,2,FALSE))","v":"x"},{"$nulls":4},"","",{"$f":"IF(ISNA(VLOOKUP(Q81,Risikoberechnung!$A$2:$B$13,2,FALSE)),\"x\",VLOOKUP(Q81,Risikoberechnung!$A$2:$B$13,2,FALSE))","v":"x"},{"$nulls":3},1,{"$f":"IF(U81=Ergebnis!$C$4,0,(IF(U81=Ergebnis!$C$5,1,\"x\")))","v":"x"}]
[{"v":77,"d":"77."},{"$nulls":7},"","",{"$f":"IF(ISNA(VLOOKUP(J82,Risikoberechnung!$A$2:$B$13,2,FALSE)),\"x\",VLOOKUP(J82,Risikoberechnung!$A$2:$B$13,2,FALSE))","v":"x"},{"$nulls":4},"","",{"$f":"IF(ISNA(VLOOKUP(Q82,Risikoberechnung!$A$2:$B$13,2,FALSE)),\"x\",VLOOKUP(Q82,Risikoberechnung!$A$2:$B$13,2,FALSE))","v":"x"},{"$nulls":3},1,{"$f":"IF(U82=Ergebnis!$C$4,0,(IF(U82=Ergebnis!$C$5,1,\"x\")))","v":"x"}]
[{"v":78,"d":"78."},{"$nulls":7},"","",{"$f":"IF(ISNA(VLOOKUP(J83,Risikoberechnung!$A$2:$B$13,2,FALSE)),\"x\",VLOOKUP(J83,Risikoberechnung!$A$2:$B$13,2,FALSE))","v":"x"},{"$nulls":4},"","",{"$f":"IF(ISNA(VLOOKUP(Q83,Risikoberechnung!$A$2:$B$13,2,FALSE)),\"x\",VLOOKUP(Q83,Risikoberechnung!$A$2:$B$13,2,FALSE))","v":"x"},{"$nulls":3},1,{"$f":"IF(U83=Ergebnis!$C$4,0,(IF(U83=Ergebnis!$C$5,1,\"x\")))","v":"x"}]
[{"v":79,"d":"79."},{"$nulls":7},"","",{"$f":"IF(ISNA(VLOOKUP(J84,Risikoberechnung!$A$2:$B$13,2,FALSE)),\"x\",VLOOKUP(J84,Risikoberechnung!$A$2:$B$13,2,FALSE))","v":"x"},{"$nulls":4},"","",{"$f":"IF(ISNA(VLOOKUP(Q84,Risikoberechnung!$A$2:$B$13,2,FALSE)),\"x\",VLOOKUP(Q84,Risikoberechnung!$A$2:$B$13,2,FALSE))","v":"x"},{"$nulls":3},1,{"$f":"IF(U84=Ergebnis!$C$4,0,(IF(U84=Ergebnis!$C$5,1,\"x\")))","v":"x"}]
[{"v":80,"d":"80."},{"$nulls":7},"","",{"$f":"IF(ISNA(VLOOKUP(J85,Risikoberechnung!$A$2:$B$13,2,FALSE)),\"x\",VLOOKUP(J85,Risikoberechnung!$A$2:$B$13,2,FALSE))","v":"x"},{"$nulls":4},"","",{"$f":"IF(ISNA(VLOOKUP(Q85,Risikoberechnung!$A$2:$B$13,2,FALSE)),\"x\",VLOOKUP(Q85,Risikoberechnung!$A$2:$B$13,2,FALSE))","v":"x"},{"$nulls":3},1,{"$f":"IF(U85=Ergebnis!$C$4,0,(IF(U85=Ergebnis!$C$5,1,\"x\")))","v":"x"}]
[{"v":81,"d":"81."},{"$nulls":7},"","",{"$f":"IF(ISNA(VLOOKUP(J86,Risikoberechnung!$A$2:$B$13,2,FALSE)),\"x\",VLOOKUP(J86,Risikoberechnung!$A$2:$B$13,2,FALSE))","v":"x"},{"$nulls":4},"","",{"$f":"IF(ISNA(VLOOKUP(Q86,Risikoberechnung!$A$2:$B$13,2,FALSE)),\"x\",VLOOKUP(Q86,Risikoberechnung!$A$2:$B$13,2,FALSE))","v":"x"},{"$nulls":3},1,{"$f":"IF(U86=Ergebnis!$C$4,0,(IF(U86=Ergebnis!$C$5,1,\"x\")))","v":"x"}]
[{"v":82,"d":"82."},{"$nulls":7},"","",{"$f":"IF(ISNA(VLOOKUP(J87,Risikoberechnung!$A$2:$B$13,2,FALSE)),\"x\",VLOOKUP(J87,Risikoberechnung!$A$2:$B$13,2,FALSE))","v":"x"},{"$nulls":4},"","",{"$f":"IF(ISNA(VLOOKUP(Q87,Risikoberechnung!$A$2:$B$13,2,FALSE)),\"x\",VLOOKUP(Q87,Risikoberechnung!$A$2:$B$13,2,FALSE))","v":"x"},{"$nulls":3},1,{"$f":"IF(U87=Ergebnis!$C$4,0,(IF(U87=Ergebnis!$C$5,1,\"x\")))","v":"x"}]
[{"v":83,"d":"83."},{"$nulls":7},"","",{"$f":"IF(ISNA(VLOOKUP(J88,Risikoberechnung!$A$2:$B$13,2,FALSE)),\"x\",VLOOKUP(J88,Risikoberechnung!$A$2:$B$13,2,FALSE))","v":"x"},{"$nulls":4},"","",{"$f":"IF(ISNA(VLOOKUP(Q88,Risikoberechnung!$A$2:$B$13,2,FALSE)),\"x\",VLOOKUP(Q88,Risikoberechnung!$A$2:$B$13,2,FALSE))","v":"x"},{"$nulls":3},1,{"$f":"IF(U88=Ergebnis!$C$4,0,(IF(U88=Ergebnis!$C$5,1,\"x\")))","v":"x"}]
[{"v":84,"d":"84."},{"$nulls":7},"","",{"$f":"IF(ISNA(VLOOKUP(J89,Risikoberechnung!$A$2:$B$13,2,FALSE)),\"x\",VLOOKUP(J89,Risikoberechnung!$A$2:$B$13,2,FALSE))","v":"x"},{"$nulls":4},"","",{"$f":"IF(ISNA(VLOOKUP(Q89,Risikoberechnung!$A$2:$B$13,2,FALSE)),\"x\",VLOOKUP(Q89,Risikoberechnung!$A$2:$B$13,2,FALSE))","v":"x"},{"$nulls":3},1,{"$f":"IF(U89=Ergebnis!$C$4,0,(IF(U89=Ergebnis!$C$5,1,\"x\")))","v":"x"}]
[{"v":85,"d":"85."},{"$nulls":7},"","",{"$f":"IF(ISNA(VLOOKUP(J90,Risikoberechnung!$A$2:$B$13,2,FALSE)),\"x\",VLOOKUP(J90,Risikoberechnung!$A$2:$B$13,2,FALSE))","v":"x"},{"$nulls":4},"","",{"$f":"IF(ISNA(VLOOKUP(Q90,Risikoberechnung!$A$2:$B$13,2,FALSE)),\"x\",VLOOKUP(Q90,Risikoberechnung!$A$2:$B$13,2,FALSE))","v":"x"},{"$nulls":3},1,{"$f":"IF(U90=Ergebnis!$C$4,0,(IF(U90=Ergebnis!$C$5,1,\"x\")))","v":"x"}]
[{"v":86,"d":"86."},{"$nulls":7},"","",{"$f":"IF(ISNA(VLOOKUP(J91,Risikoberechnung!$A$2:$B$13,2,FALSE)),\"x\",VLOOKUP(J91,Risikoberechnung!$A$2:$B$13,2,FALSE))","v":"x"},{"$nulls":4},"","",{"$f":"IF(ISNA(VLOOKUP(Q91,Risikoberechnung!$A$2:$B$13,2,FALSE)),\"x\",VLOOKUP(Q91,Risikoberechnung!$A$2:$B$13,2,FALSE))","v":"x"},{"$nulls":3},1,{"$f":"IF(U91=Ergebnis!$C$4,0,(IF(U91=Ergebnis!$C$5,1,\"x\")))","v":"x"}]
[{"v":87,"d":"87."},{"$nulls":7},"","",{"$f":"IF(ISNA(VLOOKUP(J92,Risikoberechnung!$A$2:$B$13,2,FALSE)),\"x\",VLOOKUP(J92,Risikoberechnung!$A$2:$B$13,2,FALSE))","v":"x"},{"$nulls":4},"","",{"$f":"IF(ISNA(VLOOKUP(Q92,Risikoberechnung!$A$2:$B$13,2,FALSE)),\"x\",VLOOKUP(Q92,Risikoberechnung!$A$2:$B$13,2,FALSE))","v":"x"},{"$nulls":3},1,{"$f":"IF(U92=Ergebnis!$C$4,0,(IF(U92=Ergebnis!$C$5,1,\"x\")))","v":"x"}]
[{"v":88,"d":"88."},{"$nulls":7},"","",{"$f":"IF(ISNA(VLOOKUP(J93,Risikoberechnung!$A$2:$B$13,2,FALSE)),\"x\",VLOOKUP(J93,Risikoberechnung!$A$2:$B$13,2,FALSE))","v":"x"},{"$nulls":4},"","",{"$f":"IF(ISNA(VLOOKUP(Q93,Risikoberechnung!$A$2:$B$13,2,FALSE)),\"x\",VLOOKUP(Q93,Risikoberechnung!$A$2:$B$13,2,FALSE))","v":"x"},{"$nulls":3},1,{"$f":"IF(U93=Ergebnis!$C$4,0,(IF(U93=Ergebnis!$C$5,1,\"x\")))","v":"x"}]
[{"v":89,"d":"89."},{"$nulls":7},"","",{"$f":"IF(ISNA(VLOOKUP(J94,Risikoberechnung!$A$2:$B$13,2,FALSE)),\"x\",VLOOKUP(J94,Risikoberechnung!$A$2:$B$13,2,FALSE))","v":"x"},{"$nulls":4},"","",{"$f":"IF(ISNA(VLOOKUP(Q94,Risikoberechnung!$A$2:$B$13,2,FALSE)),\"x\",VLOOKUP(Q94,Risikoberechnung!$A$2:$B$13,2,FALSE))","v":"x"},{"$nulls":3},1,{"$f":"IF(U94=Ergebnis!$C$4,0,(IF(U94=Ergebnis!$C$5,1,\"x\")))","v":"x"}]
[{"v":90,"d":"90."},{"$nulls":7},"","",{"$f":"IF(ISNA(VLOOKUP(J95,Risikoberechnung!$A$2:$B$13,2,FALSE)),\"x\",VLOOKUP(J95,Risikoberechnung!$A$2:$B$13,2,FALSE))","v":"x"},{"$nulls":4},"","",{"$f":"IF(ISNA(VLOOKUP(Q95,Risikoberechnung!$A$2:$B$13,2,FALSE)),\"x\",VLOOKUP(Q95,Risikoberechnung!$A$2:$B$13,2,FALSE))","v":"x"},{"$nulls":3},1,{"$f":"IF(U95=Ergebnis!$C$4,0,(IF(U95=Ergebnis!$C$5,1,\"x\")))","v":"x"}]
[{"v":91,"d":"91."},{"$nulls":7},"","",{"$f":"IF(ISNA(VLOOKUP(J96,Risikoberechnung!$A$2:$B$13,2,FALSE)),\"x\",VLOOKUP(J96,Risikoberechnung!$A$2:$B$13,2,FALSE))","v":"x"},{"$nulls":4},"","",{"$f":"IF(ISNA(VLOOKUP(Q96,Risikoberechnung!$A$2:$B$13,2,FALSE)),\"x\",VLOOKUP(Q96,Risikoberechnung!$A$2:$B$13,2,FALSE))","v":"x"},{"$nulls":3},1,{"$f":"IF(U96=Ergebnis!$C$4,0,(IF(U96=Ergebnis!$C$5,1,\"x\")))","v":"x"}]
[{"v":92,"d":"92."},{"$nulls":7},"","",{"$f":"IF(ISNA(VLOOKUP(J97,Risikoberechnung!$A$2:$B$13,2,FALSE)),\"x\",VLOOKUP(J97,Risikoberechnung!$A$2:$B$13,2,FALSE))","v":"x"},{"$nulls":4},"","",{"$f":"IF(ISNA(VLOOKUP(Q97,Risikoberechnung!$A$2:$B$13,2,FALSE)),\"x\",VLOOKUP(Q97,Risikoberechnung!$A$2:$B$13,2,FALSE))","v":"x"},{"$nulls":3},1,{"$f":"IF(U97=Ergebnis!$C$4,0,(IF(U97=Ergebnis!$C$5,1,\"x\")))","v":"x"}]
[{"v":93,"d":"93."},{"$nulls":7},"","",{"$f":"IF(ISNA(VLOOKUP(J98,Risikoberechnung!$A$2:$B$13,2,FALSE)),\"x\",VLOOKUP(J98,Risikoberechnung!$A$2:$B$13,2,FALSE))","v":"x"},{"$nulls":4},"","",{"$f":"IF(ISNA(VLOOKUP(Q98,Risikoberechnung!$A$2:$B$13,2,FALSE)),\"x\",VLOOKUP(Q98,Risikoberechnung!$A$2:$B$13,2,FALSE))","v":"x"},{"$nulls":3},1,{"$f":"IF(U98=Ergebnis!$C$4,0,(IF(U98=Ergebnis!$C$5,1,\"x\")))","v":"x"}]
[{"v":94,"d":"94."},{"$nulls":7},"","",{"$f":"IF(ISNA(VLOOKUP(J99,Risikoberechnung!$A$2:$B$13,2,FALSE)),\"x\",VLOOKUP(J99,Risikoberechnung!$A$2:$B$13,2,FALSE))","v":"x"},{"$nulls":4},"","",{"$f":"IF(ISNA(VLOOKUP(Q99,Risikoberechnung!$A$2:$B$13,2,FALSE)),\"x\",VLOOKUP(Q99,Risikoberechnung!$A$2:$B$13,2,FALSE))","v":"x"},{"$nulls":3},1,{"$f":"IF(U99=Ergebnis!$C$4,0,(IF(U99=Ergebnis!$C$5,1,\"x\")))","v":"x"}]
[{"v":95,"d":"95."},{"$nulls":7},"","",{"$f":"IF(ISNA(VLOOKUP(J100,Risikoberechnung!$A$2:$B$13,2,FALSE)),\"x\",VLOOKUP(J100,Risikoberechnung!$A$2:$B$13,2,FALSE))","v":"x"},{"$nulls":4},"","",{"$f":"IF(ISNA(VLOOKUP(Q100,Risikoberechnung!$A$2:$B$13,2,FALSE)),\"x\",VLOOKUP(Q100,Risikoberechnung!$A$2:$B$13,2,FALSE))","v":"x"},{"$nulls":3},1,{"$f":"IF(U100=Ergebnis!$C$4,0,(IF(U100=Ergebnis!$C$5,1,\"x\")))","v":"x"}]
[{"v":96,"d":"96."},{"$nulls":7},"","",{"$f":"IF(ISNA(VLOOKUP(J101,Risikoberechnung!$A$2:$B$13,2,FALSE)),\"x\",VLOOKUP(J101,Risikoberechnung!$A$2:$B$13,2,FALSE))","v":"x"},{"$nulls":4},"","",{"$f":"IF(ISNA(VLOOKUP(Q101,Risikoberechnung!$A$2:$B$13,2,FALSE)),\"x\",VLOOKUP(Q101,Risikoberechnung!$A$2:$B$13,2,FALSE))","v":"x"},{"$nulls":3},1,{"$f":"IF(U101=Ergebnis!$C$4,0,(IF(U101=Ergebnis!$C$5,1,\"x\")))","v":"x"}]
[{"v":97,"d":"97."},{"$nulls":7},"","",{"$f":"IF(ISNA(VLOOKUP(J102,Risikoberechnung!$A$2:$B$13,2,FALSE)),\"x\",VLOOKUP(J102,Risikoberechnung!$A$2:$B$13,2,FALSE))","v":"x"},{"$nulls":4},"","",{"$f":"IF(ISNA(VLOOKUP(Q102,Risikoberechnung!$A$2:$B$13,2,FALSE)),\"x\",VLOOKUP(Q102,Risikoberechnung!$A$2:$B$13,2,FALSE))","v":"x"},{"$nulls":3},1,{"$f":"IF(U102=Ergebnis!$C$4,0,(IF(U102=Ergebnis!$C$5,1,\"x\")))","v":"x"}]
[{"v":98,"d":"98."},{"$nulls":7},"","",{"$f":"IF(ISNA(VLOOKUP(J103,Risikoberechnung!$A$2:$B$13,2,FALSE)),\"x\",VLOOKUP(J103,Risikoberechnung!$A$2:$B$13,2,FALSE))","v":"x"},{"$nulls":4},"","",{"$f":"IF(ISNA(VLOOKUP(Q103,Risikoberechnung!$A$2:$B$13,2,FALSE)),\"x\",VLOOKUP(Q103,Risikoberechnung!$A$2:$B$13,2,FALSE))","v":"x"},{"$nulls":3},1,{"$f":"IF(U103=Ergebnis!$C$4,0,(IF(U103=Ergebnis!$C$5,1,\"x\")))","v":"x"}]
[{"v":99,"d":"99."},{"$nulls":7},"","",{"$f":"IF(ISNA(VLOOKUP(J104,Risikoberechnung!$A$2:$B$13,2,FALSE)),\"x\",VLOOKUP(J104,Risikoberechnung!$A$2:$B$13,2,FALSE))","v":"x"},{"$nulls":4},"","",{"$f":"IF(ISNA(VLOOKUP(Q104,Risikoberechnung!$A$2:$B$13,2,FALSE)),\"x\",VLOOKUP(Q104,Risikoberechnung!$A$2:$B$13,2,FALSE))","v":"x"},{"$nulls":3},1,{"$f":"IF(U104=Ergebnis!$C$4,0,(IF(U104=Ergebnis!$C$5,1,\"x\")))","v":"x"}]
[{"v":100,"d":"100."},{"$nulls":7},"","",{"$f":"IF(ISNA(VLOOKUP(J105,Risikoberechnung!$A$2:$B$13,2,FALSE)),\"x\",VLOOKUP(J105,Risikoberechnung!$A$2:$B$13,2,FALSE))","v":"x"},{"$nulls":4},"","",{"$f":"IF(ISNA(VLOOKUP(Q105,Risikoberechnung!$A$2:$B$13,2,FALSE)),\"x\",VLOOKUP(Q105,Risikoberechnung!$A$2:$B$13,2,FALSE))","v":"x"},{"$nulls":3},1,{"$f":"IF(U105=Ergebnis!$C$4,0,(IF(U105=Ergebnis!$C$5,1,\"x\")))","v":"x"}]
[{"v":101,"d":"101."},{"$nulls":7},"","",{"$f":"IF(ISNA(VLOOKUP(J106,Risikoberechnung!$A$2:$B$13,2,FALSE)),\"x\",VLOOKUP(J106,Risikoberechnung!$A$2:$B$13,2,FALSE))","v":"x"},{"$nulls":4},"","",{"$f":"IF(ISNA(VLOOKUP(Q106,Risikoberechnung!$A$2:$B$13,2,FALSE)),\"x\",VLOOKUP(Q106,Risikoberechnung!$A$2:$B$13,2,FALSE))","v":"x"},{"$nulls":3},1,{"$f":"IF(U106=Ergebnis!$C$4,0,(IF(U106=Ergebnis!$C$5,1,\"x\")))","v":"x"}]
[{"v":102,"d":"102."},{"$nulls":7},"","",{"$f":"IF(ISNA(VLOOKUP(J107,Risikoberechnung!$A$2:$B$13,2,FALSE)),\"x\",VLOOKUP(J107,Risikoberechnung!$A$2:$B$13,2,FALSE))","v":"x"},{"$nulls":4},"","",{"$f":"IF(ISNA(VLOOKUP(Q107,Risikoberechnung!$A$2:$B$13,2,FALSE)),\"x\",VLOOKUP(Q107,Risikoberechnung!$A$2:$B$13,2,FALSE))","v":"x"},{"$nulls":3},1,{"$f":"IF(U107=Ergebnis!$C$4,0,(IF(U107=Ergebnis!$C$5,1,\"x\")))","v":"x"}]
[{"v":103,"d":"103."},{"$nulls":7},"","",{"$f":"IF(ISNA(VLOOKUP(J108,Risikoberechnung!$A$2:$B$13,2,FALSE)),\"x\",VLOOKUP(J108,Risikoberechnung!$A$2:$B$13,2,FALSE))","v":"x"},{"$nulls":4},"","",{"$f":"IF(ISNA(VLOOKUP(Q108,Risikoberechnung!$A$2:$B$13,2,FALSE)),\"x\",VLOOKUP(Q108,Risikoberechnung!$A$2:$B$13,2,FALSE))","v":"x"},{"$nulls":3},1,{"$f":"IF(U108=Ergebnis!$C$4,0,(IF(U108=Ergebnis!$C$5,1,\"x\")))","v":"x"}]
[{"v":104,"d":"104."},{"$nulls":7},"","",{"$f":"IF(ISNA(VLOOKUP(J109,Risikoberechnung!$A$2:$B$13,2,FALSE)),\"x\",VLOOKUP(J109,Risikoberechnung!$A$2:$B$13,2,FALSE))","v":"x"},{"$nulls":4},"","",{"$f":"IF(ISNA(VLOOKUP(Q109,Risikoberechnung!$A$2:$B$13,2,FALSE)),\"x\",VLOOKUP(Q109,Risikoberechnung!$A$2:$B$13,2,FALSE))","v":"x"},{"$nulls":3},1,{"$f":"IF(U109=Ergebnis!$C$4,0,(IF(U109=Ergebnis!$C$5,1,\"x\")))","v":"x"}]
[{"v":105,"d":"105."},{"$nulls":7},"","",{"$f":"IF(ISNA(VLOOKUP(J110,Risikoberechnung!$A$2:$B$13,2,FALSE)),\"x\",VLOOKUP(J110,Risikoberechnung!$A$2:$B$13,2,FALSE))","v":"x"},{"$nulls":4},"","",{"$f":"IF(ISNA(VLOOKUP(Q110,Risikoberechnung!$A$2:$B$13,2,FALSE)),\"x\",VLOOKUP(Q110,Risikoberechnung!$A$2:$B$13,2,FALSE))","v":"x"},{"$nulls":3},1,{"$f":"IF(U110=Ergebnis!$C$4,0,(IF(U110=Ergebnis!$C$5,1,\"x\")))","v":"x"}]
[{"v":106,"d":"106."},{"$nulls":7},"","",{"$f":"IF(ISNA(VLOOKUP(J111,Risikoberechnung!$A$2:$B$13,2,FALSE)),\"x\",VLOOKUP(J111,Risikoberechnung!$A$2:$B$13,2,FALSE))","v":"x"},{"$nulls":4},"","",{"$f":"IF(ISNA(VLOOKUP(Q111,Risikoberechnung!$A$2:$B$13,2,FALSE)),\"x\",VLOOKUP(Q111,Risikoberechnung!$A$2:$B$13,2,FALSE))","v":"x"},{"$nulls":3},1,{"$f":"IF(U111=Ergebnis!$C$4,0,(IF(U111=Ergebnis!$C$5,1,\"x\")))","v":"x"}]
[{"v":107,"d":"107."},{"$nulls":7},"","",{"$f":"IF(ISNA(VLOOKUP(J112,Risikoberechnung!$A$2:$B$13,2,FALSE)),\"x\",VLOOKUP(J112,Risikoberechnung!$A$2:$B$13,2,FALSE))","v":"x"},{"$nulls":4},"","",{"$f":"IF(ISNA(VLOOKUP(Q112,Risikoberechnung!$A$2:$B$13,2,FALSE)),\"x\",VLOOKUP(Q112,Risikoberechnung!$A$2:$B$13,2,FALSE))","v":"x"},{"$nulls":3},1,{"$f":"IF(U112=Ergebnis!$C$4,0,(IF(U112=Ergebnis!$C$5,1,\"x\")))","v":"x"}]
[{"v":108,"d":"108."},{"$nulls":7},"","",{"$f":"IF(ISNA(VLOOKUP(J113,Risikoberechnung!$A$2:$B$13,2,FALSE)),\"x\",VLOOKUP(J113,Risikoberechnung!$A$2:$B$13,2,FALSE))","v":"x"},{"$nulls":4},"","",{"$f":"IF(ISNA(VLOOKUP(Q113,Risikoberechnung!$A$2:$B$13,2,FALSE)),\"x\",VLOOKUP(Q113,Risikoberechnung!$A$2:$B$13,2,FALSE))","v":"x"},{"$nulls":3},1,{"$f":"IF(U113=Ergebnis!$C$4,0,(IF(U113=Ergebnis!$C$5,1,\"x\")))","v":"x"}]
[{"v":109,"d":"109."},{"$nulls":7},"","",{"$f":"IF(ISNA(VLOOKUP(J114,Risikoberechnung!$A$2:$B$13,2,FALSE)),\"x\",VLOOKUP(J114,Risikoberechnung!$A$2:$B$13,2,FALSE))","v":"x"},{"$nulls":4},"","",{"$f":"IF(ISNA(VLOOKUP(Q114,Risikoberechnung!$A$2:$B$13,2,FALSE)),\"x\",VLOOKUP(Q114,Risikoberechnung!$A$2:$B$13,2,FALSE))","v":"x"},{"$nulls":3},1,{"$f":"IF(U114=Ergebnis!$C$4,0,(IF(U114=Ergebnis!$C$5,1,\"x\")))","v":"x"}]
[{"v":110,"d":"110."},{"$nulls":7},"","",{"$f":"IF(ISNA(VLOOKUP(J115,Risikoberechnung!$A$2:$B$13,2,FALSE)),\"x\",VLOOKUP(J115,Risikoberechnung!$A$2:$B$13,2,FALSE))","v":"x"},{"$nulls":4},"","",{"$f":"IF(ISNA(VLOOKUP(Q115,Risikoberechnung!$A$2:$B$13,2,FALSE)),\"x\",VLOOKUP(Q115,Risikoberechnung!$A$2:$B$13,2,FALSE))","v":"x"},{"$nulls":3},1,{"$f":"IF(U115=Ergebnis!$C$4,0,(IF(U115=Ergebnis!$C$5,1,\"x\")))","v":"x"}]
[{"v":111,"d":"111."},{"$nulls":7},"","",{"$f":"IF(ISNA(VLOOKUP(J116,Risikoberechnung!$A$2:$B$13,2,FALSE)),\"x\",VLOOKUP(J116,Risikoberechnung!$A$2:$B$13,2,FALSE))","v":"x"},{"$nulls":4},"","",{"$f":"IF(ISNA(VLOOKUP(Q116,Risikoberechnung!$A$2:$B$13,2,FALSE)),\"x\",VLOOKUP(Q116,Risikoberechnung!$A$2:$B$13,2,FALSE))","v":"x"},{"$nulls":3},1,{"$f":"IF(U116=Ergebnis!$C$4,0,(IF(U116=Ergebnis!$C$5,1,\"x\")))","v":"x"}]
[{"v":112,"d":"112."},{"$nulls":7},"","",{"$f":"IF(ISNA(VLOOKUP(J117,Risikoberechnung!$A$2:$B$13,2,FALSE)),\"x\",VLOOKUP(J117,Risikoberechnung!$A$2:$B$13,2,FALSE))","v":"x"},{"$nulls":4},"","",{"$f":"IF(ISNA(VLOOKUP(Q117,Risikoberechnung!$A$2:$B$13,2,FALSE)),\"x\",VLOOKUP(Q117,Risikoberechnung!$A$2:$B$13,2,FALSE))","v":"x"},{"$nulls":3},1,{"$f":"IF(U117=Ergebnis!$C$4,0,(IF(U117=Ergebnis!$C$5,1,\"x\")))","v":"x"}]
[{"v":113,"d":"113."},{"$nulls":7},"","",{"$f":"IF(ISNA(VLOOKUP(J118,Risikoberechnung!$A$2:$B$13,2,FALSE)),\"x\",VLOOKUP(J118,Risikoberechnung!$A$2:$B$13,2,FALSE))","v":"x"},{"$nulls":4},"","",{"$f":"IF(ISNA(VLOOKUP(Q118,Risikoberechnung!$A$2:$B$13,2,FALSE)),\"x\",VLOOKUP(Q118,Risikoberechnung!$A$2:$B$13,2,FALSE))","v":"x"},{"$nulls":3},1,{"$f":"IF(U118=Ergebnis!$C$4,0,(IF(U118=Ergebnis!$C$5,1,\"x\")))","v":"x"}]
[{"v":114,"d":"114."},{"$nulls":7},"","",{"$f":"IF(ISNA(VLOOKUP(J119,Risikoberechnung!$A$2:$B$13,2,FALSE)),\"x\",VLOOKUP(J119,Risikoberechnung!$A$2:$B$13,2,FALSE))","v":"x"},{"$nulls":4},"","",{"$f":"IF(ISNA(VLOOKUP(Q119,Risikoberechnung!$A$2:$B$13,2,FALSE)),\"x\",VLOOKUP(Q119,Risikoberechnung!$A$2:$B$13,2,FALSE))","v":"x"},{"$nulls":3},1,{"$f":"IF(U119=Ergebnis!$C$4,0,(IF(U119=Ergebnis!$C$5,1,\"x\")))","v":"x"}]
[{"v":115,"d":"115."},{"$nulls":7},"","",{"$f":"IF(ISNA(VLOOKUP(J120,Risikoberechnung!$A$2:$B$13,2,FALSE)),\"x\",VLOOKUP(J120,Risikoberechnung!$A$2:$B$13,2,FALSE))","v":"x"},{"$nulls":4},"","",{"$f":"IF(ISNA(VLOOKUP(Q120,Risikoberechnung!$A$2:$B$13,2,FALSE)),\"x\",VLOOKUP(Q120,Risikoberechnung!$A$2:$B$13,2,FALSE))","v":"x"},{"$nulls":3},1,{"$f":"IF(U120=Ergebnis!$C$4,0,(IF(U120=Ergebnis!$C$5,1,\"x\")))","v":"x"}]
[{"v":116,"d":"116."},{"$nulls":7},"","",{"$f":"IF(ISNA(VLOOKUP(J121,Risikoberechnung!$A$2:$B$13,2,FALSE)),\"x\",VLOOKUP(J121,Risikoberechnung!$A$2:$B$13,2,FALSE))","v":"x"},{"$nulls":4},"","",{"$f":"IF(ISNA(VLOOKUP(Q121,Risikoberechnung!$A$2:$B$13,2,FALSE)),\"x\",VLOOKUP(Q121,Risikoberechnung!$A$2:$B$13,2,FALSE))","v":"x"},{"$nulls":3},1,{"$f":"IF(U121=Ergebnis!$C$4,0,(IF(U121=Ergebnis!$C$5,1,\"x\")))","v":"x"}]
[{"v":117,"d":"117."},{"$nulls":7},"",{"$f":"I122","v":""},{"$f":"IF(ISNA(VLOOKUP(J122,Risikoberechnung!$A$2:$B$13,2,FALSE)),\"x\",VLOOKUP(J122,Risikoberechnung!$A$2:$B$13,2,FALSE))","v":"x"},{"$nulls":4},"","",{"$f":"IF(ISNA(VLOOKUP(Q122,Risikoberechnung!$A$2:$B$13,2,FALSE)),\"x\",VLOOKUP(Q122,Risikoberechnung!$A$2:$B$13,2,FALSE))","v":"x"},{"$nulls":3},1,{"$f":"IF(U122=Ergebnis!$C$4,0,(IF(U122=Ergebnis!$C$5,1,\"x\")))","v":"x"}]
[{"v":118,"d":"118."},{"$nulls":7},"","",{"$f":"IF(ISNA(VLOOKUP(J123,Risikoberechnung!$A$2:$B$13,2,FALSE)),\"x\",VLOOKUP(J123,Risikoberechnung!$A$2:$B$13,2,FALSE))","v":"x"},{"$nulls":4},"","",{"$f":"IF(ISNA(VLOOKUP(Q123,Risikoberechnung!$A$2:$B$13,2,FALSE)),\"x\",VLOOKUP(Q123,Risikoberechnung!$A$2:$B$13,2,FALSE))","v":"x"},{"$nulls":3},1,{"$f":"IF(U123=Ergebnis!$C$4,0,(IF(U123=Ergebnis!$C$5,1,\"x\")))","v":"x"}]
[{"v":119,"d":"119."},{"$nulls":7},"","",{"$f":"IF(ISNA(VLOOKUP(J124,Risikoberechnung!$A$2:$B$13,2,FALSE)),\"x\",VLOOKUP(J124,Risikoberechnung!$A$2:$B$13,2,FALSE))","v":"x"},{"$nulls":4},"","",{"$f":"IF(ISNA(VLOOKUP(Q124,Risikoberechnung!$A$2:$B$13,2,FALSE)),\"x\",VLOOKUP(Q124,Risikoberechnung!$A$2:$B$13,2,FALSE))","v":"x"},{"$nulls":3},1,{"$f":"IF(U124=Ergebnis!$C$4,0,(IF(U124=Ergebnis!$C$5,1,\"x\")))","v":"x"}]
[{"v":120,"d":"120."},{"$nulls":7},"","",{"$f":"IF(ISNA(VLOOKUP(J125,Risikoberechnung!$A$2:$B$13,2,FALSE)),\"x\",VLOOKUP(J125,Risikoberechnung!$A$2:$B$13,2,FALSE))","v":"x"},{"$nulls":4},"","",{"$f":"IF(ISNA(VLOOKUP(Q125,Risikoberechnung!$A$2:$B$13,2,FALSE)),\"x\",VLOOKUP(Q125,Risikoberechnung!$A$2:$B$13,2,FALSE))","v":"x"},{"$nulls":3},1,{"$f":"IF(U125=Ergebnis!$C$4,0,(IF(U125=Ergebnis!$C$5,1,\"x\")))","v":"x"}]
[{"v":121,"d":"121."},{"$nulls":7},"","",{"$f":"IF(ISNA(VLOOKUP(J126,Risikoberechnung!$A$2:$B$13,2,FALSE)),\"x\",VLOOKUP(J126,Risikoberechnung!$A$2:$B$13,2,FALSE))","v":"x"},{"$nulls":4},"","",{"$f":"IF(ISNA(VLOOKUP(Q126,Risikoberechnung!$A$2:$B$13,2,FALSE)),\"x\",VLOOKUP(Q126,Risikoberechnung!$A$2:$B$13,2,FALSE))","v":"x"},{"$nulls":3},1,{"$f":"IF(U126=Ergebnis!$C$4,0,(IF(U126=Ergebnis!$C$5,1,\"x\")))","v":"x"}]
[{"v":122,"d":"122."},{"$nulls":7},"","",{"$f":"IF(ISNA(VLOOKUP(J127,Risikoberechnung!$A$2:$B$13,2,FALSE)),\"x\",VLOOKUP(J127,Risikoberechnung!$A$2:$B$13,2,FALSE))","v":"x"},{"$nulls":4},"","",{"$f":"IF(ISNA(VLOOKUP(Q127,Risikoberechnung!$A$2:$B$13,2,FALSE)),\"x\",VLOOKUP(Q127,Risikoberechnung!$A$2:$B$13,2,FALSE))","v":"x"},{"$nulls":3},1,{"$f":"IF(U127=Ergebnis!$C$4,0,(IF(U127=Ergebnis!$C$5,1,\"x\")))","v":"x"}]
[{"v":123,"d":"123."},{"$nulls":7},"","",{"$f":"IF(ISNA(VLOOKUP(J128,Risikoberechnung!$A$2:$B$13,2,FALSE)),\"x\",VLOOKUP(J128,Risikoberechnung!$A$2:$B$13,2,FALSE))","v":"x"},{"$nulls":4},"","",{"$f":"IF(ISNA(VLOOKUP(Q128,Risikoberechnung!$A$2:$B$13,2,FALSE)),\"x\",VLOOKUP(Q128,Risikoberechnung!$A$2:$B$13,2,FALSE))","v":"x"},{"$nulls":3},1,{"$f":"IF(U128=Ergebnis!$C$4,0,(IF(U128=Ergebnis!$C$5,1,\"x\")))","v":"x"}]
[{"v":124,"d":"124."},{"$nulls":7},"","",{"$f":"IF(ISNA(VLOOKUP(J129,Risikoberechnung!$A$2:$B$13,2,FALSE)),\"x\",VLOOKUP(J129,Risikoberechnung!$A$2:$B$13,2,FALSE))","v":"x"},{"$nulls":4},"","",{"$f":"IF(ISNA(VLOOKUP(Q129,Risikoberechnung!$A$2:$B$13,2,FALSE)),\"x\",VLOOKUP(Q129,Risikoberechnung!$A$2:$B$13,2,FALSE))","v":"x"},{"$nulls":3},1,{"$f":"IF(U129=Ergebnis!$C$4,0,(IF(U129=Ergebnis!$C$5,1,\"x\")))","v":"x"}]
[{"v":125,"d":"125."},{"$nulls":7},"","",{"$f":"IF(ISNA(VLOOKUP(J130,Risikoberechnung!$A$2:$B$13,2,FALSE)),\"x\",VLOOKUP(J130,Risikoberechnung!$A$2:$B$13,2,FALSE))","v":"x"},{"$nulls":4},"","",{"$f":"IF(ISNA(VLOOKUP(Q130,Risikoberechnung!$A$2:$B$13,2,FALSE)),\"x\",VLOOKUP(Q130,Risikoberechnung!$A$2:$B$13,2,FALSE))","v":"x"},{"$nulls":3},1,{"$f":"IF(U130=Ergebnis!$C$4,0,(IF(U130=Ergebnis!$C$5,1,\"x\")))","v":"x"}]
[{"v":126,"d":"126."},{"$nulls":7},"","",{"$f":"IF(ISNA(VLOOKUP(J131,Risikoberechnung!$A$2:$B$13,2,FALSE)),\"x\",VLOOKUP(J131,Risikoberechnung!$A$2:$B$13,2,FALSE))","v":"x"},{"$nulls":4},"","",{"$f":"IF(ISNA(VLOOKUP(Q131,Risikoberechnung!$A$2:$B$13,2,FALSE)),\"x\",VLOOKUP(Q131,Risikoberechnung!$A$2:$B$13,2,FALSE))","v":"x"},{"$nulls":3},1,{"$f":"IF(U131=Ergebnis!$C$4,0,(IF(U131=Ergebnis!$C$5,1,\"x\")))","v":"x"}]
[{"v":127,"d":"127."},{"$nulls":7},"","",{"$f":"IF(ISNA(VLOOKUP(J132,Risikoberechnung!$A$2:$B$13,2,FALSE)),\"x\",VLOOKUP(J132,Risikoberechnung!$A$2:$B$13,2,FALSE))","v":"x"},{"$nulls":4},"","",{"$f":"IF(ISNA(VLOOKUP(Q132,Risikoberechnung!$A$2:$B$13,2,FALSE)),\"x\",VLOOKUP(Q132,Risikoberechnung!$A$2:$B$13,2,FALSE))","v":"x"},{"$nulls":3},1,{"$f":"IF(U132=Ergebnis!$C$4,0,(IF(U132=Ergebnis!$C$5,1,\"x\")))","v":"x"}]
[{"v":128,"d":"128."},{"$nulls":7},"","",{"$f":"IF(ISNA(VLOOKUP(J133,Risikoberechnung!$A$2:$B$13,2,FALSE)),\"x\",VLOOKUP(J133,Risikoberechnung!$A$2:$B$13,2,FALSE))","v":"x"},{"$nulls":4},"","",{"$f":"IF(ISNA(VLOOKUP(Q133,Risikoberechnung!$A$2:$B$13,2,FALSE)),\"x\",VLOOKUP(Q133,Risikoberechnung!$A$2:$B$13,2,FALSE))","v":"x"},{"$nulls":3},1,{"$f":"IF(U133=Ergebnis!$C$4,0,(IF(U133=Ergebnis!$C$5,1,\"x\")))","v":"x"}]
[{"v":129,"d":"129."},{"$nulls":7},"","",{"$f":"IF(ISNA(VLOOKUP(J134,Risikoberechnung!$A$2:$B$13,2,FALSE)),\"x\",VLOOKUP(J134,Risikoberechnung!$A$2:$B$13,2,FALSE))","v":"x"},{"$nulls":4},"","",{"$f":"IF(ISNA(VLOOKUP(Q134,Risikoberechnung!$A$2:$B$13,2,FALSE)),\"x\",VLOOKUP(Q134,Risikoberechnung!$A$2:$B$13,2,FALSE))","v":"x"},{"$nulls":3},1,{"$f":"IF(U134=Ergebnis!$C$4,0,(IF(U134=Ergebnis!$C$5,1,\"x\")))","v":"x"}]
[{"$f":"ROW()-5","v":{"v":130,"d":"130."}},{"$nulls":7},{"$f":"CONCATENATE(G135,H135)","v":""},"",{"$f":"IF(ISNA(VLOOKUP(J135,Risikoberechnung!$A$2:$B$13,2,FALSE)),\"x\",VLOOKUP(J135,Risikoberechnung!$A$2:$B$13,2,FALSE))","v":"x"},{"$nulls":4},{"$f":"CONCATENATE(N135,O135)","v":""},"",{"$f":"IF(ISNA(VLOOKUP(Q135,Risikoberechnung!$A$2:$B$13,2,FALSE)),\"x\",VLOOKUP(Q135,Risikoberechnung!$A$2:$B$13,2,FALSE))","v":"x"},{"$nulls":3},1,{"$f":"IF(U135=Ergebnis!$C$4,0,(IF(U135=Ergebnis!$C$5,1,\"x\")))","v":"x"}]
[{"v":131,"d":"131."},{"$nulls":7},"","",{"$f":"IF(ISNA(VLOOKUP(J136,Risikoberechnung!$A$2:$B$13,2,FALSE)),\"x\",VLOOKUP(J136,Risikoberechnung!$A$2:$B$13,2,FALSE))","v":"x"},{"$nulls":4},"","",{"$f":"IF(ISNA(VLOOKUP(Q136,Risikoberechnung!$A$2:$B$13,2,FALSE)),\"x\",VLOOKUP(Q136,Risikoberechnung!$A$2:$B$13,2,FALSE))","v":"x"},{"$nulls":3},1,{"$f":"IF(U136=Ergebnis!$C$4,0,(IF(U136=Ergebnis!$C$5,1,\"x\")))","v":"x"}]
[{"v":132,"d":"132."},{"$nulls":7},"","",{"$f":"IF(ISNA(VLOOKUP(J137,Risikoberechnung!$A$2:$B$13,2,FALSE)),\"x\",VLOOKUP(J137,Risikoberechnung!$A$2:$B$13,2,FALSE))","v":"x"},{"$nulls":4},"","",{"$f":"IF(ISNA(VLOOKUP(Q137,Risikoberechnung!$A$2:$B$13,2,FALSE)),\"x\",VLOOKUP(Q137,Risikoberechnung!$A$2:$B$13,2,FALSE))","v":"x"},{"$nulls":3},1,{"$f":"IF(U137=Ergebnis!$C$4,0,(IF(U137=Ergebnis!$C$5,1,\"x\")))","v":"x"}]
[{"v":133,"d":"133."},{"$nulls":7},"","",{"$f":"IF(ISNA(VLOOKUP(J138,Risikoberechnung!$A$2:$B$13,2,FALSE)),\"x\",VLOOKUP(J138,Risikoberechnung!$A$2:$B$13,2,FALSE))","v":"x"},{"$nulls":4},"","",{"$f":"IF(ISNA(VLOOKUP(Q138,Risikoberechnung!$A$2:$B$13,2,FALSE)),\"x\",VLOOKUP(Q138,Risikoberechnung!$A$2:$B$13,2,FALSE))","v":"x"},{"$nulls":3},1,{"$f":"IF(U138=Ergebnis!$C$4,0,(IF(U138=Ergebnis!$C$5,1,\"x\")))","v":"x"}]
[{"v":134,"d":"134."},{"$nulls":7},"","",{"$f":"IF(ISNA(VLOOKUP(J139,Risikoberechnung!$A$2:$B$13,2,FALSE)),\"x\",VLOOKUP(J139,Risikoberechnung!$A$2:$B$13,2,FALSE))","v":"x"},{"$nulls":4},"","",{"$f":"IF(ISNA(VLOOKUP(Q139,Risikoberechnung!$A$2:$B$13,2,FALSE)),\"x\",VLOOKUP(Q139,Risikoberechnung!$A$2:$B$13,2,FALSE))","v":"x"},{"$nulls":3},1,{"$f":"IF(U139=Ergebnis!$C$4,0,(IF(U139=Ergebnis!$C$5,1,\"x\")))","v":"x"}]
[{"v":135,"d":"135."},{"$nulls":7},"","",{"$f":"IF(ISNA(VLOOKUP(J140,Risikoberechnung!$A$2:$B$13,2,FALSE)),\"x\",VLOOKUP(J140,Risikoberechnung!$A$2:$B$13,2,FALSE))","v":"x"},{"$nulls":4},"","",{"$f":"IF(ISNA(VLOOKUP(Q140,Risikoberechnung!$A$2:$B$13,2,FALSE)),\"x\",VLOOKUP(Q140,Risikoberechnung!$A$2:$B$13,2,FALSE))","v":"x"},{"$nulls":3},1,{"$f":"IF(U140=Ergebnis!$C$4,0,(IF(U140=Ergebnis!$C$5,1,\"x\")))","v":"x"}]
[{"v":136,"d":"136."},{"$nulls":7},"","",{"$f":"IF(ISNA(VLOOKUP(J141,Risikoberechnung!$A$2:$B$13,2,FALSE)),\"x\",VLOOKUP(J141,Risikoberechnung!$A$2:$B$13,2,FALSE))","v":"x"},{"$nulls":4},"","",{"$f":"IF(ISNA(VLOOKUP(Q141,Risikoberechnung!$A$2:$B$13,2,FALSE)),\"x\",VLOOKUP(Q141,Risikoberechnung!$A$2:$B$13,2,FALSE))","v":"x"},{"$nulls":3},1,{"$f":"IF(U141=Ergebnis!$C$4,0,(IF(U141=Ergebnis!$C$5,1,\"x\")))","v":"x"}]
[{"v":137,"d":"137."},{"$nulls":7},"","",{"$f":"IF(ISNA(VLOOKUP(J142,Risikoberechnung!$A$2:$B$13,2,FALSE)),\"x\",VLOOKUP(J142,Risikoberechnung!$A$2:$B$13,2,FALSE))","v":"x"},{"$nulls":4},"","",{"$f":"IF(ISNA(VLOOKUP(Q142,Risikoberechnung!$A$2:$B$13,2,FALSE)),\"x\",VLOOKUP(Q142,Risikoberechnung!$A$2:$B$13,2,FALSE))","v":"x"},{"$nulls":3},1,{"$f":"IF(U142=Ergebnis!$C$4,0,(IF(U142=Ergebnis!$C$5,1,\"x\")))","v":"x"}]

{"sheet":"Risikomatrix","index":2,"n_rows":140,"n_cols":23,"rows_kept":140,"merged":[[1,1,1,3],[1,4,1,6],[2,9,2,13],[2,18,2,22],[3,8,11,8],[3,9,5,9],[3,10,5,10],[3,11,5,11],[3,12,5,12],[3,13,5,13],[3,17,11,17],[3,18,5,18],[3,19,5,19],[3,20,5,20],[3,21,5,21],[3,22,5,22],[6,9,8,9],[6,10,8,10],[6,11,8,11],[6,12,8,12],[6,13,8,13],[6,18,8,18],[6,19,8,19],[6,20,8,20],[6,21,8,21],[6,22,8,22],[9,9,11,9],[9,10,11,10],[9,11,11,11],[9,12,11,12],[9,13,11,13],[9,18,11,18],[9,19,11,19],[9,20,11,20],[9,21,11,21],[9,22,11,22],[12,10,14,10],[12,11,14,11],[12,12,14,12],[12,13,14,13],[12,19,14,19],[12,20,14,20],[12,21,14,21],[12,22,14,22],[15,10,15,13],[15,19,15,22],[19,9,19,13],[19,18,19,22],[20,8,28,8],[20,9,22,9],[20,10,22,10],[20,11,22,11],[20,12,22,12],[20,13,22,13],[20,17,28,17],[20,18,22,18],[20,19,22,19],[20,20,22,20],[20,21,22,21],[20,22,22,22],[23,9,25,9],[23,10,25,10],[23,11,25,11],[23,12,25,12],[23,13,25,13],[23,18,25,18],[23,19,25,19],[23,20,25,20],[23,21,25,21],[23,22,25,22],[26,9,28,9],[26,10,28,10],[26,11,28,11],[26,12,28,12],[26,13,28,13],[26,18,28,18],[26,19,28,19],[26,20,28,20],[26,21,28,21],[26,22,28,22],[29,10,31,10],[29,11,31,11],[29,12,31,12],[29,13,31,13],[29,19,31,19],[29,20,31,20],[29,21,31,21],[29,22,31,22],[32,10,32,13],[32,19,32,22]]}
[]
[null,"Vor Maßnahmenplaung",null,null,"nach Maßnahmenplanung"]
["Verfahren/ Prozess","Schaden","Wahrschein-lichkeit","Risikoein-schätzung","Schaden","Wahrschein-lichkeit","Risikoein-schätzung",null,null,"Risikomatrix vor Maßnahmenplanung",{"$nulls":8},"Risikomatrix vor Maßnahmenplanung"]
[{"$f":"DSFA!A6","v":1},{"$f":"IF(ISNA(VLOOKUP(DSFA!G6,Risikoberechnung!$H$2:$I$5,2,FALSE)),\"\",VLOOKUP(DSFA!G6,Risikoberechnung!$H$2:$I$5,2,FALSE))","v":""},{"$f":"IF(ISNA(VLOOKUP(DSFA!H6,Risikoberechnung!$H$2:$I$6,2,FALSE)),\"0\",VLOOKUP(DSFA!H6,Risikoberechnung!$H$2:$I$6,2,FALSE))","v":"0"},{"$f":"DSFA!K6","v":"x"},{"$f":"IF(ISNA(VLOOKUP(DSFA!N6,Risikoberechnung!$H$2:$I$6,2,FALSE)),\"\",VLOOKUP(DSFA!N6,Risikoberechnung!$H$2:$I$6,2,FALSE))","v":""},{"$f":"IF(ISNA(VLOOKUP(DSFA!O6,Risikoberechnung!$H$2:$I$6,2,FALSE)),\"\",VLOOKUP(DSFA!O6,Risikoberechnung!$H$2:$I$6,2,FALSE))","v":""},{"$f":"DSFA!R6","v":"x"},null,"Eintrittswahrscheinlichkeit","hoch",{"$f":"IF(T4>0,\"X\",\"\")","v":""},{"$f":"IF(U4>0,\"X\",\"\")","v":""},{"$f":"IF(V4>0,\"X\",\"\")","v":""},{"$f":"IF(W4>0,\"X\",\"\")","v":""},{"$nulls":3},"Eintrittswahrscheinlichkeit","hoch",{"$f":"Risikomatrix2!C3","v":0},{"$f":"Risikomatrix2!D3","v":0},{"$f":"Risikomatrix2!E3","v":0},{"$f":"Risikomatrix2!F3","v":0}]
[{"$f":"DSFA!A7","v":2},{"$f":"IF(ISNA(VLOOKUP(DSFA!G7,Risikoberechnung!$H$2:$I$5,2,FALSE)),\"\",VLOOKUP(DSFA!G7,Risikoberechnung!$H$2:$I$5,2,FALSE))","v":""},{"$f":"IF(ISNA(VLOOKUP(DSFA!H7,Risikoberechnung!$H$2:$I$6,2,FALSE)),\"0\",VLOOKUP(DSFA!H7,Risikoberechnung!$H$2:$I$6,2,FALSE))","v":"0"},{"$f":"DSFA!K7","v":"x"},{"$f":"IF(ISNA(VLOOKUP(DSFA!N7,Risikoberechnung!$H$2:$I$6,2,FALSE)),\"\",VLOOKUP(DSFA!N7,Risikoberechnung!$H$2:$I$6,2,FALSE))","v":""},{"$f":"IF(ISNA(VLOOKUP(DSFA!O7,Risikoberechnung!$H$2:$I$6,2,FALSE)),\"\",VLOOKUP(DSFA!O7,Risikoberechnung!$H$2:$I$6,2,FALSE))","v":""},{"$f":"DSFA!R7","v":"x"},{"$nulls":8},"Kein Risiko","x"]
[{"$f":"DSFA!A8","v":3},{"$f":"IF(ISNA(VLOOKUP(DSFA!G8,Risikoberechnung!$H$2:$I$5,2,FALSE)),\"\",VLOOKUP(DSFA!G8,Risikoberechnung!$H$2:$I$5,2,FALSE))","v":""},{"$f":"IF(ISNA(VLOOKUP(DSFA!H8,Risikoberechnung!$H$2:$I$6,2,FALSE)),\"0\",VLOOKUP(DSFA!H8,Risikoberechnung!$H$2:$I$6,2,FALSE))","v":"0"},{"$f":"DSFA!K8","v":"x"},{"$f":"IF(ISNA(VLOOKUP(DSFA!N8,Risikoberechnung!$H$2:$I$6,2,FALSE)),\"\",VLOOKUP(DSFA!N8,Risikoberechnung!$H$2:$I$6,2,FALSE))","v":""},{"$f":"IF(ISNA(VLOOKUP(DSFA!O8,Risikoberechnung!$H$2:$I$6,2,FALSE)),\"\",VLOOKUP(DSFA!O8,Risikoberechnung!$H$2:$I$6,2,FALSE))","v":""},{"$f":"DSFA!R8","v":"x"},{"$nulls":8},"Voraussichtlich kein Risiko","x"]
[{"$f":"DSFA!A9","v":4},{"$f":"IF(ISNA(VLOOKUP(DSFA!G9,Risikoberechnung!$H$2:$I$5,2,FALSE)),\"\",VLOOKUP(DSFA!G9,Risikoberechnung!$H$2:$I$5,2,FALSE))","v":""},{"$f":"IF(ISNA(VLOOKUP(DSFA!H9,Risikoberechnung!$H$2:$I$6,2,FALSE)),\"0\",VLOOKUP(DSFA!H9,Risikoberechnung!$H$2:$I$6,2,FALSE))","v":"0"},{"$f":"DSFA!K9","v":"x"},{"$f":"IF(ISNA(VLOOKUP(DSFA!N9,Risikoberechnung!$H$2:$I$6,2,FALSE)),\"\",VLOOKUP(DSFA!N9,Risikoberechnung!$H$2:$I$6,2,FALSE))","v":""},{"$f":"IF(ISNA(VLOOKUP(DSFA!O9,Risikoberechnung!$H$2:$I$6,2,FALSE)),\"\",VLOOKUP(DSFA!O9,Risikoberechnung!$H$2:$I$6,2,FALSE))","v":""},{"$f":"DSFA!R9","v":"x"},null,null,"mittel",{"$f":"IF(T7>0,\"X\",\"\")","v":""},{"$f":"IF(U7>0,\"X\",\"\")","v":""},{"$f":"IF(V7>0,\"X\",\"\")","v":""},{"$f":"IF(W7>0,\"X\",\"\")","v":""},null,"(Normales) Risiko","x",null,"mittel",{"$f":"Risikomatrix2!C4","v":0},{"$f":"Risikomatrix2!D4","v":0},{"$f":"Risikomatrix2!E4","v":0},{"$f":"Risikomatrix2!F4","v":0}]
[{"$f":"DSFA!A10","v":5},{"$f":"IF(ISNA(VLOOKUP(DSFA!G10,Risikoberechnung!$H$2:$I$5,2,FALSE)),\"\",VLOOKUP(DSFA!G10,Risikoberechnung!$H$2:$I$5,2,FALSE))","v":""},{"$f":"IF(ISNA(VLOOKUP(DSFA!H10,Risikoberechnung!$H$2:$I$6,2,FALSE)),\"0\",VLOOKUP(DSFA!H10,Risikoberechnung!$H$2:$I$6,2,FALSE))","v":"0"},{"$f":"DSFA!K10","v":"x"},{"$f":"IF(ISNA(VLOOKUP(DSFA!N10,Risikoberechnung!$H$2:$I$6,2,FALSE)),\"\",VLOOKUP(DSFA!N10,Risikoberechnung!$H$2:$I$6,2,FALSE))","v":""},{"$f":"IF(ISNA(VLOOKUP(DSFA!O10,Risikoberechnung!$H$2:$I$6,2,FALSE)),\"\",VLOOKUP(DSFA!O10,Risikoberechnung!$H$2:$I$6,2,FALSE))","v":""},{"$f":"DSFA!R10","v":"x"},{"$nulls":8},"Erhebliches Risiko","x"]
[{"$f":"DSFA!A11","v":6},{"$f":"IF(ISNA(VLOOKUP(DSFA!G11,Risikoberechnung!$H$2:$I$5,2,FALSE)),\"\",VLOOKUP(DSFA!G11,Risikoberechnung!$H$2:$I$5,2,FALSE))","v":""},{"$f":"IF(ISNA(VLOOKUP(DSFA!H11,Risikoberechnung!$H$2:$I$6,2,FALSE)),\"0\",VLOOKUP(DSFA!H11,Risikoberechnung!$H$2:$I$6,2,FALSE))","v":"0"},{"$f":"DSFA!K11","v":"x"},{"$f":"IF(ISNA(VLOOKUP(DSFA!N11,Risikoberechnung!$H$2:$I$6,2,FALSE)),\"\",VLOOKUP(DSFA!N11,Risikoberechnung!$H$2:$I$6,2,FALSE))","v":""},{"$f":"IF(ISNA(VLOOKUP(DSFA!O11,Risikoberechnung!$H$2:$I$6,2,FALSE)),\"\",VLOOKUP(DSFA!O11,Risikoberechnung!$H$2:$I$6,2,FALSE))","v":""},{"$f":"DSFA!R11","v":"x"},{"$nulls":8},"Hohes Risiko","x"]
[{"$f":"DSFA!A12","v":7},{"$f":"IF(ISNA(VLOOKUP(DSFA!G12,Risikoberechnung!$H$2:$I$5,2,FALSE)),\"\",VLOOKUP(DSFA!G12,Risikoberechnung!$H$2:$I$5,2,FALSE))","v":""},{"$f":"IF(ISNA(VLOOKUP(DSFA!H12,Risikoberechnung!$H$2:$I$6,2,FALSE)),\"0\",VLOOKUP(DSFA!H12,Risikoberechnung!$H$2:$I$6,2,FALSE))","v":"0"},{"$f":"DSFA!K12","v":"x"},{"$f":"IF(ISNA(VLOOKUP(DSFA!N12,Risikoberechnung!$H$2:$I$6,2,FALSE)),\"\",VLOOKUP(DSFA!N12,Risikoberechnung!$H$2:$I$6,2,FALSE))","v":""},{"$f":"IF(ISNA(VLOOKUP(DSFA!O12,Risikoberechnung!$H$2:$I$6,2,FALSE)),\"\",VLOOKUP(DSFA!O12,Risikoberechnung!$H$2:$I$6,2,FALSE))","v":""},{"$f":"DSFA!R12","v":"x"},null,null,"niedrig",{"$f":"IF(T10>0,\"X\",\"\")","v":""},{"$f":"IF(U10>0,\"X\",\"\")","v":""},{"$f":"IF(V10>0,\"X\",\"\")","v":""},{"$f":"IF(W10>0,\"X\",\"\")","v":""},null,"Untragbares Risiko","x",null,"niedrig",{"$f":"Risikomatrix2!C5","v":0},{"$f":"Risikomatrix2!D5","v":0},{"$f":"Risikomatrix2!E5","v":0},{"$f":"Risikomatrix2!F5","v":0}]
[{"$f":"DSFA!A13","v":8},{"$f":"IF(ISNA(VLOOKUP(DSFA!G13,Risikoberechnung!$H$2:$I$5,2,FALSE)),\"\",VLOOKUP(DSFA!G13,Risikoberechnung!$H$2:$I$5,2,FALSE))","v":""},{"$f":"IF(ISNA(VLOOKUP(DSFA!H13,Risikoberechnung!$H$2:$I$6,2,FALSE)),\"0\",VLOOKUP(DSFA!H13,Risikoberechnung!$H$2:$I$6,2,FALSE))","v":"0"},{"$f":"DSFA!K13","v":"x"},{"$f":"IF(ISNA(VLOOKUP(DSFA!N13,Risikoberechnung!$H$2:$I$6,2,FALSE)),\"\",VLOOKUP(DSFA!N13,Risikoberechnung!$H$2:$I$6,2,FALSE))","v":""},{"$f":"IF(ISNA(VLOOKUP(DSFA!O13,Risikoberechnung!$H$2:$I$6,2,FALSE)),\"\",VLOOKUP(DSFA!O13,Risikoberechnung!$H$2:$I$6,2,FALSE))","v":""},{"$f":"DSFA!R13","v":"x"}]
[{"$f":"DSFA!A14","v":9},{"$f":"IF(ISNA(VLOOKUP(DSFA!G14,Risikoberechnung!$H$2:$I$5,2,FALSE)),\"\",VLOOKUP(DSFA!G14,Risikoberechnung!$H$2:$I$5,2,FALSE))","v":""},{"$f":"IF(ISNA(VLOOKUP(DSFA!H14,Risikoberechnung!$H$2:$I$6,2,FALSE)),\"0\",VLOOKUP(DSFA!H14,Risikoberechnung!$H$2:$I$6,2,FALSE))","v":"0"},{"$f":"DSFA!K14","v":"x"},{"$f":"IF(ISNA(VLOOKUP(DSFA!N14,Risikoberechnung!$H$2:$I$6,2,FALSE)),\"\",VLOOKUP(DSFA!N14,Risikoberechnung!$H$2:$I$6,2,FALSE))","v":""},{"$f":"IF(ISNA(VLOOKUP(DSFA!O14,Risikoberechnung!$H$2:$I$6,2,FALSE)),\"\",VLOOKUP(DSFA!O14,Risikoberechnung!$H$2:$I$6,2,FALSE))","v":""},{"$f":"DSFA!R14","v":"x"}]
[{"$f":"DSFA!A15","v":10},{"$f":"IF(ISNA(VLOOKUP(DSFA!G15,Risikoberechnung!$H$2:$I$5,2,FALSE)),\"\",VLOOKUP(DSFA!G15,Risikoberechnung!$H$2:$I$5,2,FALSE))","v":""},{"$f":"IF(ISNA(VLOOKUP(DSFA!H15,Risikoberechnung!$H$2:$I$6,2,FALSE)),\"0\",VLOOKUP(DSFA!H15,Risikoberechnung!$H$2:$I$6,2,FALSE))","v":"0"},{"$f":"DSFA!K15","v":"x"},{"$f":"IF(ISNA(VLOOKUP(DSFA!N15,Risikoberechnung!$H$2:$I$6,2,FALSE)),\"\",VLOOKUP(DSFA!N15,Risikoberechnung!$H$2:$I$6,2,FALSE))","v":""},{"$f":"IF(ISNA(VLOOKUP(DSFA!O15,Risikoberechnung!$H$2:$I$6,2,FALSE)),\"\",VLOOKUP(DSFA!O15,Risikoberechnung!$H$2:$I$6,2,FALSE))","v":""},{"$f":"DSFA!R15","v":"x"},{"$nulls":3},"niedrig","normal","hoch","sehr hoch",{"$nulls":5},"niedrig","normal","hoch","sehr hoch"]
[{"$f":"DSFA!A16","v":11},{"$f":"IF(ISNA(VLOOKUP(DSFA!G16,Risikoberechnung!$H$2:$I$5,2,FALSE)),\"\",VLOOKUP(DSFA!G16,Risikoberechnung!$H$2:$I$5,2,FALSE))","v":""},{"$f":"IF(ISNA(VLOOKUP(DSFA!H16,Risikoberechnung!$H$2:$I$6,2,FALSE)),\"0\",VLOOKUP(DSFA!H16,Risikoberechnung!$H$2:$I$6,2,FALSE))","v":"0"},{"$f":"DSFA!K16","v":"x"},{"$f":"IF(ISNA(VLOOKUP(DSFA!N16,Risikoberechnung!$H$2:$I$6,2,FALSE)),\"\",VLOOKUP(DSFA!N16,Risikoberechnung!$H$2:$I$6,2,FALSE))","v":""},{"$f":"IF(ISNA(VLOOKUP(DSFA!O16,Risikoberechnung!$H$2:$I$6,2,FALSE)),\"\",VLOOKUP(DSFA!O16,Risikoberechnung!$H$2:$I$6,2,FALSE))","v":""},{"$f":"DSFA!R16","v":"x"}]
[{"$f":"DSFA!A17","v":12},{"$f":"IF(ISNA(VLOOKUP(DSFA!G17,Risikoberechnung!$H$2:$I$5,2,FALSE)),\"\",VLOOKUP(DSFA!G17,Risikoberechnung!$H$2:$I$5,2,FALSE))","v":""},{"$f":"IF(ISNA(VLOOKUP(DSFA!H17,Risikoberechnung!$H$2:$I$6,2,FALSE)),\"0\",VLOOKUP(DSFA!H17,Risikoberechnung!$H$2:$I$6,2,FALSE))","v":"0"},{"$f":"DSFA!K17","v":"x"},{"$f":"IF(ISNA(VLOOKUP(DSFA!N17,Risikoberechnung!$H$2:$I$6,2,FALSE)),\"\",VLOOKUP(DSFA!N17,Risikoberechnung!$H$2:$I$6,2,FALSE))","v":""},{"$f":"IF(ISNA(VLOOKUP(DSFA!O17,Risikoberechnung!$H$2:$I$6,2,FALSE)),\"\",VLOOKUP(DSFA!O17,Risikoberechnung!$H$2:$I$6,2,FALSE))","v":""},{"$f":"DSFA!R17","v":"x"}]
[{"$f":"DSFA!A18","v":13},{"$f":"IF(ISNA(VLOOKUP(DSFA!G18,Risikoberechnung!$H$2:$I$5,2,FALSE)),\"\",VLOOKUP(DSFA!G18,Risikoberechnung!$H$2:$I$5,2,FALSE))","v":""},{"$f":"IF(ISNA(VLOOKUP(DSFA!H18,Risikoberechnung!$H$2:$I$6,2,FALSE)),\"0\",VLOOKUP(DSFA!H18,Risikoberechnung!$H$2:$I$6,2,FALSE))","v":"0"},{"$f":"DSFA!K18","v":"x"},{"$f":"IF(ISNA(VLOOKUP(DSFA!N18,Risikoberechnung!$H$2:$I$6,2,FALSE)),\"\",VLOOKUP(DSFA!N18,Risikoberechnung!$H$2:$I$6,2,FALSE))","v":""},{"$f":"IF(ISNA(VLOOKUP(DSFA!O18,Risikoberechnung!$H$2:$I$6,2,FALSE)),\"\",VLOOKUP(DSFA!O18,Risikoberechnung!$H$2:$I$6,2,FALSE))","v":""},{"$f":"DSFA!R18","v":"x"},{"$nulls":3},"Schadenshöhe",{"$nulls":8},"Schadenshöhe"]
[{"$f":"DSFA!A19","v":14},{"$f":"IF(ISNA(VLOOKUP(DSFA!G19,Risikoberechnung!$H$2:$I$5,2,FALSE)),\"\",VLOOKUP(DSFA!G19,Risikoberechnung!$H$2:$I$5,2,FALSE))","v":""},{"$f":"IF(ISNA(VLOOKUP(DSFA!H19,Risikoberechnung!$H$2:$I$6,2,FALSE)),\"0\",VLOOKUP(DSFA!H19,Risikoberechnung!$H$2:$I$6,2,FALSE))","v":"0"},{"$f":"DSFA!K19","v":"x"},{"$f":"IF(ISNA(VLOOKUP(DSFA!N19,Risikoberechnung!$H$2:$I$6,2,FALSE)),\"\",VLOOKUP(DSFA!N19,Risikoberechnung!$H$2:$I$6,2,FALSE))","v":""},{"$f":"IF(ISNA(VLOOKUP(DSFA!O19,Risikoberechnung!$H$2:$I$6,2,FALSE)),\"\",VLOOKUP(DSFA!O19,Risikoberechnung!$H$2:$I$6,2,FALSE))","v":""},{"$f":"DSFA!R19","v":"x"}]
[{"$f":"DSFA!A20","v":15},{"$f":"IF(ISNA(VLOOKUP(DSFA!G20,Risikoberechnung!$H$2:$I$5,2,FALSE)),\"\",VLOOKUP(DSFA!G20,Risikoberechnung!$H$2:$I$5,2,FALSE))","v":""},{"$f":"IF(ISNA(VLOOKUP(DSFA!H20,Risikoberechnung!$H$2:$I$6,2,FALSE)),\"0\",VLOOKUP(DSFA!H20,Risikoberechnung!$H$2:$I$6,2,FALSE))","v":"0"},{"$f":"DSFA!K20","v":"x"},{"$f":"IF(ISNA(VLOOKUP(DSFA!N20,Risikoberechnung!$H$2:$I$6,2,FALSE)),\"\",VLOOKUP(DSFA!N20,Risikoberechnung!$H$2:$I$6,2,FALSE))","v":""},{"$f":"IF(ISNA(VLOOKUP(DSFA!O20,Risikoberechnung!$H$2:$I$6,2,FALSE)),\"\",VLOOKUP(DSFA!O20,Risikoberechnung!$H$2:$I$6,2,FALSE))","v":""},{"$f":"DSFA!R20","v":"x"}]
[{"$f":"DSFA!A21","v":16},{"$f":"IF(ISNA(VLOOKUP(DSFA!G21,Risikoberechnung!$H$2:$I$5,2,FALSE)),\"\",VLOOKUP(DSFA!G21,Risikoberechnung!$H$2:$I$5,2,FALSE))","v":""},{"$f":"IF(ISNA(VLOOKUP(DSFA!H21,Risikoberechnung!$H$2:$I$6,2,FALSE)),\"0\",VLOOKUP(DSFA!H21,Risikoberechnung!$H$2:$I$6,2,FALSE))","v":"0"},{"$f":"DSFA!K21","v":"x"},{"$f":"IF(ISNA(VLOOKUP(DSFA!N21,Risikoberechnung!$H$2:$I$6,2,FALSE)),\"\",VLOOKUP(DSFA!N21,Risikoberechnung!$H$2:$I$6,2,FALSE))","v":""},{"$f":"IF(ISNA(VLOOKUP(DSFA!O21,Risikoberechnung!$H$2:$I$6,2,FALSE)),\"\",VLOOKUP(DSFA!O21,Risikoberechnung!$H$2:$I$6,2,FALSE))","v":""},{"$f":"DSFA!R21","v":"x"}]
[{"$f":"DSFA!A22","v":17},{"$f":"IF(ISNA(VLOOKUP(DSFA!G22,Risikoberechnung!$H$2:$I$5,2,FALSE)),\"\",VLOOKUP(DSFA!G22,Risikoberechnung!$H$2:$I$5,2,FALSE))","v":""},{"$f":"IF(ISNA(VLOOKUP(DSFA!H22,Risikoberechnung!$H$2:$I$6,2,FALSE)),\"0\",VLOOKUP(DSFA!H22,Risikoberechnung!$H$2:$I$6,2,FALSE))","v":"0"},{"$f":"DSFA!K22","v":"x"},{"$f":"IF(ISNA(VLOOKUP(DSFA!N22,Risikoberechnung!$H$2:$I$6,2,FALSE)),\"\",VLOOKUP(DSFA!N22,Risikoberechnung!$H$2:$I$6,2,FALSE))","v":""},{"$f":"IF(ISNA(VLOOKUP(DSFA!O22,Risikoberechnung!$H$2:$I$6,2,FALSE)),\"\",VLOOKUP(DSFA!O22,Risikoberechnung!$H$2:$I$6,2,FALSE))","v":""},{"$f":"DSFA!R22","v":"x"},null,null,"Risikomatrix nach Maßnahmenplanung",{"$nulls":8},"Risikomatrix vor Maßnahmenplanung"]
[{"$f":"DSFA!A23","v":18},{"$f":"IF(ISNA(VLOOKUP(DSFA!G23,Risikoberechnung!$H$2:$I$5,2,FALSE)),\"\",VLOOKUP(DSFA!G23,Risikoberechnung!$H$2:$I$5,2,FALSE))","v":""},{"$f":"IF(ISNA(VLOOKUP(DSFA!H23,Risikoberechnung!$H$2:$I$6,2,FALSE)),\"0\",VLOOKUP(DSFA!H23,Risikoberechnung!$H$2:$I$6,2,FALSE))","v":"0"},{"$f":"DSFA!K23","v":"x"},{"$f":"IF(ISNA(VLOOKUP(DSFA!N23,Risikoberechnung!$H$2:$I$6,2,FALSE)),\"\",VLOOKUP(DSFA!N23,Risikoberechnung!$H$2:$I$6,2,FALSE))","v":""},{"$f":"IF(ISNA(VLOOKUP(DSFA!O23,Risikoberechnung!$H$2:$I$6,2,FALSE)),\"\",VLOOKUP(DSFA!O23,Risikoberechnung!$H$2:$I$6,2,FALSE))","v":""},{"$f":"DSFA!R23","v":"x"},null,"Eintrittswahrscheinlichkeit","hoch",{"$f":"IF(T21>0,\"X\",\"\")","v":""},{"$f":"IF(U21>0,\"X\",\"\")","v":""},{"$f":"IF(V21>0,\"X\",\"\")","v":""},{"$f":"IF(W21>0,\"X\",\"\")","v":""},{"$nulls":3},"Eintrittswahrscheinlichkeit","hoch",{"$f":"Risikomatrix2!C10","v":0},{"$f":"Risikomatrix2!D10","v":0},{"$f":"Risikomatrix2!E10","v":0},{"$f":"Risikomatrix2!F10","v":0}]
[{"$f":"DSFA!A24","v":19},{"$f":"IF(ISNA(VLOOKUP(DSFA!G24,Risikoberechnung!$H$2:$I$5,2,FALSE)),\"\",VLOOKUP(DSFA!G24,Risikoberechnung!$H$2:$I$5,2,FALSE))","v":""},{"$f":"IF(ISNA(VLOOKUP(DSFA!H24,Risikoberechnung!$H$2:$I$6,2,FALSE)),\"0\",VLOOKUP(DSFA!H24,Risikoberechnung!$H$2:$I$6,2,FALSE))","v":"0"},{"$f":"DSFA!K24","v":"x"},{"$f":"IF(ISNA(VLOOKUP(DSFA!N24,Risikoberechnung!$H$2:$I$6,2,FALSE)),\"\",VLOOKUP(DSFA!N24,Risikoberechnung!$H$2:$I$6,2,FALSE))","v":""},{"$f":"IF(ISNA(VLOOKUP(DSFA!O24,Risikoberechnung!$H$2:$I$6,2,FALSE)),\"\",VLOOKUP(DSFA!O24,Risikoberechnung!$H$2:$I$6,2,FALSE))","v":""},{"$f":"DSFA!R24","v":"x"},{"$nulls":8},"Kein Risiko","x"]
[{"$f":"DSFA!A25","v":20},{"$f":"IF(ISNA(VLOOKUP(DSFA!G25,Risikoberechnung!$H$2:$I$5,2,FALSE)),\"\",VLOOKUP(DSFA!G25,Risikoberechnung!$H$2:$I$5,2,FALSE))","v":""},{"$f":"IF(ISNA(VLOOKUP(DSFA!H25,Risikoberechnung!$H$2:$I$6,2,FALSE)),\"0\",VLOOKUP(DSFA!H25,Risikoberechnung!$H$2:$I$6,2,FALSE))","v":"0"},{"$f":"DSFA!K25","v":"x"},{"$f":"IF(ISNA(VLOOKUP(DSFA!N25,Risikoberechnung!$H$2:$I$6,2,FALSE)),\"\",VLOOKUP(DSFA!N25,Risikoberechnung!$H$2:$I$6,2,FALSE))","v":""},{"$f":"IF(ISNA(VLOOKUP(DSFA!O25,Risikoberechnung!$H$2:$I$6,2,FALSE)),\"\",VLOOKUP(DSFA!O25,Risikoberechnung!$H$2:$I$6,2,FALSE))","v":""},{"$f":"DSFA!R25","v":"x"},{"$nulls":8},"Voraussichtlich kein Risiko","x"]
[{"$f":"DSFA!A26","v":21},{"$f":"IF(ISNA(VLOOKUP(DSFA!G26,Risikoberechnung!$H$2:$I$5,2,FALSE)),\"\",VLOOKUP(DSFA!G26,Risikoberechnung!$H$2:$I$5,2,FALSE))","v":""},{"$f":"IF(ISNA(VLOOKUP(DSFA!H26,Risikoberechnung!$H$2:$I$6,2,FALSE)),\"0\",VLOOKUP(DSFA!H26,Risikoberechnung!$H$2:$I$6,2,FALSE))","v":"0"},{"$f":"DSFA!K26","v":"x"},{"$f":"IF(ISNA(VLOOKUP(DSFA!N26,Risikoberechnung!$H$2:$I$6,2,FALSE)),\"\",VLOOKUP(DSFA!N26,Risikoberechnung!$H$2:$I$6,2,FALSE))","v":""},{"$f":"IF(ISNA(VLOOKUP(DSFA!O26,Risikoberechnung!$H$2:$I$6,2,FALSE)),\"\",VLOOKUP(DSFA!O26,Risikoberechnung!$H$2:$I$6,2,FALSE))","v":""},{"$f":"DSFA!R26","v":"x"},null,null,"mittel",{"$f":"IF(T24>0,\"X\",\"\")","v":""},{"$f":"IF(U24>0,\"X\",\"\")","v":""},{"$f":"IF(V24>0,\"X\",\"\")","v":""},{"$f":"IF(W24>0,\"X\",\"\")","v":""},null,"(Normales) Risiko","x",null,"mittel",{"$f":"Risikomatrix2!C11","v":0},{"$f":"Risikomatrix2!D11","v":0},{"$f":"Risikomatrix2!E11","v":0},{"$f":"Risikomatrix2!F11","v":0}]
[{"$f":"DSFA!A27","v":22},{"$f":"IF(ISNA(VLOOKUP(DSFA!G27,Risikoberechnung!$H$2:$I$5,2,FALSE)),\"\",VLOOKUP(DSFA!G27,Risikoberechnung!$H$2:$I$5,2,FALSE))","v":""},{"$f":"IF(ISNA(VLOOKUP(DSFA!H27,Risikoberechnung!$H$2:$I$6,2,FALSE)),\"0\",VLOOKUP(DSFA!H27,Risikoberechnung!$H$2:$I$6,2,FALSE))","v":"0"},{"$f":"DSFA!K27","v":"x"},{"$f":"IF(ISNA(VLOOKUP(DSFA!N27,Risikoberechnung!$H$2:$I$6,2,FALSE)),\"\",VLOOKUP(DSFA!N27,Risikoberechnung!$H$2:$I$6,2,FALSE))","v":""},{"$f":"IF(ISNA(VLOOKUP(DSFA!O27,Risikoberechnung!$H$2:$I$6,2,FALSE)),\"\",VLOOKUP(DSFA!O27,Risikoberechnung!$H$2:$I$6,2,FALSE))","v":""},{"$f":"DSFA!R27","v":"x"},{"$nulls":8},"Erhebliches Risiko","x"]
[{"$f":"DSFA!A28","v":23},{"$f":"IF(ISNA(VLOOKUP(DSFA!G28,Risikoberechnung!$H$2:$I$5,2,FALSE)),\"\",VLOOKUP(DSFA!G28,Risikoberechnung!$H$2:$I$5,2,FALSE))","v":""},{"$f":"IF(ISNA(VLOOKUP(DSFA!H28,Risikoberechnung!$H$2:$I$6,2,FALSE)),\"0\",VLOOKUP(DSFA!H28,Risikoberechnung!$H$2:$I$6,2,FALSE))","v":"0"},{"$f":"DSFA!K28","v":"x"},{"$f":"IF(ISNA(VLOOKUP(DSFA!N28,Risikoberechnung!$H$2:$I$6,2,FALSE)),\"\",VLOOKUP(DSFA!N28,Risikoberechnung!$H$2:$I$6,2,FALSE))","v":""},{"$f":"IF(ISNA(VLOOKUP(DSFA!O28,Risikoberechnung!$H$2:$I$6,2,FALSE)),\"\",VLOOKUP(DSFA!O28,Risikoberechnung!$H$2:$I$6,2,FALSE))","v":""},{"$f":"DSFA!R28","v":"x"},{"$nulls":8},"Hohes Risiko","x"]
[{"$f":"DSFA!A29","v":24},{"$f":"IF(ISNA(VLOOKUP(DSFA!G29,Risikoberechnung!$H$2:$I$5,2,FALSE)),\"\",VLOOKUP(DSFA!G29,Risikoberechnung!$H$2:$I$5,2,FALSE))","v":""},{"$f":"IF(ISNA(VLOOKUP(DSFA!H29,Risikoberechnung!$H$2:$I$6,2,FALSE)),\"0\",VLOOKUP(DSFA!H29,Risikoberechnung!$H$2:$I$6,2,FALSE))","v":"0"},{"$f":"DSFA!K29","v":"x"},{"$f":"IF(ISNA(VLOOKUP(DSFA!N29,Risikoberechnung!$H$2:$I$6,2,FALSE)),\"\",VLOOKUP(DSFA!N29,Risikoberechnung!$H$2:$I$6,2,FALSE))","v":""},{"$f":"IF(ISNA(VLOOKUP(DSFA!O29,Risikoberechnung!$H$2:$I$6,2,FALSE)),\"\",VLOOKUP(DSFA!O29,Risikoberechnung!$H$2:$I$6,2,FALSE))","v":""},{"$f":"DSFA!R29","v":"x"},null,null,"niedrig",{"$f":"IF(T27>0,\"X\",\"\")","v":""},{"$f":"IF(U27>0,\"X\",\"\")","v":""},{"$f":"IF(V27>0,\"X\",\"\")","v":""},{"$f":"IF(W27>0,\"X\",\"\")","v":""},null,"Untragbares Risiko","x",null,"niedrig",{"$f":"Risikomatrix2!C12","v":0},{"$f":"Risikomatrix2!D12","v":0},{"$f":"Risikomatrix2!E12","v":0},{"$f":"Risikomatrix2!F12","v":0}]
[{"$f":"DSFA!A30","v":25},{"$f":"IF(ISNA(VLOOKUP(DSFA!G30,Risikoberechnung!$H$2:$I$5,2,FALSE)),\"\",VLOOKUP(DSFA!G30,Risikoberechnung!$H$2:$I$5,2,FALSE))","v":""},{"$f":"IF(ISNA(VLOOKUP(DSFA!H30,Risikoberechnung!$H$2:$I$6,2,FALSE)),\"0\",VLOOKUP(DSFA!H30,Risikoberechnung!$H$2:$I$6,2,FALSE))","v":"0"},{"$f":"DSFA!K30","v":"x"},{"$f":"IF(ISNA(VLOOKUP(DSFA!N30,Risikoberechnung!$H$2:$I$6,2,FALSE)),\"\",VLOOKUP(DSFA!N30,Risikoberechnung!$H$2:$I$6,2,FALSE))","v":""},{"$f":"IF(ISNA(VLOOKUP(DSFA!O30,Risikoberechnung!$H$2:$I$6,2,FALSE)),\"\",VLOOKUP(DSFA!O30,Risikoberechnung!$H$2:$I$6,2,FALSE))","v":""},{"$f":"DSFA!R30","v":"x"}]
[{"$f":"DSFA!A31","v":26},{"$f":"IF(ISNA(VLOOKUP(DSFA!G31,Risikoberechnung!$H$2:$I$5,2,FALSE)),\"\",VLOOKUP(DSFA!G31,Risikoberechnung!$H$2:$I$5,2,FALSE))","v":""},{"$f":"IF(ISNA(VLOOKUP(DSFA!H31,Risikoberechnung!$H$2:$I$6,2,FALSE)),\"0\",VLOOKUP(DSFA!H31,Risikoberechnung!$H$2:$I$6,2,FALSE))","v":"0"},{"$f":"DSFA!K31","v":"x"},{"$f":"IF(ISNA(VLOOKUP(DSFA!N31,Risikoberechnung!$H$2:$I$6,2,FALSE)),\"\",VLOOKUP(DSFA!N31,Risikoberechnung!$H$2:$I$6,2,FALSE))","v":""},{"$f":"IF(ISNA(VLOOKUP(DSFA!O31,Risikoberechnung!$H$2:$I$6,2,FALSE)),\"\",VLOOKUP(DSFA!O31,Risikoberechnung!$H$2:$I$6,2,FALSE))","v":""},{"$f":"DSFA!R31","v":"x"}]
[{"$f":"DSFA!A32","v":27},{"$f":"IF(ISNA(VLOOKUP(DSFA!G32,Risikoberechnung!$H$2:$I$5,2,FALSE)),\"\",VLOOKUP(DSFA!G32,Risikoberechnung!$H$2:$I$5,2,FALSE))","v":""},{"$f":"IF(ISNA(VLOOKUP(DSFA!H32,Risikoberechnung!$H$2:$I$6,2,FALSE)),\"0\",VLOOKUP(DSFA!H32,Risikoberechnung!$H$2:$I$6,2,FALSE))","v":"0"},{"$f":"DSFA!K32","v":"x"},{"$f":"IF(ISNA(VLOOKUP(DSFA!N32,Risikoberechnung!$H$2:$I$6,2,FALSE)),\"\",VLOOKUP(DSFA!N32,Risikoberechnung!$H$2:$I$6,2,FALSE))","v":""},{"$f":"IF(ISNA(VLOOKUP(DSFA!O32,Risikoberechnung!$H$2:$I$6,2,FALSE)),\"\",VLOOKUP(DSFA!O32,Risikoberechnung!$H$2:$I$6,2,FALSE))","v":""},{"$f":"DSFA!R32","v":"x"},{"$nulls":3},"niedrig","normal","hoch","sehr hoch",{"$nulls":5},"niedrig","normal","hoch","sehr hoch"]
[{"$f":"DSFA!A33","v":28},{"$f":"IF(ISNA(VLOOKUP(DSFA!G33,Risikoberechnung!$H$2:$I$5,2,FALSE)),\"\",VLOOKUP(DSFA!G33,Risikoberechnung!$H$2:$I$5,2,FALSE))","v":""},{"$f":"IF(ISNA(VLOOKUP(DSFA!H33,Risikoberechnung!$H$2:$I$6,2,FALSE)),\"0\",VLOOKUP(DSFA!H33,Risikoberechnung!$H$2:$I$6,2,FALSE))","v":"0"},{"$f":"DSFA!K33","v":"x"},{"$f":"IF(ISNA(VLOOKUP(DSFA!N33,Risikoberechnung!$H$2:$I$6,2,FALSE)),\"\",VLOOKUP(DSFA!N33,Risikoberechnung!$H$2:$I$6,2,FALSE))","v":""},{"$f":"IF(ISNA(VLOOKUP(DSFA!O33,Risikoberechnung!$H$2:$I$6,2,FALSE)),\"\",VLOOKUP(DSFA!O33,Risikoberechnung!$H$2:$I$6,2,FALSE))","v":""},{"$f":"DSFA!R33","v":"x"}]
[{"$f":"DSFA!A34","v":29},{"$f":"IF(ISNA(VLOOKUP(DSFA!G34,Risikoberechnung!$H$2:$I$5,2,FALSE)),\"\",VLOOKUP(DSFA!G34,Risikoberechnung!$H$2:$I$5,2,FALSE))","v":""},{"$f":"IF(ISNA(VLOOKUP(DSFA!H34,Risikoberechnung!$H$2:$I$6,2,FALSE)),\"0\",VLOOKUP(DSFA!H34,Risikoberechnung!$H$2:$I$6,2,FALSE))","v":"0"},{"$f":"DSFA!K34","v":"x"},{"$f":"IF(ISNA(VLOOKUP(DSFA!N34,Risikoberechnung!$H$2:$I$6,2,FALSE)),\"\",VLOOKUP(DSFA!N34,Risikoberechnung!$H$2:$I$6,2,FALSE))","v":""},{"$f":"IF(ISNA(VLOOKUP(DSFA!O34,Risikoberechnung!$H$2:$I$6,2,FALSE)),\"\",VLOOKUP(DSFA!O34,Risikoberechnung!$H$2:$I$6,2,FALSE))","v":""},{"$f":"DSFA!R34","v":"x"}]
[{"$f":"DSFA!A35","v":30},{"$f":"IF(ISNA(VLOOKUP(DSFA!G35,Risikoberechnung!$H$2:$I$5,2,FALSE)),\"\",VLOOKUP(DSFA!G35,Risikoberechnung!$H$2:$I$5,2,FALSE))","v":""},{"$f":"IF(ISNA(VLOOKUP(DSFA!H35,Risikoberechnung!$H$2:$I$6,2,FALSE)),\"0\",VLOOKUP(DSFA!H35,Risikoberechnung!$H$2:$I$6,2,FALSE))","v":"0"},{"$f":"DSFA!K35","v":"x"},{"$f":"IF(ISNA(VLOOKUP(DSFA!N35,Risikoberechnung!$H$2:$I$6,2,FALSE)),\"\",VLOOKUP(DSFA!N35,Risikoberechnung!$H$2:$I$6,2,FALSE))","v":""},{"$f":"IF(ISNA(VLOOKUP(DSFA!O35,Risikoberechnung!$H$2:$I$6,2,FALSE)),\"\",VLOOKUP(DSFA!O35,Risikoberechnung!$H$2:$I$6,2,FALSE))","v":""},{"$f":"DSFA!R35","v":"x"},{"$nulls":3},"Schadenshöhe",{"$nulls":8},"Schadenshöhe"]
[{"$f":"DSFA!A36","v":31},{"$f":"IF(ISNA(VLOOKUP(DSFA!G36,Risikoberechnung!$H$2:$I$5,2,FALSE)),\"\",VLOOKUP(DSFA!G36,Risikoberechnung!$H$2:$I$5,2,FALSE))","v":""},{"$f":"IF(ISNA(VLOOKUP(DSFA!H36,Risikoberechnung!$H$2:$I$6,2,FALSE)),\"0\",VLOOKUP(DSFA!H36,Risikoberechnung!$H$2:$I$6,2,FALSE))","v":"0"},{"$f":"DSFA!K36","v":"x"},{"$f":"IF(ISNA(VLOOKUP(DSFA!N36,Risikoberechnung!$H$2:$I$6,2,FALSE)),\"\",VLOOKUP(DSFA!N36,Risikoberechnung!$H$2:$I$6,2,FALSE))","v":""},{"$f":"IF(ISNA(VLOOKUP(DSFA!O36,Risikoberechnung!$H$2:$I$6,2,FALSE)),\"\",VLOOKUP(DSFA!O36,Risikoberechnung!$H$2:$I$6,2,FALSE))","v":""},{"$f":"DSFA!R36","v":"x"}]
[{"$f":"DSFA!A37","v":32},{"$f":"IF(ISNA(VLOOKUP(DSFA!G37,Risikoberechnung!$H$2:$I$5,2,FALSE)),\"\",VLOOKUP(DSFA!G37,Risikoberechnung!$H$2:$I$5,2,FALSE))","v":""},{"$f":"IF(ISNA(VLOOKUP(DSFA!H37,Risikoberechnung!$H$2:$I$6,2,FALSE)),\"0\",VLOOKUP(DSFA!H37,Risikoberechnung!$H$2:$I$6,2,FALSE))","v":"0"},{"$f":"DSFA!K37","v":"x"},{"$f":"IF(ISNA(VLOOKUP(DSFA!N37,Risikoberechnung!$H$2:$I$6,2,FALSE)),\"\",VLOOKUP(DSFA!N37,Risikoberechnung!$H$2:$I$6,2,FALSE))","v":""},{"$f":"IF(ISNA(VLOOKUP(DSFA!O37,Risikoberechnung!$H$2:$I$6,2,FALSE)),\"\",VLOOKUP(DSFA!O37,Risikoberechnung!$H$2:$I$6,2,FALSE))","v":""},{"$f":"DSFA!R37","v":"x"}]
[{"$f":"DSFA!A38","v":33},{"$f":"IF(ISNA(VLOOKUP(DSFA!G38,Risikoberechnung!$H$2:$I$5,2,FALSE)),\"\",VLOOKUP(DSFA!G38,Risikoberechnung!$H$2:$I$5,2,FALSE))","v":""},{"$f":"IF(ISNA(VLOOKUP(DSFA!H38,Risikoberechnung!$H$2:$I$6,2,FALSE)),\"0\",VLOOKUP(DSFA!H38,Risikoberechnung!$H$2:$I$6,2,FALSE))","v":"0"},{"$f":"DSFA!K38","v":"x"},{"$f":"IF(ISNA(VLOOKUP(DSFA!N38,Risikoberechnung!$H$2:$I$6,2,FALSE)),\"\",VLOOKUP(DSFA!N38,Risikoberechnung!$H$2:$I$6,2,FALSE))","v":""},{"$f":"IF(ISNA(VLOOKUP(DSFA!O38,Risikoberechnung!$H$2:$I$6,2,FALSE)),\"\",VLOOKUP(DSFA!O38,Risikoberechnung!$H$2:$I$6,2,FALSE))","v":""},{"$f":"DSFA!R38","v":"x"}]
[{"$f":"DSFA!A39","v":34},{"$f":"IF(ISNA(VLOOKUP(DSFA!G39,Risikoberechnung!$H$2:$I$5,2,FALSE)),\"\",VLOOKUP(DSFA!G39,Risikoberechnung!$H$2:$I$5,2,FALSE))","v":""},{"$f":"IF(ISNA(VLOOKUP(DSFA!H39,Risikoberechnung!$H$2:$I$6,2,FALSE)),\"0\",VLOOKUP(DSFA!H39,Risikoberechnung!$H$2:$I$6,2,FALSE))","v":"0"},{"$f":"DSFA!K39","v":"x"},{"$f":"IF(ISNA(VLOOKUP(DSFA!N39,Risikoberechnung!$H$2:$I$6,2,FALSE)),\"\",VLOOKUP(DSFA!N39,Risikoberechnung!$H$2:$I$6,2,FALSE))","v":""},{"$f":"IF(ISNA(VLOOKUP(DSFA!O39,Risikoberechnung!$H$2:$I$6,2,FALSE)),\"\",VLOOKUP(DSFA!O39,Risikoberechnung!$H$2:$I$6,2,FALSE))","v":""},{"$f":"DSFA!R39","v":"x"}]
[{"$f":"DSFA!A40","v":35},{"$f":"IF(ISNA(VLOOKUP(DSFA!G40,Risikoberechnung!$H$2:$I$5,2,FALSE)),\"\",VLOOKUP(DSFA!G40,Risikoberechnung!$H$2:$I$5,2,FALSE))","v":""},{"$f":"IF(ISNA(VLOOKUP(DSFA!H40,Risikoberechnung!$H$2:$I$6,2,FALSE)),\"0\",VLOOKUP(DSFA!H40,Risikoberechnung!$H$2:$I$6,2,FALSE))","v":"0"},{"$f":"DSFA!K40","v":"x"},{"$f":"IF(ISNA(VLOOKUP(DSFA!N40,Risikoberechnung!$H$2:$I$6,2,FALSE)),\"\",VLOOKUP(DSFA!N40,Risikoberechnung!$H$2:$I$6,2,FALSE))","v":""},{"$f":"IF(ISNA(VLOOKUP(DSFA!O40,Risikoberechnung!$H$2:$I$6,2,FALSE)),\"\",VLOOKUP(DSFA!O40,Risikoberechnung!$H$2:$I$6,2,FALSE))","v":""},{"$f":"DSFA!R40","v":"x"}]
[{"$f":"DSFA!A41","v":36},{"$f":"IF(ISNA(VLOOKUP(DSFA!G41,Risikoberechnung!$H$2:$I$5,2,FALSE)),\"\",VLOOKUP(DSFA!G41,Risikoberechnung!$H$2:$I$5,2,FALSE))","v":""},{"$f":"IF(ISNA(VLOOKUP(DSFA!H41,Risikoberechnung!$H$2:$I$6,2,FALSE)),\"0\",VLOOKUP(DSFA!H41,Risikoberechnung!$H$2:$I$6,2,FALSE))","v":"0"},{"$f":"DSFA!K41","v":"x"},{"$f":"IF(ISNA(VLOOKUP(DSFA!N41,Risikoberechnung!$H$2:$I$6,2,FALSE)),\"\",VLOOKUP(DSFA!N41,Risikoberechnung!$H$2:$I$6,2,FALSE))","v":""},{"$f":"IF(ISNA(VLOOKUP(DSFA!O41,Risikoberechnung!$H$2:$I$6,2,FALSE)),\"\",VLOOKUP(DSFA!O41,Risikoberechnung!$H$2:$I$6,2,FALSE))","v":""},{"$f":"DSFA!R41","v":"x"}]
[{"$f":"DSFA!A42","v":37},{"$f":"IF(ISNA(VLOOKUP(DSFA!G42,Risikoberechnung!$H$2:$I$5,2,FALSE)),\"\",VLOOKUP(DSFA!G42,Risikoberechnung!$H$2:$I$5,2,FALSE))","v":""},{"$f":"IF(ISNA(VLOOKUP(DSFA!H42,Risikoberechnung!$H$2:$I$6,2,FALSE)),\"0\",VLOOKUP(DSFA!H42,Risikoberechnung!$H$2:$I$6,2,FALSE))","v":"0"},{"$f":"DSFA!K42","v":"x"},{"$f":"IF(ISNA(VLOOKUP(DSFA!N42,Risikoberechnung!$H$2:$I$6,2,FALSE)),\"\",VLOOKUP(DSFA!N42,Risikoberechnung!$H$2:$I$6,2,FALSE))","v":""},{"$f":"IF(ISNA(VLOOKUP(DSFA!O42,Risikoberechnung!$H$2:$I$6,2,FALSE)),\"\",VLOOKUP(DSFA!O42,Risikoberechnung!$H$2:$I$6,2,FALSE))","v":""},{"$f":"DSFA!R42","v":"x"}]
[{"$f":"DSFA!A43","v":38},{"$f":"IF(ISNA(VLOOKUP(DSFA!G43,Risikoberechnung!$H$2:$I$5,2,FALSE)),\"\",VLOOKUP(DSFA!G43,Risikoberechnung!$H$2:$I$5,2,FALSE))","v":""},{"$f":"IF(ISNA(VLOOKUP(DSFA!H43,Risikoberechnung!$H$2:$I$6,2,FALSE)),\"0\",VLOOKUP(DSFA!H43,Risikoberechnung!$H$2:$I$6,2,FALSE))","v":"0"},{"$f":"DSFA!K43","v":"x"},{"$f":"IF(ISNA(VLOOKUP(DSFA!N43,Risikoberechnung!$H$2:$I$6,2,FALSE)),\"\",VLOOKUP(DSFA!N43,Risikoberechnung!$H$2:$I$6,2,FALSE))","v":""},{"$f":"IF(ISNA(VLOOKUP(DSFA!O43,Risikoberechnung!$H$2:$I$6,2,FALSE)),\"\",VLOOKUP(DSFA!O43,Risikoberechnung!$H$2:$I$6,2,FALSE))","v":""},{"$f":"DSFA!R43","v":"x"}]
[{"$f":"DSFA!A44","v":39},{"$f":"IF(ISNA(VLOOKUP(DSFA!G44,Risikoberechnung!$H$2:$I$5,2,FALSE)),\"\",VLOOKUP(DSFA!G44,Risikoberechnung!$H$2:$I$5,2,FALSE))","v":""},{"$f":"IF(ISNA(VLOOKUP(DSFA!H44,Risikoberechnung!$H$2:$I$6,2,FALSE)),\"0\",VLOOKUP(DSFA!H44,Risikoberechnung!$H$2:$I$6,2,FALSE))","v":"0"},{"$f":"DSFA!K44","v":"x"},{"$f":"IF(ISNA(VLOOKUP(DSFA!N44,Risikoberechnung!$H$2:$I$6,2,FALSE)),\"\",VLOOKUP(DSFA!N44,Risikoberechnung!$H$2:$I$6,2,FALSE))","v":""},{"$f":"IF(ISNA(VLOOKUP(DSFA!O44,Risikoberechnung!$H$2:$I$6,2,FALSE)),\"\",VLOOKUP(DSFA!O44,Risikoberechnung!$H$2:$I$6,2,FALSE))","v":""},{"$f":"DSFA!R44","v":"x"}]
[{"$f":"DSFA!A45","v":40},{"$f":"IF(ISNA(VLOOKUP(DSFA!G45,Risikoberechnung!$H$2:$I$5,2,FALSE)),\"\",VLOOKUP(DSFA!G45,Risikoberechnung!$H$2:$I$5,2,FALSE))","v":""},{"$f":"IF(ISNA(VLOOKUP(DSFA!H45,Risikoberechnung!$H$2:$I$6,2,FALSE)),\"0\",VLOOKUP(DSFA!H45,Risikoberechnung!$H$2:$I$6,2,FALSE))","v":"0"},{"$f":"DSFA!K45","v":"x"},{"$f":"IF(ISNA(VLOOKUP(DSFA!N45,Risikoberechnung!$H$2:$I$6,2,FALSE)),\"\",VLOOKUP(DSFA!N45,Risikoberechnung!$H$2:$I$6,2,FALSE))","v":""},{"$f":"IF(ISNA(VLOOKUP(DSFA!O45,Risikoberechnung!$H$2:$I$6,2,FALSE)),\"\",VLOOKUP(DSFA!O45,Risikoberechnung!$H$2:$I$6,2,FALSE))","v":""},{"$f":"DSFA!R45","v":"x"}]
[{"$f":"DSFA!A46","v":41},{"$f":"IF(ISNA(VLOOKUP(DSFA!G46,Risikoberechnung!$H$2:$I$5,2,FALSE)),\"\",VLOOKUP(DSFA!G46,Risikoberechnung!$H$2:$I$5,2,FALSE))","v":""},{"$f":"IF(ISNA(VLOOKUP(DSFA!H46,Risikoberechnung!$H$2:$I$6,2,FALSE)),\"0\",VLOOKUP(DSFA!H46,Risikoberechnung!$H$2:$I$6,2,FALSE))","v":"0"},{"$f":"DSFA!K46","v":"x"},{"$f":"IF(ISNA(VLOOKUP(DSFA!N46,Risikoberechnung!$H$2:$I$6,2,FALSE)),\"\",VLOOKUP(DSFA!N46,Risikoberechnung!$H$2:$I$6,2,FALSE))","v":""},{"$f":"IF(ISNA(VLOOKUP(DSFA!O46,Risikoberechnung!$H$2:$I$6,2,FALSE)),\"\",VLOOKUP(DSFA!O46,Risikoberechnung!$H$2:$I$6,2,FALSE))","v":""},{"$f":"DSFA!R46","v":"x"}]
[{"$f":"DSFA!A47","v":42},{"$f":"IF(ISNA(VLOOKUP(DSFA!G47,Risikoberechnung!$H$2:$I$5,2,FALSE)),\"\",VLOOKUP(DSFA!G47,Risikoberechnung!$H$2:$I$5,2,FALSE))","v":""},{"$f":"IF(ISNA(VLOOKUP(DSFA!H47,Risikoberechnung!$H$2:$I$6,2,FALSE)),\"0\",VLOOKUP(DSFA!H47,Risikoberechnung!$H$2:$I$6,2,FALSE))","v":"0"},{"$f":"DSFA!K47","v":"x"},{"$f":"IF(ISNA(VLOOKUP(DSFA!N47,Risikoberechnung!$H$2:$I$6,2,FALSE)),\"\",VLOOKUP(DSFA!N47,Risikoberechnung!$H$2:$I$6,2,FALSE))","v":""},{"$f":"IF(ISNA(VLOOKUP(DSFA!O47,Risikoberechnung!$H$2:$I$6,2,FALSE)),\"\",VLOOKUP(DSFA!O47,Risikoberechnung!$H$2:$I$6,2,FALSE))","v":""},{"$f":"DSFA!R47","v":"x"}]
[{"$f":"DSFA!A48","v":43},{"$f":"IF(ISNA(VLOOKUP(DSFA!G48,Risikoberechnung!$H$2:$I$5,2,FALSE)),\"\",VLOOKUP(DSFA!G48,Risikoberechnung!$H$2:$I$5,2,FALSE))","v":""},{"$f":"IF(ISNA(VLOOKUP(DSFA!H48,Risikoberechnung!$H$2:$I$6,2,FALSE)),\"0\",VLOOKUP(DSFA!H48,Risikoberechnung!$H$2:$I$6,2,FALSE))","v":"0"},{"$f":"DSFA!K48","v":"x"},{"$f":"IF(ISNA(VLOOKUP(DSFA!N48,Risikoberechnung!$H$2:$I$6,2,FALSE)),\"\",VLOOKUP(DSFA!N48,Risikoberechnung!$H$2:$I$6,2,FALSE))","v":""},{"$f":"IF(ISNA(VLOOKUP(DSFA!O48,Risikoberechnung!$H$2:$I$6,2,FALSE)),\"\",VLOOKUP(DSFA!O48,Risikoberechnung!$H$2:$I$6,2,FALSE))","v":""},{"$f":"DSFA!R48","v":"x"}]
[{"$f":"DSFA!A49","v":44},{"$f":"IF(ISNA(VLOOKUP(DSFA!G49,Risikoberechnung!$H$2:$I$5,2,FALSE)),\"\",VLOOKUP(DSFA!G49,Risikoberechnung!$H$2:$I$5,2,FALSE))","v":""},{"$f":"IF(ISNA(VLOOKUP(DSFA!H49,Risikoberechnung!$H$2:$I$6,2,FALSE)),\"0\",VLOOKUP(DSFA!H49,Risikoberechnung!$H$2:$I$6,2,FALSE))","v":"0"},{"$f":"DSFA!K49","v":"x"},{"$f":"IF(ISNA(VLOOKUP(DSFA!N49,Risikoberechnung!$H$2:$I$6,2,FALSE)),\"\",VLOOKUP(DSFA!N49,Risikoberechnung!$H$2:$I$6,2,FALSE))","v":""},{"$f":"IF(ISNA(VLOOKUP(DSFA!O49,Risikoberechnung!$H$2:$I$6,2,FALSE)),\"\",VLOOKUP(DSFA!O49,Risikoberechnung!$H$2:$I$6,2,FALSE))","v":""},{"$f":"DSFA!R49","v":"x"}]
[{"$f":"DSFA!A50","v":45},{"$f":"IF(ISNA(VLOOKUP(DSFA!G50,Risikoberechnung!$H$2:$I$5,2,FALSE)),\"\",VLOOKUP(DSFA!G50,Risikoberechnung!$H$2:$I$5,2,FALSE))","v":""},{"$f":"IF(ISNA(VLOOKUP(DSFA!H50,Risikoberechnung!$H$2:$I$6,2,FALSE)),\"0\",VLOOKUP(DSFA!H50,Risikoberechnung!$H$2:$I$6,2,FALSE))","v":"0"},{"$f":"DSFA!K50","v":"x"},{"$f":"IF(ISNA(VLOOKUP(DSFA!N50,Risikoberechnung!$H$2:$I$6,2,FALSE)),\"\",VLOOKUP(DSFA!N50,Risikoberechnung!$H$2:$I$6,2,FALSE))","v":""},{"$f":"IF(ISNA(VLOOKUP(DSFA!O50,Risikoberechnung!$H$2:$I$6,2,FALSE)),\"\",VLOOKUP(DSFA!O50,Risikoberechnung!$H$2:$I$6,2,FALSE))","v":""},{"$f":"DSFA!R50","v":"x"}]
[{"$f":"DSFA!A51","v":46},{"$f":"IF(ISNA(VLOOKUP(DSFA!G51,Risikoberechnung!$H$2:$I$5,2,FALSE)),\"\",VLOOKUP(DSFA!G51,Risikoberechnung!$H$2:$I$5,2,FALSE))","v":""},{"$f":"IF(ISNA(VLOOKUP(DSFA!H51,Risikoberechnung!$H$2:$I$6,2,FALSE)),\"0\",VLOOKUP(DSFA!H51,Risikoberechnung!$H$2:$I$6,2,FALSE))","v":"0"},{"$f":"DSFA!K51","v":"x"},{"$f":"IF(ISNA(VLOOKUP(DSFA!N51,Risikoberechnung!$H$2:$I$6,2,FALSE)),\"\",VLOOKUP(DSFA!N51,Risikoberechnung!$H$2:$I$6,2,FALSE))","v":""},{"$f":"IF(ISNA(VLOOKUP(DSFA!O51,Risikoberechnung!$H$2:$I$6,2,FALSE)),\"\",VLOOKUP(DSFA!O51,Risikoberechnung!$H$2:$I$6,2,FALSE))","v":""},{"$f":"DSFA!R51","v":"x"}]
[{"$f":"DSFA!A52","v":47},{"$f":"IF(ISNA(VLOOKUP(DSFA!G52,Risikoberechnung!$H$2:$I$5,2,FALSE)),\"\",VLOOKUP(DSFA!G52,Risikoberechnung!$H$2:$I$5,2,FALSE))","v":""},{"$f":"IF(ISNA(VLOOKUP(DSFA!H52,Risikoberechnung!$H$2:$I$6,2,FALSE)),\"0\",VLOOKUP(DSFA!H52,Risikoberechnung!$H$2:$I$6,2,FALSE))","v":"0"},{"$f":"DSFA!K52","v":"x"},{"$f":"IF(ISNA(VLOOKUP(DSFA!N52,Risikoberechnung!$H$2:$I$6,2,FALSE)),\"\",VLOOKUP(DSFA!N52,Risikoberechnung!$H$2:$I$6,2,FALSE))","v":""},{"$f":"IF(ISNA(VLOOKUP(DSFA!O52,Risikoberechnung!$H$2:$I$6,2,FALSE)),\"\",VLOOKUP(DSFA!O52,Risikoberechnung!$H$2:$I$6,2,FALSE))","v":""},{"$f":"DSFA!R52","v":"x"}]
[{"$f":"DSFA!A53","v":48},{"$f":"IF(ISNA(VLOOKUP(DSFA!G53,Risikoberechnung!$H$2:$I$5,2,FALSE)),\"\",VLOOKUP(DSFA!G53,Risikoberechnung!$H$2:$I$5,2,FALSE))","v":""},{"$f":"IF(ISNA(VLOOKUP(DSFA!H53,Risikoberechnung!$H$2:$I$6,2,FALSE)),\"0\",VLOOKUP(DSFA!H53,Risikoberechnung!$H$2:$I$6,2,FALSE))","v":"0"},{"$f":"DSFA!K53","v":"x"},{"$f":"IF(ISNA(VLOOKUP(DSFA!N53,Risikoberechnung!$H$2:$I$6,2,FALSE)),\"\",VLOOKUP(DSFA!N53,Risikoberechnung!$H$2:$I$6,2,FALSE))","v":""},{"$f":"IF(ISNA(VLOOKUP(DSFA!O53,Risikoberechnung!$H$2:$I$6,2,FALSE)),\"\",VLOOKUP(DSFA!O53,Risikoberechnung!$H$2:$I$6,2,FALSE))","v":""},{"$f":"DSFA!R53","v":"x"}]
[{"$f":"DSFA!A54","v":49},{"$f":"IF(ISNA(VLOOKUP(DSFA!G54,Risikoberechnung!$H$2:$I$5,2,FALSE)),\"\",VLOOKUP(DSFA!G54,Risikoberechnung!$H$2:$I$5,2,FALSE))","v":""},{"$f":"IF(ISNA(VLOOKUP(DSFA!H54,Risikoberechnung!$H$2:$I$6,2,FALSE)),\"0\",VLOOKUP(DSFA!H54,Risikoberechnung!$H$2:$I$6,2,FALSE))","v":"0"},{"$f":"DSFA!K54","v":"x"},{"$f":"IF(ISNA(VLOOKUP(DSFA!N54,Risikoberechnung!$H$2:$I$6,2,FALSE)),\"\",VLOOKUP(DSFA!N54,Risikoberechnung!$H$2:$I$6,2,FALSE))","v":""},{"$f":"IF(ISNA(VLOOKUP(DSFA!O54,Risikoberechnung!$H$2:$I$6,2,FALSE)),\"\",VLOOKUP(DSFA!O54,Risikoberechnung!$H$2:$I$6,2,FALSE))","v":""},{"$f":"DSFA!R54","v":"x"}]
[{"$f":"DSFA!A55","v":50},{"$f":"IF(ISNA(VLOOKUP(DSFA!G55,Risikoberechnung!$H$2:$I$5,2,FALSE)),\"\",VLOOKUP(DSFA!G55,Risikoberechnung!$H$2:$I$5,2,FALSE))","v":""},{"$f":"IF(ISNA(VLOOKUP(DSFA!H55,Risikoberechnung!$H$2:$I$6,2,FALSE)),\"0\",VLOOKUP(DSFA!H55,Risikoberechnung!$H$2:$I$6,2,FALSE))","v":"0"},{"$f":"DSFA!K55","v":"x"},{"$f":"IF(ISNA(VLOOKUP(DSFA!N55,Risikoberechnung!$H$2:$I$6,2,FALSE)),\"\",VLOOKUP(DSFA!N55,Risikoberechnung!$H$2:$I$6,2,FALSE))","v":""},{"$f":"IF(ISNA(VLOOKUP(DSFA!O55,Risikoberechnung!$H$2:$I$6,2,FALSE)),\"\",VLOOKUP(DSFA!O55,Risikoberechnung!$H$2:$I$6,2,FALSE))","v":""},{"$f":"DSFA!R55","v":"x"}]
[{"$f":"DSFA!A56","v":51},{"$f":"IF(ISNA(VLOOKUP(DSFA!G56,Risikoberechnung!$H$2:$I$5,2,FALSE)),\"\",VLOOKUP(DSFA!G56,Risikoberechnung!$H$2:$I$5,2,FALSE))","v":""},{"$f":"IF(ISNA(VLOOKUP(DSFA!H56,Risikoberechnung!$H$2:$I$6,2,FALSE)),\"0\",VLOOKUP(DSFA!H56,Risikoberechnung!$H$2:$I$6,2,FALSE))","v":"0"},{"$f":"DSFA!K56","v":"x"},{"$f":"IF(ISNA(VLOOKUP(DSFA!N56,Risikoberechnung!$H$2:$I$6,2,FALSE)),\"\",VLOOKUP(DSFA!N56,Risikoberechnung!$H$2:$I$6,2,FALSE))","v":""},{"$f":"IF(ISNA(VLOOKUP(DSFA!O56,Risikoberechnung!$H$2:$I$6,2,FALSE)),\"\",VLOOKUP(DSFA!O56,Risikoberechnung!$H$2:$I$6,2,FALSE))","v":""},{"$f":"DSFA!R56","v":"x"}]
[{"$f":"DSFA!A57","v":52},{"$f":"IF(ISNA(VLOOKUP(DSFA!G57,Risikoberechnung!$H$2:$I$5,2,FALSE)),\"\",VLOOKUP(DSFA!G57,Risikoberechnung!$H$2:$I$5,2,FALSE))","v":""},{"$f":"IF(ISNA(VLOOKUP(DSFA!H57,Risikoberechnung!$H$2:$I$6,2,FALSE)),\"0\",VLOOKUP(DSFA!H57,Risikoberechnung!$H$2:$I$6,2,FALSE))","v":"0"},{"$f":"DSFA!K57","v":"x"},{"$f":"IF(ISNA(VLOOKUP(DSFA!N57,Risikoberechnung!$H$2:$I$6,2,FALSE)),\"\",VLOOKUP(DSFA!N57,Risikoberechnung!$H$2:$I$6,2,FALSE))","v":""},{"$f":"IF(ISNA(VLOOKUP(DSFA!O57,Risikoberechnung!$H$2:$I$6,2,FALSE)),\"\",VLOOKUP(DSFA!O57,Risikoberechnung!$H$2:$I$6,2,FALSE))","v":""},{"$f":"DSFA!R57","v":"x"}]
[{"$f":"DSFA!A58","v":53},{"$f":"IF(ISNA(VLOOKUP(DSFA!G58,Risikoberechnung!$H$2:$I$5,2,FALSE)),\"\",VLOOKUP(DSFA!G58,Risikoberechnung!$H$2:$I$5,2,FALSE))","v":""},{"$f":"IF(ISNA(VLOOKUP(DSFA!H58,Risikoberechnung!$H$2:$I$6,2,FALSE)),\"0\",VLOOKUP(DSFA!H58,Risikoberechnung!$H$2:$I$6,2,FALSE))","v":"0"},{"$f":"DSFA!K58","v":"x"},{"$f":"IF(ISNA(VLOOKUP(DSFA!N58,Risikoberechnung!$H$2:$I$6,2,FALSE)),\"\",VLOOKUP(DSFA!N58,Risikoberechnung!$H$2:$I$6,2,FALSE))","v":""},{"$f":"IF(ISNA(VLOOKUP(DSFA!O58,Risikoberechnung!$H$2:$I$6,2,FALSE)),\"\",VLOOKUP(DSFA!O58,Risikoberechnung!$H$2:$I$6,2,FALSE))","v":""},{"$f":"DSFA!R58","v":"x"}]
[{"$f":"DSFA!A59","v":54},{"$f":"IF(ISNA(VLOOKUP(DSFA!G59,Risikoberechnung!$H$2:$I$5,2,FALSE)),\"\",VLOOKUP(DSFA!G59,Risikoberechnung!$H$2:$I$5,2,FALSE))","v":""},{"$f":"IF(ISNA(VLOOKUP(DSFA!H59,Risikoberechnung!$H$2:$I$6,2,FALSE)),\"0\",VLOOKUP(DSFA!H59,Risikoberechnung!$H$2:$I$6,2,FALSE))","v":"0"},{"$f":"DSFA!K59","v":"x"},{"$f":"IF(ISNA(VLOOKUP(DSFA!N59,Risikoberechnung!$H$2:$I$6,2,FALSE)),\"\",VLOOKUP(DSFA!N59,Risikoberechnung!$H$2:$I$6,2,FALSE))","v":""},{"$f":"IF(ISNA(VLOOKUP(DSFA!O59,Risikoberechnung!$H$2:$I$6,2,FALSE)),\"\",VLOOKUP(DSFA!O59,Risikoberechnung!$H$2:$I$6,2,FALSE))","v":""},{"$f":"DSFA!R59","v":"x"}]
[{"$f":"DSFA!A60","v":55},{"$f":"IF(ISNA(VLOOKUP(DSFA!G60,Risikoberechnung!$H$2:$I$5,2,FALSE)),\"\",VLOOKUP(DSFA!G60,Risikoberechnung!$H$2:$I$5,2,FALSE))","v":""},{"$f":"IF(ISNA(VLOOKUP(DSFA!H60,Risikoberechnung!$H$2:$I$6,2,FALSE)),\"0\",VLOOKUP(DSFA!H60,Risikoberechnung!$H$2:$I$6,2,FALSE))","v":"0"},{"$f":"DSFA!K60","v":"x"},{"$f":"IF(ISNA(VLOOKUP(DSFA!N60,Risikoberechnung!$H$2:$I$6,2,FALSE)),\"\",VLOOKUP(DSFA!N60,Risikoberechnung!$H$2:$I$6,2,FALSE))","v":""},{"$f":"IF(ISNA(VLOOKUP(DSFA!O60,Risikoberechnung!$H$2:$I$6,2,FALSE)),\"\",VLOOKUP(DSFA!O60,Risikoberechnung!$H$2:$I$6,2,FALSE))","v":""},{"$f":"DSFA!R60","v":"x"}]
[{"$f":"DSFA!A61","v":56},{"$f":"IF(ISNA(VLOOKUP(DSFA!G61,Risikoberechnung!$H$2:$I$5,2,FALSE)),\"\",VLOOKUP(DSFA!G61,Risikoberechnung!$H$2:$I$5,2,FALSE))","v":""},{"$f":"IF(ISNA(VLOOKUP(DSFA!H61,Risikoberechnung!$H$2:$I$6,2,FALSE)),\"0\",VLOOKUP(DSFA!H61,Risikoberechnung!$H$2:$I$6,2,FALSE))","v":"0"},{"$f":"DSFA!K61","v":"x"},{"$f":"IF(ISNA(VLOOKUP(DSFA!N61,Risikoberechnung!$H$2:$I$6,2,FALSE)),\"\",VLOOKUP(DSFA!N61,Risikoberechnung!$H$2:$I$6,2,FALSE))","v":""},{"$f":"IF(ISNA(VLOOKUP(DSFA!O61,Risikoberechnung!$H$2:$I$6,2,FALSE)),\"\",VLOOKUP(DSFA!O61,Risikoberechnung!$H$2:$I$6,2,FALSE))","v":""},{"$f":"DSFA!R61","v":"x"}]
[{"$f":"DSFA!A62","v":57},{"$f":"IF(ISNA(VLOOKUP(DSFA!G62,Risikoberechnung!$H$2:$I$5,2,FALSE)),\"\",VLOOKUP(DSFA!G62,Risikoberechnung!$H$2:$I$5,2,FALSE))","v":""},{"$f":"IF(ISNA(VLOOKUP(DSFA!H62,Risikoberechnung!$H$2:$I$6,2,FALSE)),\"0\",VLOOKUP(DSFA!H62,Risikoberechnung!$H$2:$I$6,2,FALSE))","v":"0"},{"$f":"DSFA!K62","v":"x"},{"$f":"IF(ISNA(VLOOKUP(DSFA!N62,Risikoberechnung!$H$2:$I$6,2,FALSE)),\"\",VLOOKUP(DSFA!N62,Risikoberechnung!$H$2:$I$6,2,FALSE))","v":""},{"$f":"IF(ISNA(VLOOKUP(DSFA!O62,Risikoberechnung!$H$2:$I$6,2,FALSE)),\"\",VLOOKUP(DSFA!O62,Risikoberechnung!$H$2:$I$6,2,FALSE))","v":""},{"$f":"DSFA!R62","v":"x"}]
[{"$f":"DSFA!A63","v":58},{"$f":"IF(ISNA(VLOOKUP(DSFA!G63,Risikoberechnung!$H$2:$I$5,2,FALSE)),\"\",VLOOKUP(DSFA!G63,Risikoberechnung!$H$2:$I$5,2,FALSE))","v":""},{"$f":"IF(ISNA(VLOOKUP(DSFA!H63,Risikoberechnung!$H$2:$I$6,2,FALSE)),\"0\",VLOOKUP(DSFA!H63,Risikoberechnung!$H$2:$I$6,2,FALSE))","v":"0"},{"$f":"DSFA!K63","v":"x"},{"$f":"IF(ISNA(VLOOKUP(DSFA!N63,Risikoberechnung!$H$2:$I$6,2,FALSE)),\"\",VLOOKUP(DSFA!N63,Risikoberechnung!$H$2:$I$6,2,FALSE))","v":""},{"$f":"IF(ISNA(VLOOKUP(DSFA!O63,Risikoberechnung!$H$2:$I$6,2,FALSE)),\"\",VLOOKUP(DSFA!O63,Risikoberechnung!$H$2:$I$6,2,FALSE))","v":""},{"$f":"DSFA!R63","v":"x"}]
[{"$f":"DSFA!A64","v":59},{"$f":"IF(ISNA(VLOOKUP(DSFA!G64,Risikoberechnung!$H$2:$I$5,2,FALSE)),\"\",VLOOKUP(DSFA!G64,Risikoberechnung!$H$2:$I$5,2,FALSE))","v":""},{"$f":"IF(ISNA(VLOOKUP(DSFA!H64,Risikoberechnung!$H$2:$I$6,2,FALSE)),\"0\",VLOOKUP(DSFA!H64,Risikoberechnung!$H$2:$I$6,2,FALSE))","v":"0"},{"$f":"DSFA!K64","v":"x"},{"$f":"IF(ISNA(VLOOKUP(DSFA!N64,Risikoberechnung!$H$2:$I$6,2,FALSE)),\"\",VLOOKUP(DSFA!N64,Risikoberechnung!$H$2:$I$6,2,FALSE))","v":""},{"$f":"IF(ISNA(VLOOKUP(DSFA!O64,Risikoberechnung!$H$2:$I$6,2,FALSE)),\"\",VLOOKUP(DSFA!O64,Risikoberechnung!$H$2:$I$6,2,FALSE))","v":""},{"$f":"DSFA!R64","v":"x"}]
[{"$f":"DSFA!A65","v":60},{"$f":"IF(ISNA(VLOOKUP(DSFA!G65,Risikoberechnung!$H$2:$I$5,2,FALSE)),\"\",VLOOKUP(DSFA!G65,Risikoberechnung!$H$2:$I$5,2,FALSE))","v":""},{"$f":"IF(ISNA(VLOOKUP(DSFA!H65,Risikoberechnung!$H$2:$I$6,2,FALSE)),\"0\",VLOOKUP(DSFA!H65,Risikoberechnung!$H$2:$I$6,2,FALSE))","v":"0"},{"$f":"DSFA!K65","v":"x"},{"$f":"IF(ISNA(VLOOKUP(DSFA!N65,Risikoberechnung!$H$2:$I$6,2,FALSE)),\"\",VLOOKUP(DSFA!N65,Risikoberechnung!$H$2:$I$6,2,FALSE))","v":""},{"$f":"IF(ISNA(VLOOKUP(DSFA!O65,Risikoberechnung!$H$2:$I$6,2,FALSE)),\"\",VLOOKUP(DSFA!O65,Risikoberechnung!$H$2:$I$6,2,FALSE))","v":""},{"$f":"DSFA!R65","v":"x"}]
[{"$f":"DSFA!A66","v":61},{"$f":"IF(ISNA(VLOOKUP(DSFA!G66,Risikoberechnung!$H$2:$I$5,2,FALSE)),\"\",VLOOKUP(DSFA!G66,Risikoberechnung!$H$2:$I$5,2,FALSE))","v":""},{"$f":"IF(ISNA(VLOOKUP(DSFA!H66,Risikoberechnung!$H$2:$I$6,2,FALSE)),\"0\",VLOOKUP(DSFA!H66,Risikoberechnung!$H$2:$I$6,2,FALSE))","v":"0"},{"$f":"DSFA!K66","v":"x"},{"$f":"IF(ISNA(VLOOKUP(DSFA!N66,Risikoberechnung!$H$2:$I$6,2,FALSE)),\"\",VLOOKUP(DSFA!N66,Risikoberechnung!$H$2:$I$6,2,FALSE))","v":""},{"$f":"IF(ISNA(VLOOKUP(DSFA!O66,Risikoberechnung!$H$2:$I$6,2,FALSE)),\"\",VLOOKUP(DSFA!O66,Risikoberechnung!$H$2:$I$6,2,FALSE))","v":""},{"$f":"DSFA!R66","v":"x"}]
[{"$f":"DSFA!A67","v":62},{"$f":"IF(ISNA(VLOOKUP(DSFA!G67,Risikoberechnung!$H$2:$I$5,2,FALSE)),\"\",VLOOKUP(DSFA!G67,Risikoberechnung!$H$2:$I$5,2,FALSE))","v":""},{"$f":"IF(ISNA(VLOOKUP(DSFA!H67,Risikoberechnung!$H$2:$I$6,2,FALSE)),\"0\",VLOOKUP(DSFA!H67,Risikoberechnung!$H$2:$I$6,2,FALSE))","v":"0"},{"$f":"DSFA!K67","v":"x"},{"$f":"IF(ISNA(VLOOKUP(DSFA!N67,Risikoberechnung!$H$2:$I$6,2,FALSE)),\"\",VLOOKUP(DSFA!N67,Risikoberechnung!$H$2:$I$6,2,FALSE))","v":""},{"$f":"IF(ISNA(VLOOKUP(DSFA!O67,Risikoberechnung!$H$2:$I$6,2,FALSE)),\"\",VLOOKUP(DSFA!O67,Risikoberechnung!$H$2:$I$6,2,FALSE))","v":""},{"$f":"DSFA!R67","v":"x"}]
[{"$f":"DSFA!A68","v":63},{"$f":"IF(ISNA(VLOOKUP(DSFA!G68,Risikoberechnung!$H$2:$I$5,2,FALSE)),\"\",VLOOKUP(DSFA!G68,Risikoberechnung!$H$2:$I$5,2,FALSE))","v":""},{"$f":"IF(ISNA(VLOOKUP(DSFA!H68,Risikoberechnung!$H$2:$I$6,2,FALSE)),\"0\",VLOOKUP(DSFA!H68,Risikoberechnung!$H$2:$I$6,2,FALSE))","v":"0"},{"$f":"DSFA!K68","v":"x"},{"$f":"IF(ISNA(VLOOKUP(DSFA!N68,Risikoberechnung!$H$2:$I$6,2,FALSE)),\"\",VLOOKUP(DSFA!N68,Risikoberechnung!$H$2:$I$6,2,FALSE))","v":""},{"$f":"IF(ISNA(VLOOKUP(DSFA!O68,Risikoberechnung!$H$2:$I$6,2,FALSE)),\"\",VLOOKUP(DSFA!O68,Risikoberechnung!$H$2:$I$6,2,FALSE))","v":""},{"$f":"DSFA!R68","v":"x"}]
[{"$f":"DSFA!A69","v":64},{"$f":"IF(ISNA(VLOOKUP(DSFA!G69,Risikoberechnung!$H$2:$I$5,2,FALSE)),\"\",VLOOKUP(DSFA!G69,Risikoberechnung!$H$2:$I$5,2,FALSE))","v":""},{"$f":"IF(ISNA(VLOOKUP(DSFA!H69,Risikoberechnung!$H$2:$I$6,2,FALSE)),\"0\",VLOOKUP(DSFA!H69,Risikoberechnung!$H$2:$I$6,2,FALSE))","v":"0"},{"$f":"DSFA!K69","v":"x"},{"$f":"IF(ISNA(VLOOKUP(DSFA!N69,Risikoberechnung!$H$2:$I$6,2,FALSE)),\"\",VLOOKUP(DSFA!N69,Risikoberechnung!$H$2:$I$6,2,FALSE))","v":""},{"$f":"IF(ISNA(VLOOKUP(DSFA!O69,Risikoberechnung!$H$2:$I$6,2,FALSE)),\"\",VLOOKUP(DSFA!O69,Risikoberechnung!$H$2:$I$6,2,FALSE))","v":""},{"$f":"DSFA!R69","v":"x"}]
[{"$f":"DSFA!A70","v":65},{"$f":"IF(ISNA(VLOOKUP(DSFA!G70,Risikoberechnung!$H$2:$I$5,2,FALSE)),\"\",VLOOKUP(DSFA!G70,Risikoberechnung!$H$2:$I$5,2,FALSE))","v":""},{"$f":"IF(ISNA(VLOOKUP(DSFA!H70,Risikoberechnung!$H$2:$I$6,2,FALSE)),\"0\",VLOOKUP(DSFA!H70,Risikoberechnung!$H$2:$I$6,2,FALSE))","v":"0"},{"$f":"DSFA!K70","v":"x"},{"$f":"IF(ISNA(VLOOKUP(DSFA!N70,Risikoberechnung!$H$2:$I$6,2,FALSE)),\"\",VLOOKUP(DSFA!N70,Risikoberechnung!$H$2:$I$6,2,FALSE))","v":""},{"$f":"IF(ISNA(VLOOKUP(DSFA!O70,Risikoberechnung!$H$2:$I$6,2,FALSE)),\"\",VLOOKUP(DSFA!O70,Risikoberechnung!$H$2:$I$6,2,FALSE))","v":""},{"$f":"DSFA!R70","v":"x"}]
[{"$f":"DSFA!A71","v":66},{"$f":"IF(ISNA(VLOOKUP(DSFA!G71,Risikoberechnung!$H$2:$I$5,2,FALSE)),\"\",VLOOKUP(DSFA!G71,Risikoberechnung!$H$2:$I$5,2,FALSE))","v":""},{"$f":"IF(ISNA(VLOOKUP(DSFA!H71,Risikoberechnung!$H$2:$I$6,2,FALSE)),\"0\",VLOOKUP(DSFA!H71,Risikoberechnung!$H$2:$I$6,2,FALSE))","v":"0"},{"$f":"DSFA!K71","v":"x"},{"$f":"IF(ISNA(VLOOKUP(DSFA!N71,Risikoberechnung!$H$2:$I$6,2,FALSE)),\"\",VLOOKUP(DSFA!N71,Risikoberechnung!$H$2:$I$6,2,FALSE))","v":""},{"$f":"IF(ISNA(VLOOKUP(DSFA!O71,Risikoberechnung!$H$2:$I$6,2,FALSE)),\"\",VLOOKUP(DSFA!O71,Risikoberechnung!$H$2:$I$6,2,FALSE))","v":""},{"$f":"DSFA!R71","v":"x"}]
[{"$f":"DSFA!A72","v":67},{"$f":"IF(ISNA(VLOOKUP(DSFA!G72,Risikoberechnung!$H$2:$I$5,2,FALSE)),\"\",VLOOKUP(DSFA!G72,Risikoberechnung!$H$2:$I$5,2,FALSE))","v":""},{"$f":"IF(ISNA(VLOOKUP(DSFA!H72,Risikoberechnung!$H$2:$I$6,2,FALSE)),\"0\",VLOOKUP(DSFA!H72,Risikoberechnung!$H$2:$I$6,2,FALSE))","v":"0"},{"$f":"DSFA!K72","v":"x"},{"$f":"IF(ISNA(VLOOKUP(DSFA!N72,Risikoberechnung!$H$2:$I$6,2,FALSE)),\"\",VLOOKUP(DSFA!N72,Risikoberechnung!$H$2:$I$6,2,FALSE))","v":""},{"$f":"IF(ISNA(VLOOKUP(DSFA!O72,Risikoberechnung!$H$2:$I$6,2,FALSE)),\"\",VLOOKUP(DSFA!O72,Risikoberechnung!$H$2:$I$6,2,FALSE))","v":""},{"$f":"DSFA!R72","v":"x"}]
[{"$f":"DSFA!A73","v":68},{"$f":"IF(ISNA(VLOOKUP(DSFA!G73,Risikoberechnung!$H$2:$I$5,2,FALSE)),\"\",VLOOKUP(DSFA!G73,Risikoberechnung!$H$2:$I$5,2,FALSE))","v":""},{"$f":"IF(ISNA(VLOOKUP(DSFA!H73,Risikoberechnung!$H$2:$I$6,2,FALSE)),\"0\",VLOOKUP(DSFA!H73,Risikoberechnung!$H$2:$I$6,2,FALSE))","v":"0"},{"$f":"DSFA!K73","v":"x"},{"$f":"IF(ISNA(VLOOKUP(DSFA!N73,Risikoberechnung!$H$2:$I$6,2,FALSE)),\"\",VLOOKUP(DSFA!N73,Risikoberechnung!$H$2:$I$6,2,FALSE))","v":""},{"$f":"IF(ISNA(VLOOKUP(DSFA!O73,Risikoberechnung!$H$2:$I$6,2,FALSE)),\"\",VLOOKUP(DSFA!O73,Risikoberechnung!$H$2:$I$6,2,FALSE))","v":""},{"$f":"DSFA!R73","v":"x"}]
[{"$f":"DSFA!A74","v":69},{"$f":"IF(ISNA(VLOOKUP(DSFA!G74,Risikoberechnung!$H$2:$I$5,2,FALSE)),\"\",VLOOKUP(DSFA!G74,Risikoberechnung!$H$2:$I$5,2,FALSE))","v":""},{"$f":"IF(ISNA(VLOOKUP(DSFA!H74,Risikoberechnung!$H$2:$I$6,2,FALSE)),\"0\",VLOOKUP(DSFA!H74,Risikoberechnung!$H$2:$I$6,2,FALSE))","v":"0"},{"$f":"DSFA!K74","v":"x"},{"$f":"IF(ISNA(VLOOKUP(DSFA!N74,Risikoberechnung!$H$2:$I$6,2,FALSE)),\"\",VLOOKUP(DSFA!N74,Risikoberechnung!$H$2:$I$6,2,FALSE))","v":""},{"$f":"IF(ISNA(VLOOKUP(DSFA!O74,Risikoberechnung!$H$2:$I$6,2,FALSE)),\"\",VLOOKUP(DSFA!O74,Risikoberechnung!$H$2:$I$6,2,FALSE))","v":""},{"$f":"DSFA!R74","v":"x"}]
[{"$f":"DSFA!A75","v":70},{"$f":"IF(ISNA(VLOOKUP(DSFA!G75,Risikoberechnung!$H$2:$I$5,2,FALSE)),\"\",VLOOKUP(DSFA!G75,Risikoberechnung!$H$2:$I$5,2,FALSE))","v":""},{"$f":"IF(ISNA(VLOOKUP(DSFA!H75,Risikoberechnung!$H$2:$I$6,2,FALSE)),\"0\",VLOOKUP(DSFA!H75,Risikoberechnung!$H$2:$I$6,2,FALSE))","v":"0"},{"$f":"DSFA!K75","v":"x"},{"$f":"IF(ISNA(VLOOKUP(DSFA!N75,Risikoberechnung!$H$2:$I$6,2,FALSE)),\"\",VLOOKUP(DSFA!N75,Risikoberechnung!$H$2:$I$6,2,FALSE))","v":""},{"$f":"IF(ISNA(VLOOKUP(DSFA!O75,Risikoberechnung!$H$2:$I$6,2,FALSE)),\"\",VLOOKUP(DSFA!O75,Risikoberechnung!$H$2:$I$6,2,FALSE))","v":""},{"$f":"DSFA!R75","v":"x"}]
[{"$f":"DSFA!A76","v":71},{"$f":"IF(ISNA(VLOOKUP(DSFA!G76,Risikoberechnung!$H$2:$I$5,2,FALSE)),\"\",VLOOKUP(DSFA!G76,Risikoberechnung!$H$2:$I$5,2,FALSE))","v":""},{"$f":"IF(ISNA(VLOOKUP(DSFA!H76,Risikoberechnung!$H$2:$I$6,2,FALSE)),\"0\",VLOOKUP(DSFA!H76,Risikoberechnung!$H$2:$I$6,2,FALSE))","v":"0"},{"$f":"DSFA!K76","v":"x"},{"$f":"IF(ISNA(VLOOKUP(DSFA!N76,Risikoberechnung!$H$2:$I$6,2,FALSE)),\"\",VLOOKUP(DSFA!N76,Risikoberechnung!$H$2:$I$6,2,FALSE))","v":""},{"$f":"IF(ISNA(VLOOKUP(DSFA!O76,Risikoberechnung!$H$2:$I$6,2,FALSE)),\"\",VLOOKUP(DSFA!O76,Risikoberechnung!$H$2:$I$6,2,FALSE))","v":""},{"$f":"DSFA!R76","v":"x"}]
[{"$f":"DSFA!A77","v":72},{"$f":"IF(ISNA(VLOOKUP(DSFA!G77,Risikoberechnung!$H$2:$I$5,2,FALSE)),\"\",VLOOKUP(DSFA!G77,Risikoberechnung!$H$2:$I$5,2,FALSE))","v":""},{"$f":"IF(ISNA(VLOOKUP(DSFA!H77,Risikoberechnung!$H$2:$I$6,2,FALSE)),\"0\",VLOOKUP(DSFA!H77,Risikoberechnung!$H$2:$I$6,2,FALSE))","v":"0"},{"$f":"DSFA!K77","v":"x"},{"$f":"IF(ISNA(VLOOKUP(DSFA!N77,Risikoberechnung!$H$2:$I$6,2,FALSE)),\"\",VLOOKUP(DSFA!N77,Risikoberechnung!$H$2:$I$6,2,FALSE))","v":""},{"$f":"IF(ISNA(VLOOKUP(DSFA!O77,Risikoberechnung!$H$2:$I$6,2,FALSE)),\"\",VLOOKUP(DSFA!O77,Risikoberechnung!$H$2:$I$6,2,FALSE))","v":""},{"$f":"DSFA!R77","v":"x"}]
[{"$f":"DSFA!A78","v":73},{"$f":"IF(ISNA(VLOOKUP(DSFA!G78,Risikoberechnung!$H$2:$I$5,2,FALSE)),\"\",VLOOKUP(DSFA!G78,Risikoberechnung!$H$2:$I$5,2,FALSE))","v":""},{"$f":"IF(ISNA(VLOOKUP(DSFA!H78,Risikoberechnung!$H$2:$I$6,2,FALSE)),\"0\",VLOOKUP(DSFA!H78,Risikoberechnung!$H$2:$I$6,2,FALSE))","v":"0"},{"$f":"DSFA!K78","v":"x"},{"$f":"IF(ISNA(VLOOKUP(DSFA!N78,Risikoberechnung!$H$2:$I$6,2,FALSE)),\"\",VLOOKUP(DSFA!N78,Risikoberechnung!$H$2:$I$6,2,FALSE))","v":""},{"$f":"IF(ISNA(VLOOKUP(DSFA!O78,Risikoberechnung!$H$2:$I$6,2,FALSE)),\"\",VLOOKUP(DSFA!O78,Risikoberechnung!$H$2:$I$6,2,FALSE))","v":""},{"$f":"DSFA!R78","v":"x"}]
[{"$f":"DSFA!A79","v":74},{"$f":"IF(ISNA(VLOOKUP(DSFA!G79,Risikoberechnung!$H$2:$I$5,2,FALSE)),\"\",VLOOKUP(DSFA!G79,Risikoberechnung!$H$2:$I$5,2,FALSE))","v":""},{"$f":"IF(ISNA(VLOOKUP(DSFA!H79,Risikoberechnung!$H$2:$I$6,2,FALSE)),\"0\",VLOOKUP(DSFA!H79,Risikoberechnung!$H$2:$I$6,2,FALSE))","v":"0"},{"$f":"DSFA!K79","v":"x"},{"$f":"IF(ISNA(VLOOKUP(DSFA!N79,Risikoberechnung!$H$2:$I$6,2,FALSE)),\"\",VLOOKUP(DSFA!N79,Risikoberechnung!$H$2:$I$6,2,FALSE))","v":""},{"$f":"IF(ISNA(VLOOKUP(DSFA!O79,Risikoberechnung!$H$2:$I$6,2,FALSE)),\"\",VLOOKUP(DSFA!O79,Risikoberechnung!$H$2:$I$6,2,FALSE))","v":""},{"$f":"DSFA!R79","v":"x"}]
[{"$f":"DSFA!A80","v":75},{"$f":"IF(ISNA(VLOOKUP(DSFA!G80,Risikoberechnung!$H$2:$I$5,2,FALSE)),\"\",VLOOKUP(DSFA!G80,Risikoberechnung!$H$2:$I$5,2,FALSE))","v":""},{"$f":"IF(ISNA(VLOOKUP(DSFA!H80,Risikoberechnung!$H$2:$I$6,2,FALSE)),\"0\",VLOOKUP(DSFA!H80,Risikoberechnung!$H$2:$I$6,2,FALSE))","v":"0"},{"$f":"DSFA!K80","v":"x"},{"$f":"IF(ISNA(VLOOKUP(DSFA!N80,Risikoberechnung!$H$2:$I$6,2,FALSE)),\"\",VLOOKUP(DSFA!N80,Risikoberechnung!$H$2:$I$6,2,FALSE))","v":""},{"$f":"IF(ISNA(VLOOKUP(DSFA!O80,Risikoberechnung!$H$2:$I$6,2,FALSE)),\"\",VLOOKUP(DSFA!O80,Risikoberechnung!$H$2:$I$6,2,FALSE))","v":""},{"$f":"DSFA!R80","v":"x"}]
[{"$f":"DSFA!A81","v":76},{"$f":"IF(ISNA(VLOOKUP(DSFA!G81,Risikoberechnung!$H$2:$I$5,2,FALSE)),\"\",VLOOKUP(DSFA!G81,Risikoberechnung!$H$2:$I$5,2,FALSE))","v":""},{"$f":"IF(ISNA(VLOOKUP(DSFA!H81,Risikoberechnung!$H$2:$I$6,2,FALSE)),\"0\",VLOOKUP(DSFA!H81,Risikoberechnung!$H$2:$I$6,2,FALSE))","v":"0"},{"$f":"DSFA!K81","v":"x"},{"$f":"IF(ISNA(VLOOKUP(DSFA!N81,Risikoberechnung!$H$2:$I$6,2,FALSE)),\"\",VLOOKUP(DSFA!N81,Risikoberechnung!$H$2:$I$6,2,FALSE))","v":""},{"$f":"IF(ISNA(VLOOKUP(DSFA!O81,Risikoberechnung!$H$2:$I$6,2,FALSE)),\"\",VLOOKUP(DSFA!O81,Risikoberechnung!$H$2:$I$6,2,FALSE))","v":""},{"$f":"DSFA!R81","v":"x"}]
[{"$f":"DSFA!A82","v":77},{"$f":"IF(ISNA(VLOOKUP(DSFA!G82,Risikoberechnung!$H$2:$I$5,2,FALSE)),\"\",VLOOKUP(DSFA!G82,Risikoberechnung!$H$2:$I$5,2,FALSE))","v":""},{"$f":"IF(ISNA(VLOOKUP(DSFA!H82,Risikoberechnung!$H$2:$I$6,2,FALSE)),\"0\",VLOOKUP(DSFA!H82,Risikoberechnung!$H$2:$I$6,2,FALSE))","v":"0"},{"$f":"DSFA!K82","v":"x"},{"$f":"IF(ISNA(VLOOKUP(DSFA!N82,Risikoberechnung!$H$2:$I$6,2,FALSE)),\"\",VLOOKUP(DSFA!N82,Risikoberechnung!$H$2:$I$6,2,FALSE))","v":""},{"$f":"IF(ISNA(VLOOKUP(DSFA!O82,Risikoberechnung!$H$2:$I$6,2,FALSE)),\"\",VLOOKUP(DSFA!O82,Risikoberechnung!$H$2:$I$6,2,FALSE))","v":""},{"$f":"DSFA!R82","v":"x"}]
[{"$f":"DSFA!A83","v":78},{"$f":"IF(ISNA(VLOOKUP(DSFA!G83,Risikoberechnung!$H$2:$I$5,2,FALSE)),\"\",VLOOKUP(DSFA!G83,Risikoberechnung!$H$2:$I$5,2,FALSE))","v":""},{"$f":"IF(ISNA(VLOOKUP(DSFA!H83,Risikoberechnung!$H$2:$I$6,2,FALSE)),\"0\",VLOOKUP(DSFA!H83,Risikoberechnung!$H$2:$I$6,2,FALSE))","v":"0"},{"$f":"DSFA!K83","v":"x"},{"$f":"IF(ISNA(VLOOKUP(DSFA!N83,Risikoberechnung!$H$2:$I$6,2,FALSE)),\"\",VLOOKUP(DSFA!N83,Risikoberechnung!$H$2:$I$6,2,FALSE))","v":""},{"$f":"IF(ISNA(VLOOKUP(DSFA!O83,Risikoberechnung!$H$2:$I$6,2,FALSE)),\"\",VLOOKUP(DSFA!O83,Risikoberechnung!$H$2:$I$6,2,FALSE))","v":""},{"$f":"DSFA!R83","v":"x"}]
[{"$f":"DSFA!A84","v":79},{"$f":"IF(ISNA(VLOOKUP(DSFA!G84,Risikoberechnung!$H$2:$I$5,2,FALSE)),\"\",VLOOKUP(DSFA!G84,Risikoberechnung!$H$2:$I$5,2,FALSE))","v":""},{"$f":"IF(ISNA(VLOOKUP(DSFA!H84,Risikoberechnung!$H$2:$I$6,2,FALSE)),\"0\",VLOOKUP(DSFA!H84,Risikoberechnung!$H$2:$I$6,2,FALSE))","v":"0"},{"$f":"DSFA!K84","v":"x"},{"$f":"IF(ISNA(VLOOKUP(DSFA!N84,Risikoberechnung!$H$2:$I$6,2,FALSE)),\"\",VLOOKUP(DSFA!N84,Risikoberechnung!$H$2:$I$6,2,FALSE))","v":""},{"$f":"IF(ISNA(VLOOKUP(DSFA!O84,Risikoberechnung!$H$2:$I$6,2,FALSE)),\"\",VLOOKUP(DSFA!O84,Risikoberechnung!$H$2:$I$6,2,FALSE))","v":""},{"$f":"DSFA!R84","v":"x"}]
[{"$f":"DSFA!A85","v":80},{"$f":"IF(ISNA(VLOOKUP(DSFA!G85,Risikoberechnung!$H$2:$I$5,2,FALSE)),\"\",VLOOKUP(DSFA!G85,Risikoberechnung!$H$2:$I$5,2,FALSE))","v":""},{"$f":"IF(ISNA(VLOOKUP(DSFA!H85,Risikoberechnung!$H$2:$I$6,2,FALSE)),\"0\",VLOOKUP(DSFA!H85,Risikoberechnung!$H$2:$I$6,2,FALSE))","v":"0"},{"$f":"DSFA!K85","v":"x"},{"$f":"IF(ISNA(VLOOKUP(DSFA!N85,Risikoberechnung!$H$2:$I$6,2,FALSE)),\"\",VLOOKUP(DSFA!N85,Risikoberechnung!$H$2:$I$6,2,FALSE))","v":""},{"$f":"IF(ISNA(VLOOKUP(DSFA!O85,Risikoberechnung!$H$2:$I$6,2,FALSE)),\"\",VLOOKUP(DSFA!O85,Risikoberechnung!$H$2:$I$6,2,FALSE))","v":""},{"$f":"DSFA!R85","v":"x"}]
[{"$f":"DSFA!A86","v":81},{"$f":"IF(ISNA(VLOOKUP(DSFA!G86,Risikoberechnung!$H$2:$I$5,2,FALSE)),\"\",VLOOKUP(DSFA!G86,Risikoberechnung!$H$2:$I$5,2,FALSE))","v":""},{"$f":"IF(ISNA(VLOOKUP(DSFA!H86,Risikoberechnung!$H$2:$I$6,2,FALSE)),\"0\",VLOOKUP(DSFA!H86,Risikoberechnung!$H$2:$I$6,2,FALSE))","v":"0"},{"$f":"DSFA!K86","v":"x"},{"$f":"IF(ISNA(VLOOKUP(DSFA!N86,Risikoberechnung!$H$2:$I$6,2,FALSE)),\"\",VLOOKUP(DSFA!N86,Risikoberechnung!$H$2:$I$6,2,FALSE))","v":""},{"$f":"IF(ISNA(VLOOKUP(DSFA!O86,Risikoberechnung!$H$2:$I$6,2,FALSE)),\"\",VLOOKUP(DSFA!O86,Risikoberechnung!$H$2:$I$6,2,FALSE))","v":""},{"$f":"DSFA!R86","v":"x"}]
[{"$f":"DSFA!A87","v":82},{"$f":"IF(ISNA(VLOOKUP(DSFA!G87,Risikoberechnung!$H$2:$I$5,2,FALSE)),\"\",VLOOKUP(DSFA!G87,Risikoberechnung!$H$2:$I$5,2,FALSE))","v":""},{"$f":"IF(ISNA(VLOOKUP(DSFA!H87,Risikoberechnung!$H$2:$I$6,2,FALSE)),\"0\",VLOOKUP(DSFA!H87,Risikoberechnung!$H$2:$I$6,2,FALSE))","v":"0"},{"$f":"DSFA!K87","v":"x"},{"$f":"IF(ISNA(VLOOKUP(DSFA!N87,Risikoberechnung!$H$2:$I$6,2,FALSE)),\"\",VLOOKUP(DSFA!N87,Risikoberechnung!$H$2:$I$6,2,FALSE))","v":""},{"$f":"IF(ISNA(VLOOKUP(DSFA!O87,Risikoberechnung!$H$2:$I$6,2,FALSE)),\"\",VLOOKUP(DSFA!O87,Risikoberechnung!$H$2:$I$6,2,FALSE))","v":""},{"$f":"DSFA!R87","v":"x"}]
[{"$f":"DSFA!A88","v":83},{"$f":"IF(ISNA(VLOOKUP(DSFA!G88,Risikoberechnung!$H$2:$I$5,2,FALSE)),\"\",VLOOKUP(DSFA!G88,Risikoberechnung!$H$2:$I$5,2,FALSE))","v":""},{"$f":"IF(ISNA(VLOOKUP(DSFA!H88,Risikoberechnung!$H$2:$I$6,2,FALSE)),\"0\",VLOOKUP(DSFA!H88,Risikoberechnung!$H$2:$I$6,2,FALSE))","v":"0"},{"$f":"DSFA!K88","v":"x"},{"$f":"IF(ISNA(VLOOKUP(DSFA!N88,Risikoberechnung!$H$2:$I$6,2,FALSE)),\"\",VLOOKUP(DSFA!N88,Risikoberechnung!$H$2:$I$6,2,FALSE))","v":""},{"$f":"IF(ISNA(VLOOKUP(DSFA!O88,Risikoberechnung!$H$2:$I$6,2,FALSE)),\"\",VLOOKUP(DSFA!O88,Risikoberechnung!$H$2:$I$6,2,FALSE))","v":""},{"$f":"DSFA!R88","v":"x"}]
[{"$f":"DSFA!A89","v":84},{"$f":"IF(ISNA(VLOOKUP(DSFA!G89,Risikoberechnung!$H$2:$I$5,2,FALSE)),\"\",VLOOKUP(DSFA!G89,Risikoberechnung!$H$2:$I$5,2,FALSE))","v":""},{"$f":"IF(ISNA(VLOOKUP(DSFA!H89,Risikoberechnung!$H$2:$I$6,2,FALSE)),\"0\",VLOOKUP(DSFA!H89,Risikoberechnung!$H$2:$I$6,2,FALSE))","v":"0"},{"$f":"DSFA!K89","v":"x"},{"$f":"IF(ISNA(VLOOKUP(DSFA!N89,Risikoberechnung!$H$2:$I$6,2,FALSE)),\"\",VLOOKUP(DSFA!N89,Risikoberechnung!$H$2:$I$6,2,FALSE))","v":""},{"$f":"IF(ISNA(VLOOKUP(DSFA!O89,Risikoberechnung!$H$2:$I$6,2,FALSE)),\"\",VLOOKUP(DSFA!O89,Risikoberechnung!$H$2:$I$6,2,FALSE))","v":""},{"$f":"DSFA!R89","v":"x"}]
[{"$f":"DSFA!A90","v":85},{"$f":"IF(ISNA(VLOOKUP(DSFA!G90,Risikoberechnung!$H$2:$I$5,2,FALSE)),\"\",VLOOKUP(DSFA!G90,Risikoberechnung!$H$2:$I$5,2,FALSE))","v":""},{"$f":"IF(ISNA(VLOOKUP(DSFA!H90,Risikoberechnung!$H$2:$I$6,2,FALSE)),\"0\",VLOOKUP(DSFA!H90,Risikoberechnung!$H$2:$I$6,2,FALSE))","v":"0"},{"$f":"DSFA!K90","v":"x"},{"$f":"IF(ISNA(VLOOKUP(DSFA!N90,Risikoberechnung!$H$2:$I$6,2,FALSE)),\"\",VLOOKUP(DSFA!N90,Risikoberechnung!$H$2:$I$6,2,FALSE))","v":""},{"$f":"IF(ISNA(VLOOKUP(DSFA!O90,Risikoberechnung!$H$2:$I$6,2,FALSE)),\"\",VLOOKUP(DSFA!O90,Risikoberechnung!$H$2:$I$6,2,FALSE))","v":""},{"$f":"DSFA!R90","v":"x"}]
[{"$f":"DSFA!A91","v":86},{"$f":"IF(ISNA(VLOOKUP(DSFA!G91,Risikoberechnung!$H$2:$I$5,2,FALSE)),\"\",VLOOKUP(DSFA!G91,Risikoberechnung!$H$2:$I$5,2,FALSE))","v":""},{"$f":"IF(ISNA(VLOOKUP(DSFA!H91,Risikoberechnung!$H$2:$I$6,2,FALSE)),\"0\",VLOOKUP(DSFA!H91,Risikoberechnung!$H$2:$I$6,2,FALSE))","v":"0"},{"$f":"DSFA!K91","v":"x"},{"$f":"IF(ISNA(VLOOKUP(DSFA!N91,Risikoberechnung!$H$2:$I$6,2,FALSE)),\"\",VLOOKUP(DSFA!N91,Risikoberechnung!$H$2:$I$6,2,FALSE))","v":""},{"$f":"IF(ISNA(VLOOKUP(DSFA!O91,Risikoberechnung!$H$2:$I$6,2,FALSE)),\"\",VLOOKUP(DSFA!O91,Risikoberechnung!$H$2:$I$6,2,FALSE))","v":""},{"$f":"DSFA!R91","v":"x"}]
[{"$f":"DSFA!A92","v":87},{"$f":"IF(ISNA(VLOOKUP(DSFA!G92,Risikoberechnung!$H$2:$I$5,2,FALSE)),\"\",VLOOKUP(DSFA!G92,Risikoberechnung!$H$2:$I$5,2,FALSE))","v":""},{"$f":"IF(ISNA(VLOOKUP(DSFA!H92,Risikoberechnung!$H$2:$I$6,2,FALSE)),\"0\",VLOOKUP(DSFA!H92,Risikoberechnung!$H$2:$I$6,2,FALSE))","v":"0"},{"$f":"DSFA!K92","v":"x"},{"$f":"IF(ISNA(VLOOKUP(DSFA!N92,Risikoberechnung!$H$2:$I$6,2,FALSE)),\"\",VLOOKUP(DSFA!N92,Risikoberechnung!$H$2:$I$6,2,FALSE))","v":""},{"$f":"IF(ISNA(VLOOKUP(DSFA!O92,Risikoberechnung!$H$2:$I$6,2,FALSE)),\"\",VLOOKUP(DSFA!O92,Risikoberechnung!$H$2:$I$6,2,FALSE))","v":""},{"$f":"DSFA!R92","v":"x"}]
[{"$f":"DSFA!A93","v":88},{"$f":"IF(ISNA(VLOOKUP(DSFA!G93,Risikoberechnung!$H$2:$I$5,2,FALSE)),\"\",VLOOKUP(DSFA!G93,Risikoberechnung!$H$2:$I$5,2,FALSE))","v":""},{"$f":"IF(ISNA(VLOOKUP(DSFA!H93,Risikoberechnung!$H$2:$I$6,2,FALSE)),\"0\",VLOOKUP(DSFA!H93,Risikoberechnung!$H$2:$I$6,2,FALSE))","v":"0"},{"$f":"DSFA!K93","v":"x"},{"$f":"IF(ISNA(VLOOKUP(DSFA!N93,Risikoberechnung!$H$2:$I$6,2,FALSE)),\"\",VLOOKUP(DSFA!N93,Risikoberechnung!$H$2:$I$6,2,FALSE))","v":""},{"$f":"IF(ISNA(VLOOKUP(DSFA!O93,Risikoberechnung!$H$2:$I$6,2,FALSE)),\"\",VLOOKUP(DSFA!O93,Risikoberechnung!$H$2:$I$6,2,FALSE))","v":""},{"$f":"DSFA!R93","v":"x"}]
[{"$f":"DSFA!A94","v":89},{"$f":"IF(ISNA(VLOOKUP(DSFA!G94,Risikoberechnung!$H$2:$I$5,2,FALSE)),\"\",VLOOKUP(DSFA!G94,Risikoberechnung!$H$2:$I$5,2,FALSE))","v":""},{"$f":"IF(ISNA(VLOOKUP(DSFA!H94,Risikoberechnung!$H$2:$I$6,2,FALSE)),\"0\",VLOOKUP(DSFA!H94,Risikoberechnung!$H$2:$I$6,2,FALSE))","v":"0"},{"$f":"DSFA!K94","v":"x"},{"$f":"IF(ISNA(VLOOKUP(DSFA!N94,Risikoberechnung!$H$2:$I$6,2,FALSE)),\"\",VLOOKUP(DSFA!N94,Risikoberechnung!$H$2:$I$6,2,FALSE))","v":""},{"$f":"IF(ISNA(VLOOKUP(DSFA!O94,Risikoberechnung!$H$2:$I$6,2,FALSE)),\"\",VLOOKUP(DSFA!O94,Risikoberechnung!$H$2:$I$6,2,FALSE))","v":""},{"$f":"DSFA!R94","v":"x"}]
[{"$f":"DSFA!A95","v":90},{"$f":"IF(ISNA(VLOOKUP(DSFA!G95,Risikoberechnung!$H$2:$I$5,2,FALSE)),\"\",VLOOKUP(DSFA!G95,Risikoberechnung!$H$2:$I$5,2,FALSE))","v":""},{"$f":"IF(ISNA(VLOOKUP(DSFA!H95,Risikoberechnung!$H$2:$I$6,2,FALSE)),\"0\",VLOOKUP(DSFA!H95,Risikoberechnung!$H$2:$I$6,2,FALSE))","v":"0"},{"$f":"DSFA!K95","v":"x"},{"$f":"IF(ISNA(VLOOKUP(DSFA!N95,Risikoberechnung!$H$2:$I$6,2,FALSE)),\"\",VLOOKUP(DSFA!N95,Risikoberechnung!$H$2:$I$6,2,FALSE))","v":""},{"$f":"IF(ISNA(VLOOKUP(DSFA!O95,Risikoberechnung!$H$2:$I$6,2,FALSE)),\"\",VLOOKUP(DSFA!O95,Risikoberechnung!$H$2:$I$6,2,FALSE))","v":""},{"$f":"DSFA!R95","v":"x"}]
[{"$f":"DSFA!A96","v":91},{"$f":"IF(ISNA(VLOOKUP(DSFA!G96,Risikoberechnung!$H$2:$I$5,2,FALSE)),\"\",VLOOKUP(DSFA!G96,Risikoberechnung!$H$2:$I$5,2,FALSE))","v":""},{"$f":"IF(ISNA(VLOOKUP(DSFA!H96,Risikoberechnung!$H$2:$I$6,2,FALSE)),\"0\",VLOOKUP(DSFA!H96,Risikoberechnung!$H$2:$I$6,2,FALSE))","v":"0"},{"$f":"DSFA!K96","v":"x"},{"$f":"IF(ISNA(VLOOKUP(DSFA!N96,Risikoberechnung!$H$2:$I$6,2,FALSE)),\"\",VLOOKUP(DSFA!N96,Risikoberechnung!$H$2:$I$6,2,FALSE))","v":""},{"$f":"IF(ISNA(VLOOKUP(DSFA!O96,Risikoberechnung!$H$2:$I$6,2,FALSE)),\"\",VLOOKUP(DSFA!O96,Risikoberechnung!$H$2:$I$6,2,FALSE))","v":""},{"$f":"DSFA!R96","v":"x"}]
[{"$f":"DSFA!A97","v":92},{"$f":"IF(ISNA(VLOOKUP(DSFA!G97,Risikoberechnung!$H$2:$I$5,2,FALSE)),\"\",VLOOKUP(DSFA!G97,Risikoberechnung!$H$2:$I$5,2,FALSE))","v":""},{"$f":"IF(ISNA(VLOOKUP(DSFA!H97,Risikoberechnung!$H$2:$I$6,2,FALSE)),\"0\",VLOOKUP(DSFA!H97,Risikoberechnung!$H$2:$I$6,2,FALSE))","v":"0"},{"$f":"DSFA!K97","v":"x"},{"$f":"IF(ISNA(VLOOKUP(DSFA!N97,Risikoberechnung!$H$2:$I$6,2,FALSE)),\"\",VLOOKUP(DSFA!N97,Risikoberechnung!$H$2:$I$6,2,FALSE))","v":""},{"$f":"IF(ISNA(VLOOKUP(DSFA!O97,Risikoberechnung!$H$2:$I$6,2,FALSE)),\"\",VLOOKUP(DSFA!O97,Risikoberechnung!$H$2:$I$6,2,FALSE))","v":""},{"$f":"DSFA!R97","v":"x"}]
[{"$f":"DSFA!A98","v":93},{"$f":"IF(ISNA(VLOOKUP(DSFA!G98,Risikoberechnung!$H$2:$I$5,2,FALSE)),\"\",VLOOKUP(DSFA!G98,Risikoberechnung!$H$2:$I$5,2,FALSE))","v":""},{"$f":"IF(ISNA(VLOOKUP(DSFA!H98,Risikoberechnung!$H$2:$I$6,2,FALSE)),\"0\",VLOOKUP(DSFA!H98,Risikoberechnung!$H$2:$I$6,2,FALSE))","v":"0"},{"$f":"DSFA!K98","v":"x"},{"$f":"IF(ISNA(VLOOKUP(DSFA!N98,Risikoberechnung!$H$2:$I$6,2,FALSE)),\"\",VLOOKUP(DSFA!N98,Risikoberechnung!$H$2:$I$6,2,FALSE))","v":""},{"$f":"IF(ISNA(VLOOKUP(DSFA!O98,Risikoberechnung!$H$2:$I$6,2,FALSE)),\"\",VLOOKUP(DSFA!O98,Risikoberechnung!$H$2:$I$6,2,FALSE))","v":""},{"$f":"DSFA!R98","v":"x"}]
[{"$f":"DSFA!A99","v":94},{"$f":"IF(ISNA(VLOOKUP(DSFA!G99,Risikoberechnung!$H$2:$I$5,2,FALSE)),\"\",VLOOKUP(DSFA!G99,Risikoberechnung!$H$2:$I$5,2,FALSE))","v":""},{"$f":"IF(ISNA(VLOOKUP(DSFA!H99,Risikoberechnung!$H$2:$I$6,2,FALSE)),\"0\",VLOOKUP(DSFA!H99,Risikoberechnung!$H$2:$I$6,2,FALSE))","v":"0"},{"$f":"DSFA!K99","v":"x"},{"$f":"IF(ISNA(VLOOKUP(DSFA!N99,Risikoberechnung!$H$2:$I$6,2,FALSE)),\"\",VLOOKUP(DSFA!N99,Risikoberechnung!$H$2:$I$6,2,FALSE))","v":""},{"$f":"IF(ISNA(VLOOKUP(DSFA!O99,Risikoberechnung!$H$2:$I$6,2,FALSE)),\"\",VLOOKUP(DSFA!O99,Risikoberechnung!$H$2:$I$6,2,FALSE))","v":""},{"$f":"DSFA!R99","v":"x"}]
[{"$f":"DSFA!A100","v":95},{"$f":"IF(ISNA(VLOOKUP(DSFA!G100,Risikoberechnung!$H$2:$I$5,2,FALSE)),\"\",VLOOKUP(DSFA!G100,Risikoberechnung!$H$2:$I$5,2,FALSE))","v":""},{"$f":"IF(ISNA(VLOOKUP(DSFA!H100,Risikoberechnung!$H$2:$I$6,2,FALSE)),\"0\",VLOOKUP(DSFA!H100,Risikoberechnung!$H$2:$I$6,2,FALSE))","v":"0"},{"$f":"DSFA!K100","v":"x"},{"$f":"IF(ISNA(VLOOKUP(DSFA!N100,Risikoberechnung!$H$2:$I$6,2,FALSE)),\"\",VLOOKUP(DSFA!N100,Risikoberechnung!$H$2:$I$6,2,FALSE))","v":""},{"$f":"IF(ISNA(VLOOKUP(DSFA!O100,Risikoberechnung!$H$2:$I$6,2,FALSE)),\"\",VLOOKUP(DSFA!O100,Risikoberechnung!$H$2:$I$6,2,FALSE))","v":""},{"$f":"DSFA!R100","v":"x"}]
[{"$f":"DSFA!A101","v":96},{"$f":"IF(ISNA(VLOOKUP(DSFA!G101,Risikoberechnung!$H$2:$I$5,2,FALSE)),\"\",VLOOKUP(DSFA!G101,Risikoberechnung!$H$2:$I$5,2,FALSE))","v":""},{"$f":"IF(ISNA(VLOOKUP(DSFA!H101,Risikoberechnung!$H$2:$I$6,2,FALSE)),\"0\",VLOOKUP(DSFA!H101,Risikoberechnung!$H$2:$I$6,2,FALSE))","v":"0"},{"$f":"DSFA!K101","v":"x"},{"$f":"IF(ISNA(VLOOKUP(DSFA!N101,Risikoberechnung!$H$2:$I$6,2,FALSE)),\"\",VLOOKUP(DSFA!N101,Risikoberechnung!$H$2:$I$6,2,FALSE))","v":""},{"$f":"IF(ISNA(VLOOKUP(DSFA!O101,Risikoberechnung!$H$2:$I$6,2,FALSE)),\"\",VLOOKUP(DSFA!O101,Risikoberechnung!$H$2:$I$6,2,FALSE))","v":""},{"$f":"DSFA!R101","v":"x"}]
[{"$f":"DSFA!A102","v":97},{"$f":"IF(ISNA(VLOOKUP(DSFA!G102,Risikoberechnung!$H$2:$I$5,2,FALSE)),\"\",VLOOKUP(DSFA!G102,Risikoberechnung!$H$2:$I$5,2,FALSE))","v":""},{"$f":"IF(ISNA(VLOOKUP(DSFA!H102,Risikoberechnung!$H$2:$I$6,2,FALSE)),\"0\",VLOOKUP(DSFA!H102,Risikoberechnung!$H$2:$I$6,2,FALSE))","v":"0"},{"$f":"DSFA!K102","v":"x"},{"$f":"IF(ISNA(VLOOKUP(DSFA!N102,Risikoberechnung!$H$2:$I$6,2,FALSE)),\"\",VLOOKUP(DSFA!N102,Risikoberechnung!$H$2:$I$6,2,FALSE))","v":""},{"$f":"IF(ISNA(VLOOKUP(DSFA!O102,Risikoberechnung!$H$2:$I$6,2,FALSE)),\"\",VLOOKUP(DSFA!O102,Risikoberechnung!$H$2:$I$6,2,FALSE))","v":""},{"$f":"DSFA!R102","v":"x"}]
[{"$f":"DSFA!A103","v":98},{"$f":"IF(ISNA(VLOOKUP(DSFA!G103,Risikoberechnung!$H$2:$I$5,2,FALSE)),\"\",VLOOKUP(DSFA!G103,Risikoberechnung!$H$2:$I$5,2,FALSE))","v":""},{"$f":"IF(ISNA(VLOOKUP(DSFA!H103,Risikoberechnung!$H$2:$I$6,2,FALSE)),\"0\",VLOOKUP(DSFA!H103,Risikoberechnung!$H$2:$I$6,2,FALSE))","v":"0"},{"$f":"DSFA!K103","v":"x"},{"$f":"IF(ISNA(VLOOKUP(DSFA!N103,Risikoberechnung!$H$2:$I$6,2,FALSE)),\"\",VLOOKUP(DSFA!N103,Risikoberechnung!$H$2:$I$6,2,FALSE))","v":""},{"$f":"IF(ISNA(VLOOKUP(DSFA!O103,Risikoberechnung!$H$2:$I$6,2,FALSE)),\"\",VLOOKUP(DSFA!O103,Risikoberechnung!$H$2:$I$6,2,FALSE))","v":""},{"$f":"DSFA!R103","v":"x"}]
[{"$f":"DSFA!A104","v":99},{"$f":"IF(ISNA(VLOOKUP(DSFA!G104,Risikoberechnung!$H$2:$I$5,2,FALSE)),\"\",VLOOKUP(DSFA!G104,Risikoberechnung!$H$2:$I$5,2,FALSE))","v":""},{"$f":"IF(ISNA(VLOOKUP(DSFA!H104,Risikoberechnung!$H$2:$I$6,2,FALSE)),\"0\",VLOOKUP(DSFA!H104,Risikoberechnung!$H$2:$I$6,2,FALSE))","v":"0"},{"$f":"DSFA!K104","v":"x"},{"$f":"IF(ISNA(VLOOKUP(DSFA!N104,Risikoberechnung!$H$2:$I$6,2,FALSE)),\"\",VLOOKUP(DSFA!N104,Risikoberechnung!$H$2:$I$6,2,FALSE))","v":""},{"$f":"IF(ISNA(VLOOKUP(DSFA!O104,Risikoberechnung!$H$2:$I$6,2,FALSE)),\"\",VLOOKUP(DSFA!O104,Risikoberechnung!$H$2:$I$6,2,FALSE))","v":""},{"$f":"DSFA!R104","v":"x"}]
[{"$f":"DSFA!A105","v":100},{"$f":"IF(ISNA(VLOOKUP(DSFA!G105,Risikoberechnung!$H$2:$I$5,2,FALSE)),\"\",VLOOKUP(DSFA!G105,Risikoberechnung!$H$2:$I$5,2,FALSE))","v":""},{"$f":"IF(ISNA(VLOOKUP(DSFA!H105,Risikoberechnung!$H$2:$I$6,2,FALSE)),\"0\",VLOOKUP(DSFA!H105,Risikoberechnung!$H$2:$I$6,2,FALSE))","v":"0"},{"$f":"DSFA!K105","v":"x"},{"$f":"IF(ISNA(VLOOKUP(DSFA!N105,Risikoberechnung!$H$2:$I$6,2,FALSE)),\"\",VLOOKUP(DSFA!N105,Risikoberechnung!$H$2:$I$6,2,FALSE))","v":""},{"$f":"IF(ISNA(VLOOKUP(DSFA!O105,Risikoberechnung!$H$2:$I$6,2,FALSE)),\"\",VLOOKUP(DSFA!O105,Risikoberechnung!$H$2:$I$6,2,FALSE))","v":""},{"$f":"DSFA!R105","v":"x"}]
[{"$f":"DSFA!A106","v":101},{"$f":"IF(ISNA(VLOOKUP(DSFA!G106,Risikoberechnung!$H$2:$I$5,2,FALSE)),\"\",VLOOKUP(DSFA!G106,Risikoberechnung!$H$2:$I$5,2,FALSE))","v":""},{"$f":"IF(ISNA(VLOOKUP(DSFA!H106,Risikoberechnung!$H$2:$I$6,2,FALSE)),\"0\",VLOOKUP(DSFA!H106,Risikoberechnung!$H$2:$I$6,2,FALSE))","v":"0"},{"$f":"DSFA!K106","v":"x"},{"$f":"IF(ISNA(VLOOKUP(DSFA!N106,Risikoberechnung!$H$2:$I$6,2,FALSE)),\"\",VLOOKUP(DSFA!N106,Risikoberechnung!$H$2:$I$6,2,FALSE))","v":""},{"$f":"IF(ISNA(VLOOKUP(DSFA!O106,Risikoberechnung!$H$2:$I$6,2,FALSE)),\"\",VLOOKUP(DSFA!O106,Risikoberechnung!$H$2:$I$6,2,FALSE))","v":""},{"$f":"DSFA!R106","v":"x"}]
[{"$f":"DSFA!A107","v":102},{"$f":"IF(ISNA(VLOOKUP(DSFA!G107,Risikoberechnung!$H$2:$I$5,2,FALSE)),\"\",VLOOKUP(DSFA!G107,Risikoberechnung!$H$2:$I$5,2,FALSE))","v":""},{"$f":"IF(ISNA(VLOOKUP(DSFA!H107,Risikoberechnung!$H$2:$I$6,2,FALSE)),\"0\",VLOOKUP(DSFA!H107,Risikoberechnung!$H$2:$I$6,2,FALSE))","v":"0"},{"$f":"DSFA!K107","v":"x"},{"$f":"IF(ISNA(VLOOKUP(DSFA!N107,Risikoberechnung!$H$2:$I$6,2,FALSE)),\"\",VLOOKUP(DSFA!N107,Risikoberechnung!$H$2:$I$6,2,FALSE))","v":""},{"$f":"IF(ISNA(VLOOKUP(DSFA!O107,Risikoberechnung!$H$2:$I$6,2,FALSE)),\"\",VLOOKUP(DSFA!O107,Risikoberechnung!$H$2:$I$6,2,FALSE))","v":""},{"$f":"DSFA!R107","v":"x"}]
[{"$f":"DSFA!A108","v":103},{"$f":"IF(ISNA(VLOOKUP(DSFA!G108,Risikoberechnung!$H$2:$I$5,2,FALSE)),\"\",VLOOKUP(DSFA!G108,Risikoberechnung!$H$2:$I$5,2,FALSE))","v":""},{"$f":"IF(ISNA(VLOOKUP(DSFA!H108,Risikoberechnung!$H$2:$I$6,2,FALSE)),\"0\",VLOOKUP(DSFA!H108,Risikoberechnung!$H$2:$I$6,2,FALSE))","v":"0"},{"$f":"DSFA!K108","v":"x"},{"$f":"IF(ISNA(VLOOKUP(DSFA!N108,Risikoberechnung!$H$2:$I$6,2,FALSE)),\"\",VLOOKUP(DSFA!N108,Risikoberechnung!$H$2:$I$6,2,FALSE))","v":""},{"$f":"IF(ISNA(VLOOKUP(DSFA!O108,Risikoberechnung!$H$2:$I$6,2,FALSE)),\"\",VLOOKUP(DSFA!O108,Risikoberechnung!$H$2:$I$6,2,FALSE))","v":""},{"$f":"DSFA!R108","v":"x"}]
[{"$f":"DSFA!A109","v":104},{"$f":"IF(ISNA(VLOOKUP(DSFA!G109,Risikoberechnung!$H$2:$I$5,2,FALSE)),\"\",VLOOKUP(DSFA!G109,Risikoberechnung!$H$2:$I$5,2,FALSE))","v":""},{"$f":"IF(ISNA(VLOOKUP(DSFA!H109,Risikoberechnung!$H$2:$I$6,2,FALSE)),\"0\",VLOOKUP(DSFA!H109,Risikoberechnung!$H$2:$I$6,2,FALSE))","v":"0"},{"$f":"DSFA!K109","v":"x"},{"$f":"IF(ISNA(VLOOKUP(DSFA!N109,Risikoberechnung!$H$2:$I$6,2,FALSE)),\"\",VLOOKUP(DSFA!N109,Risikoberechnung!$H$2:$I$6,2,FALSE))","v":""},{"$f":"IF(ISNA(VLOOKUP(DSFA!O109,Risikoberechnung!$H$2:$I$6,2,FALSE)),\"\",VLOOKUP(DSFA!O109,Risikoberechnung!$H$2:$I$6,2,FALSE))","v":""},{"$f":"DSFA!R109","v":"x"}]
[{"$f":"DSFA!A110","v":105},{"$f":"IF(ISNA(VLOOKUP(DSFA!G110,Risikoberechnung!$H$2:$I$5,2,FALSE)),\"\",VLOOKUP(DSFA!G110,Risikoberechnung!$H$2:$I$5,2,FALSE))","v":""},{"$f":"IF(ISNA(VLOOKUP(DSFA!H110,Risikoberechnung!$H$2:$I$6,2,FALSE)),\"0\",VLOOKUP(DSFA!H110,Risikoberechnung!$H$2:$I$6,2,FALSE))","v":"0"},{"$f":"DSFA!K110","v":"x"},{"$f":"IF(ISNA(VLOOKUP(DSFA!N110,Risikoberechnung!$H$2:$I$6,2,FALSE)),\"\",VLOOKUP(DSFA!N110,Risikoberechnung!$H$2:$I$6,2,FALSE))","v":""},{"$f":"IF(ISNA(VLOOKUP(DSFA!O110,Risikoberechnung!$H$2:$I$6,2,FALSE)),\"\",VLOOKUP(DSFA!O110,Risikoberechnung!$H$2:$I$6,2,FALSE))","v":""},{"$f":"DSFA!R110","v":"x"}]
[{"$f":"DSFA!A111","v":106},{"$f":"IF(ISNA(VLOOKUP(DSFA!G111,Risikoberechnung!$H$2:$I$5,2,FALSE)),\"\",VLOOKUP(DSFA!G111,Risikoberechnung!$H$2:$I$5,2,FALSE))","v":""},{"$f":"IF(ISNA(VLOOKUP(DSFA!H111,Risikoberechnung!$H$2:$I$6,2,FALSE)),\"0\",VLOOKUP(DSFA!H111,Risikoberechnung!$H$2:$I$6,2,FALSE))","v":"0"},{"$f":"DSFA!K111","v":"x"},{"$f":"IF(ISNA(VLOOKUP(DSFA!N111,Risikoberechnung!$H$2:$I$6,2,FALSE)),\"\",VLOOKUP(DSFA!N111,Risikoberechnung!$H$2:$I$6,2,FALSE))","v":""},{"$f":"IF(ISNA(VLOOKUP(DSFA!O111,Risikoberechnung!$H$2:$I$6,2,FALSE)),\"\",VLOOKUP(DSFA!O111,Risikoberechnung!$H$2:$I$6,2,FALSE))","v":""},{"$f":"DSFA!R111","v":"x"}]
[{"$f":"DSFA!A112","v":107},{"$f":"IF(ISNA(VLOOKUP(DSFA!G112,Risikoberechnung!$H$2:$I$5,2,FALSE)),\"\",VLOOKUP(DSFA!G112,Risikoberechnung!$H$2:$I$5,2,FALSE))","v":""},{"$f":"IF(ISNA(VLOOKUP(DSFA!H112,Risikoberechnung!$H$2:$I$6,2,FALSE)),\"0\",VLOOKUP(DSFA!H112,Risikoberechnung!$H$2:$I$6,2,FALSE))","v":"0"},{"$f":"DSFA!K112","v":"x"},{"$f":"IF(ISNA(VLOOKUP(DSFA!N112,Risikoberechnung!$H$2:$I$6,2,FALSE)),\"\",VLOOKUP(DSFA!N112,Risikoberechnung!$H$2:$I$6,2,FALSE))","v":""},{"$f":"IF(ISNA(VLOOKUP(DSFA!O112,Risikoberechnung!$H$2:$I$6,2,FALSE)),\"\",VLOOKUP(DSFA!O112,Risikoberechnung!$H$2:$I$6,2,FALSE))","v":""},{"$f":"DSFA!R112","v":"x"}]
[{"$f":"DSFA!A113","v":108},{"$f":"IF(ISNA(VLOOKUP(DSFA!G113,Risikoberechnung!$H$2:$I$5,2,FALSE)),\"\",VLOOKUP(DSFA!G113,Risikoberechnung!$H$2:$I$5,2,FALSE))","v":""},{"$f":"IF(ISNA(VLOOKUP(DSFA!H113,Risikoberechnung!$H$2:$I$6,2,FALSE)),\"0\",VLOOKUP(DSFA!H113,Risikoberechnung!$H$2:$I$6,2,FALSE))","v":"0"},{"$f":"DSFA!K113","v":"x"},{"$f":"IF(ISNA(VLOOKUP(DSFA!N113,Risikoberechnung!$H$2:$I$6,2,FALSE)),\"\",VLOOKUP(DSFA!N113,Risikoberechnung!$H$2:$I$6,2,FALSE))","v":""},{"$f":"IF(ISNA(VLOOKUP(DSFA!O113,Risikoberechnung!$H$2:$I$6,2,FALSE)),\"\",VLOOKUP(DSFA!O113,Risikoberechnung!$H$2:$I$6,2,FALSE))","v":""},{"$f":"DSFA!R113","v":"x"}]
[{"$f":"DSFA!A114","v":109},{"$f":"IF(ISNA(VLOOKUP(DSFA!G114,Risikoberechnung!$H$2:$I$5,2,FALSE)),\"\",VLOOKUP(DSFA!G114,Risikoberechnung!$H$2:$I$5,2,FALSE))","v":""},{"$f":"IF(ISNA(VLOOKUP(DSFA!H114,Risikoberechnung!$H$2:$I$6,2,FALSE)),\"0\",VLOOKUP(DSFA!H114,Risikoberechnung!$H$2:$I$6,2,FALSE))","v":"0"},{"$f":"DSFA!K114","v":"x"},{"$f":"IF(ISNA(VLOOKUP(DSFA!N114,Risikoberechnung!$H$2:$I$6,2,FALSE)),\"\",VLOOKUP(DSFA!N114,Risikoberechnung!$H$2:$I$6,2,FALSE))","v":""},{"$f":"IF(ISNA(VLOOKUP(DSFA!O114,Risikoberechnung!$H$2:$I$6,2,FALSE)),\"\",VLOOKUP(DSFA!O114,Risikoberechnung!$H$2:$I$6,2,FALSE))","v":""},{"$f":"DSFA!R114","v":"x"}]
[{"$f":"DSFA!A115","v":110},{"$f":"IF(ISNA(VLOOKUP(DSFA!G115,Risikoberechnung!$H$2:$I$5,2,FALSE)),\"\",VLOOKUP(DSFA!G115,Risikoberechnung!$H$2:$I$5,2,FALSE))","v":""},{"$f":"IF(ISNA(VLOOKUP(DSFA!H115,Risikoberechnung!$H$2:$I$6,2,FALSE)),\"0\",VLOOKUP(DSFA!H115,Risikoberechnung!$H$2:$I$6,2,FALSE))","v":"0"},{"$f":"DSFA!K115","v":"x"},{"$f":"IF(ISNA(VLOOKUP(DSFA!N115,Risikoberechnung!$H$2:$I$6,2,FALSE)),\"\",VLOOKUP(DSFA!N115,Risikoberechnung!$H$2:$I$6,2,FALSE))","v":""},{"$f":"IF(ISNA(VLOOKUP(DSFA!O115,Risikoberechnung!$H$2:$I$6,2,FALSE)),\"\",VLOOKUP(DSFA!O115,Risikoberechnung!$H$2:$I$6,2,FALSE))","v":""},{"$f":"DSFA!R115","v":"x"}]
[{"$f":"DSFA!A116","v":111},{"$f":"IF(ISNA(VLOOKUP(DSFA!G116,Risikoberechnung!$H$2:$I$5,2,FALSE)),\"\",VLOOKUP(DSFA!G116,Risikoberechnung!$H$2:$I$5,2,FALSE))","v":""},{"$f":"IF(ISNA(VLOOKUP(DSFA!H116,Risikoberechnung!$H$2:$I$6,2,FALSE)),\"0\",VLOOKUP(DSFA!H116,Risikoberechnung!$H$2:$I$6,2,FALSE))","v":"0"},{"$f":"DSFA!K116","v":"x"},{"$f":"IF(ISNA(VLOOKUP(DSFA!N116,Risikoberechnung!$H$2:$I$6,2,FALSE)),\"\",VLOOKUP(DSFA!N116,Risikoberechnung!$H$2:$I$6,2,FALSE))","v":""},{"$f":"IF(ISNA(VLOOKUP(DSFA!O116,Risikoberechnung!$H$2:$I$6,2,FALSE)),\"\",VLOOKUP(DSFA!O116,Risikoberechnung!$H$2:$I$6,2,FALSE))","v":""},{"$f":"DSFA!R116","v":"x"}]
[{"$f":"DSFA!A117","v":112},{"$f":"IF(ISNA(VLOOKUP(DSFA!G117,Risikoberechnung!$H$2:$I$5,2,FALSE)),\"\",VLOOKUP(DSFA!G117,Risikoberechnung!$H$2:$I$5,2,FALSE))","v":""},{"$f":"IF(ISNA(VLOOKUP(DSFA!H117,Risikoberechnung!$H$2:$I$6,2,FALSE)),\"0\",VLOOKUP(DSFA!H117,Risikoberechnung!$H$2:$I$6,2,FALSE))","v":"0"},{"$f":"DSFA!K117","v":"x"},{"$f":"IF(ISNA(VLOOKUP(DSFA!N117,Risikoberechnung!$H$2:$I$6,2,FALSE)),\"\",VLOOKUP(DSFA!N117,Risikoberechnung!$H$2:$I$6,2,FALSE))","v":""},{"$f":"IF(ISNA(VLOOKUP(DSFA!O117,Risikoberechnung!$H$2:$I$6,2,FALSE)),\"\",VLOOKUP(DSFA!O117,Risikoberechnung!$H$2:$I$6,2,FALSE))","v":""},{"$f":"DSFA!R117","v":"x"}]
[{"$f":"DSFA!A118","v":113},{"$f":"IF(ISNA(VLOOKUP(DSFA!G118,Risikoberechnung!$H$2:$I$5,2,FALSE)),\"\",VLOOKUP(DSFA!G118,Risikoberechnung!$H$2:$I$5,2,FALSE))","v":""},{"$f":"IF(ISNA(VLOOKUP(DSFA!H118,Risikoberechnung!$H$2:$I$6,2,FALSE)),\"0\",VLOOKUP(DSFA!H118,Risikoberechnung!$H$2:$I$6,2,FALSE))","v":"0"},{"$f":"DSFA!K118","v":"x"},{"$f":"IF(ISNA(VLOOKUP(DSFA!N118,Risikoberechnung!$H$2:$I$6,2,FALSE)),\"\",VLOOKUP(DSFA!N118,Risikoberechnung!$H$2:$I$6,2,FALSE))","v":""},{"$f":"IF(ISNA(VLOOKUP(DSFA!O118,Risikoberechnung!$H$2:$I$6,2,FALSE)),\"\",VLOOKUP(DSFA!O118,Risikoberechnung!$H$2:$I$6,2,FALSE))","v":""},{"$f":"DSFA!R118","v":"x"}]
[{"$f":"DSFA!A119","v":114},{"$f":"IF(ISNA(VLOOKUP(DSFA!G119,Risikoberechnung!$H$2:$I$5,2,FALSE)),\"\",VLOOKUP(DSFA!G119,Risikoberechnung!$H$2:$I$5,2,FALSE))","v":""},{"$f":"IF(ISNA(VLOOKUP(DSFA!H119,Risikoberechnung!$H$2:$I$6,2,FALSE)),\"0\",VLOOKUP(DSFA!H119,Risikoberechnung!$H$2:$I$6,2,FALSE))","v":"0"},{"$f":"DSFA!K119","v":"x"},{"$f":"IF(ISNA(VLOOKUP(DSFA!N119,Risikoberechnung!$H$2:$I$6,2,FALSE)),\"\",VLOOKUP(DSFA!N119,Risikoberechnung!$H$2:$I$6,2,FALSE))","v":""},{"$f":"IF(ISNA(VLOOKUP(DSFA!O119,Risikoberechnung!$H$2:$I$6,2,FALSE)),\"\",VLOOKUP(DSFA!O119,Risikoberechnung!$H$2:$I$6,2,FALSE))","v":""},{"$f":"DSFA!R119","v":"x"}]
[{"$f":"DSFA!A120","v":115},{"$f":"IF(ISNA(VLOOKUP(DSFA!G120,Risikoberechnung!$H$2:$I$5,2,FALSE)),\"\",VLOOKUP(DSFA!G120,Risikoberechnung!$H$2:$I$5,2,FALSE))","v":""},{"$f":"IF(ISNA(VLOOKUP(DSFA!H120,Risikoberechnung!$H$2:$I$6,2,FALSE)),\"0\",VLOOKUP(DSFA!H120,Risikoberechnung!$H$2:$I$6,2,FALSE))","v":"0"},{"$f":"DSFA!K120","v":"x"},{"$f":"IF(ISNA(VLOOKUP(DSFA!N120,Risikoberechnung!$H$2:$I$6,2,FALSE)),\"\",VLOOKUP(DSFA!N120,Risikoberechnung!$H$2:$I$6,2,FALSE))","v":""},{"$f":"IF(ISNA(VLOOKUP(DSFA!O120,Risikoberechnung!$H$2:$I$6,2,FALSE)),\"\",VLOOKUP(DSFA!O120,Risikoberechnung!$H$2:$I$6,2,FALSE))","v":""},{"$f":"DSFA!R120","v":"x"}]
[{"$f":"DSFA!A121","v":116},{"$f":"IF(ISNA(VLOOKUP(DSFA!G121,Risikoberechnung!$H$2:$I$5,2,FALSE)),\"\",VLOOKUP(DSFA!G121,Risikoberechnung!$H$2:$I$5,2,FALSE))","v":""},{"$f":"IF(ISNA(VLOOKUP(DSFA!H121,Risikoberechnung!$H$2:$I$6,2,FALSE)),\"0\",VLOOKUP(DSFA!H121,Risikoberechnung!$H$2:$I$6,2,FALSE))","v":"0"},{"$f":"DSFA!K121","v":"x"},{"$f":"IF(ISNA(VLOOKUP(DSFA!N121,Risikoberechnung!$H$2:$I$6,2,FALSE)),\"\",VLOOKUP(DSFA!N121,Risikoberechnung!$H$2:$I$6,2,FALSE))","v":""},{"$f":"IF(ISNA(VLOOKUP(DSFA!O121,Risikoberechnung!$H$2:$I$6,2,FALSE)),\"\",VLOOKUP(DSFA!O121,Risikoberechnung!$H$2:$I$6,2,FALSE))","v":""},{"$f":"DSFA!R121","v":"x"}]
[{"$f":"DSFA!A122","v":117},{"$f":"IF(ISNA(VLOOKUP(DSFA!G122,Risikoberechnung!$H$2:$I$5,2,FALSE)),\"\",VLOOKUP(DSFA!G122,Risikoberechnung!$H$2:$I$5,2,FALSE))","v":""},{"$f":"IF(ISNA(VLOOKUP(DSFA!H122,Risikoberechnung!$H$2:$I$6,2,FALSE)),\"0\",VLOOKUP(DSFA!H122,Risikoberechnung!$H$2:$I$6,2,FALSE))","v":"0"},{"$f":"DSFA!K122","v":"x"},{"$f":"IF(ISNA(VLOOKUP(DSFA!N122,Risikoberechnung!$H$2:$I$6,2,FALSE)),\"\",VLOOKUP(DSFA!N122,Risikoberechnung!$H$2:$I$6,2,FALSE))","v":""},{"$f":"IF(ISNA(VLOOKUP(DSFA!O122,Risikoberechnung!$H$2:$I$6,2,FALSE)),\"\",VLOOKUP(DSFA!O122,Risikoberechnung!$H$2:$I$6,2,FALSE))","v":""},{"$f":"DSFA!R122","v":"x"}]
[{"$f":"DSFA!A123","v":118},{"$f":"IF(ISNA(VLOOKUP(DSFA!G123,Risikoberechnung!$H$2:$I$5,2,FALSE)),\"\",VLOOKUP(DSFA!G123,Risikoberechnung!$H$2:$I$5,2,FALSE))","v":""},{"$f":"IF(ISNA(VLOOKUP(DSFA!H123,Risikoberechnung!$H$2:$I$6,2,FALSE)),\"0\",VLOOKUP(DSFA!H123,Risikoberechnung!$H$2:$I$6,2,FALSE))","v":"0"},{"$f":"DSFA!K123","v":"x"},{"$f":"IF(ISNA(VLOOKUP(DSFA!N123,Risikoberechnung!$H$2:$I$6,2,FALSE)),\"\",VLOOKUP(DSFA!N123,Risikoberechnung!$H$2:$I$6,2,FALSE))","v":""},{"$f":"IF(ISNA(VLOOKUP(DSFA!O123,Risikoberechnung!$H$2:$I$6,2,FALSE)),\"\",VLOOKUP(DSFA!O123,Risikoberechnung!$H$2:$I$6,2,FALSE))","v":""},{"$f":"DSFA!R123","v":"x"}]
[{"$f":"DSFA!A124","v":119},{"$f":"IF(ISNA(VLOOKUP(DSFA!G124,Risikoberechnung!$H$2:$I$5,2,FALSE)),\"\",VLOOKUP(DSFA!G124,Risikoberechnung!$H$2:$I$5,2,FALSE))","v":""},{"$f":"IF(ISNA(VLOOKUP(DSFA!H124,Risikoberechnung!$H$2:$I$6,2,FALSE)),\"0\",VLOOKUP(DSFA!H124,Risikoberechnung!$H$2:$I$6,2,FALSE))","v":"0"},{"$f":"DSFA!K124","v":"x"},{"$f":"IF(ISNA(VLOOKUP(DSFA!N124,Risikoberechnung!$H$2:$I$6,2,FALSE)),\"\",VLOOKUP(DSFA!N124,Risikoberechnung!$H$2:$I$6,2,FALSE))","v":""},{"$f":"IF(ISNA(VLOOKUP(DSFA!O124,Risikoberechnung!$H$2:$I$6,2,FALSE)),\"\",VLOOKUP(DSFA!O124,Risikoberechnung!$H$2:$I$6,2,FALSE))","v":""},{"$f":"DSFA!R124","v":"x"}]
[{"$f":"DSFA!A125","v":120},{"$f":"IF(ISNA(VLOOKUP(DSFA!G125,Risikoberechnung!$H$2:$I$5,2,FALSE)),\"\",VLOOKUP(DSFA!G125,Risikoberechnung!$H$2:$I$5,2,FALSE))","v":""},{"$f":"IF(ISNA(VLOOKUP(DSFA!H125,Risikoberechnung!$H$2:$I$6,2,FALSE)),\"0\",VLOOKUP(DSFA!H125,Risikoberechnung!$H$2:$I$6,2,FALSE))","v":"0"},{"$f":"DSFA!K125","v":"x"},{"$f":"IF(ISNA(VLOOKUP(DSFA!N125,Risikoberechnung!$H$2:$I$6,2,FALSE)),\"\",VLOOKUP(DSFA!N125,Risikoberechnung!$H$2:$I$6,2,FALSE))","v":""},{"$f":"IF(ISNA(VLOOKUP(DSFA!O125,Risikoberechnung!$H$2:$I$6,2,FALSE)),\"\",VLOOKUP(DSFA!O125,Risikoberechnung!$H$2:$I$6,2,FALSE))","v":""},{"$f":"DSFA!R125","v":"x"}]
[{"$f":"DSFA!A126","v":121},{"$f":"IF(ISNA(VLOOKUP(DSFA!G126,Risikoberechnung!$H$2:$I$5,2,FALSE)),\"\",VLOOKUP(DSFA!G126,Risikoberechnung!$H$2:$I$5,2,FALSE))","v":""},{"$f":"IF(ISNA(VLOOKUP(DSFA!H126,Risikoberechnung!$H$2:$I$6,2,FALSE)),\"0\",VLOOKUP(DSFA!H126,Risikoberechnung!$H$2:$I$6,2,FALSE))","v":"0"},{"$f":"DSFA!K126","v":"x"},{"$f":"IF(ISNA(VLOOKUP(DSFA!N126,Risikoberechnung!$H$2:$I$6,2,FALSE)),\"\",VLOOKUP(DSFA!N126,Risikoberechnung!$H$2:$I$6,2,FALSE))","v":""},{"$f":"IF(ISNA(VLOOKUP(DSFA!O126,Risikoberechnung!$H$2:$I$6,2,FALSE)),\"\",VLOOKUP(DSFA!O126,Risikoberechnung!$H$2:$I$6,2,FALSE))","v":""},{"$f":"DSFA!R126","v":"x"}]
[{"$f":"DSFA!A127","v":122},{"$f":"IF(ISNA(VLOOKUP(DSFA!G127,Risikoberechnung!$H$2:$I$5,2,FALSE)),\"\",VLOOKUP(DSFA!G127,Risikoberechnung!$H$2:$I$5,2,FALSE))","v":""},{"$f":"IF(ISNA(VLOOKUP(DSFA!H127,Risikoberechnung!$H$2:$I$6,2,FALSE)),\"0\",VLOOKUP(DSFA!H127,Risikoberechnung!$H$2:$I$6,2,FALSE))","v":"0"},{"$f":"DSFA!K127","v":"x"},{"$f":"IF(ISNA(VLOOKUP(DSFA!N127,Risikoberechnung!$H$2:$I$6,2,FALSE)),\"\",VLOOKUP(DSFA!N127,Risikoberechnung!$H$2:$I$6,2,FALSE))","v":""},{"$f":"IF(ISNA(VLOOKUP(DSFA!O127,Risikoberechnung!$H$2:$I$6,2,FALSE)),\"\",VLOOKUP(DSFA!O127,Risikoberechnung!$H$2:$I$6,2,FALSE))","v":""},{"$f":"DSFA!R127","v":"x"}]
[{"$f":"DSFA!A128","v":123},{"$f":"IF(ISNA(VLOOKUP(DSFA!G128,Risikoberechnung!$H$2:$I$5,2,FALSE)),\"\",VLOOKUP(DSFA!G128,Risikoberechnung!$H$2:$I$5,2,FALSE))","v":""},{"$f":"IF(ISNA(VLOOKUP(DSFA!H128,Risikoberechnung!$H$2:$I$6,2,FALSE)),\"0\",VLOOKUP(DSFA!H128,Risikoberechnung!$H$2:$I$6,2,FALSE))","v":"0"},{"$f":"DSFA!K128","v":"x"},{"$f":"IF(ISNA(VLOOKUP(DSFA!N128,Risikoberechnung!$H$2:$I$6,2,FALSE)),\"\",VLOOKUP(DSFA!N128,Risikoberechnung!$H$2:$I$6,2,FALSE))","v":""},{"$f":"IF(ISNA(VLOOKUP(DSFA!O128,Risikoberechnung!$H$2:$I$6,2,FALSE)),\"\",VLOOKUP(DSFA!O128,Risikoberechnung!$H$2:$I$6,2,FALSE))","v":""},{"$f":"DSFA!R128","v":"x"}]
[{"$f":"DSFA!A129","v":124},{"$f":"IF(ISNA(VLOOKUP(DSFA!G129,Risikoberechnung!$H$2:$I$5,2,FALSE)),\"\",VLOOKUP(DSFA!G129,Risikoberechnung!$H$2:$I$5,2,FALSE))","v":""},{"$f":"IF(ISNA(VLOOKUP(DSFA!H129,Risikoberechnung!$H$2:$I$6,2,FALSE)),\"0\",VLOOKUP(DSFA!H129,Risikoberechnung!$H$2:$I$6,2,FALSE))","v":"0"},{"$f":"DSFA!K129","v":"x"},{"$f":"IF(ISNA(VLOOKUP(DSFA!N129,Risikoberechnung!$H$2:$I$6,2,FALSE)),\"\",VLOOKUP(DSFA!N129,Risikoberechnung!$H$2:$I$6,2,FALSE))","v":""},{"$f":"IF(ISNA(VLOOKUP(DSFA!O129,Risikoberechnung!$H$2:$I$6,2,FALSE)),\"\",VLOOKUP(DSFA!O129,Risikoberechnung!$H$2:$I$6,2,FALSE))","v":""},{"$f":"DSFA!R129","v":"x"}]
[{"$f":"DSFA!A130","v":125},{"$f":"IF(ISNA(VLOOKUP(DSFA!G130,Risikoberechnung!$H$2:$I$5,2,FALSE)),\"\",VLOOKUP(DSFA!G130,Risikoberechnung!$H$2:$I$5,2,FALSE))","v":""},{"$f":"IF(ISNA(VLOOKUP(DSFA!H130,Risikoberechnung!$H$2:$I$6,2,FALSE)),\"0\",VLOOKUP(DSFA!H130,Risikoberechnung!$H$2:$I$6,2,FALSE))","v":"0"},{"$f":"DSFA!K130","v":"x"},{"$f":"IF(ISNA(VLOOKUP(DSFA!N130,Risikoberechnung!$H$2:$I$6,2,FALSE)),\"\",VLOOKUP(DSFA!N130,Risikoberechnung!$H$2:$I$6,2,FALSE))","v":""},{"$f":"IF(ISNA(VLOOKUP(DSFA!O130,Risikoberechnung!$H$2:$I$6,2,FALSE)),\"\",VLOOKUP(DSFA!O130,Risikoberechnung!$H$2:$I$6,2,FALSE))","v":""},{"$f":"DSFA!R130","v":"x"}]
[{"$f":"DSFA!A131","v":126},{"$f":"IF(ISNA(VLOOKUP(DSFA!G131,Risikoberechnung!$H$2:$I$5,2,FALSE)),\"\",VLOOKUP(DSFA!G131,Risikoberechnung!$H$2:$I$5,2,FALSE))","v":""},{"$f":"IF(ISNA(VLOOKUP(DSFA!H131,Risikoberechnung!$H$2:$I$6,2,FALSE)),\"0\",VLOOKUP(DSFA!H131,Risikoberechnung!$H$2:$I$6,2,FALSE))","v":"0"},{"$f":"DSFA!K131","v":"x"},{"$f":"IF(ISNA(VLOOKUP(DSFA!N131,Risikoberechnung!$H$2:$I$6,2,FALSE)),\"\",VLOOKUP(DSFA!N131,Risikoberechnung!$H$2:$I$6,2,FALSE))","v":""},{"$f":"IF(ISNA(VLOOKUP(DSFA!O131,Risikoberechnung!$H$2:$I$6,2,FALSE)),\"\",VLOOKUP(DSFA!O131,Risikoberechnung!$H$2:$I$6,2,FALSE))","v":""},{"$f":"DSFA!R131","v":"x"}]
[{"$f":"DSFA!A132","v":127},{"$f":"IF(ISNA(VLOOKUP(DSFA!G132,Risikoberechnung!$H$2:$I$5,2,FALSE)),\"\",VLOOKUP(DSFA!G132,Risikoberechnung!$H$2:$I$5,2,FALSE))","v":""},{"$f":"IF(ISNA(VLOOKUP(DSFA!H132,Risikoberechnung!$H$2:$I$6,2,FALSE)),\"0\",VLOOKUP(DSFA!H132,Risikoberechnung!$H$2:$I$6,2,FALSE))","v":"0"},{"$f":"DSFA!K132","v":"x"},{"$f":"IF(ISNA(VLOOKUP(DSFA!N132,Risikoberechnung!$H$2:$I$6,2,FALSE)),\"\",VLOOKUP(DSFA!N132,Risikoberechnung!$H$2:$I$6,2,FALSE))","v":""},{"$f":"IF(ISNA(VLOOKUP(DSFA!O132,Risikoberechnung!$H$2:$I$6,2,FALSE)),\"\",VLOOKUP(DSFA!O132,Risikoberechnung!$H$2:$I$6,2,FALSE))","v":""},{"$f":"DSFA!R132","v":"x"}]
[{"$f":"DSFA!A133","v":128},{"$f":"IF(ISNA(VLOOKUP(DSFA!G133,Risikoberechnung!$H$2:$I$5,2,FALSE)),\"\",VLOOKUP(DSFA!G133,Risikoberechnung!$H$2:$I$5,2,FALSE))","v":""},{"$f":"IF(ISNA(VLOOKUP(DSFA!H133,Risikoberechnung!$H$2:$I$6,2,FALSE)),\"0\",VLOOKUP(DSFA!H133,Risikoberechnung!$H$2:$I$6,2,FALSE))","v":"0"},{"$f":"DSFA!K133","v":"x"},{"$f":"IF(ISNA(VLOOKUP(DSFA!N133,Risikoberechnung!$H$2:$I$6,2,FALSE)),\"\",VLOOKUP(DSFA!N133,Risikoberechnung!$H$2:$I$6,2,FALSE))","v":""},{"$f":"IF(ISNA(VLOOKUP(DSFA!O133,Risikoberechnung!$H$2:$I$6,2,FALSE)),\"\",VLOOKUP(DSFA!O133,Risikoberechnung!$H$2:$I$6,2,FALSE))","v":""},{"$f":"DSFA!R133","v":"x"}]
[{"$f":"DSFA!A134","v":129},{"$f":"IF(ISNA(VLOOKUP(DSFA!G134,Risikoberechnung!$H$2:$I$5,2,FALSE)),\"\",VLOOKUP(DSFA!G134,Risikoberechnung!$H$2:$I$5,2,FALSE))","v":""},{"$f":"IF(ISNA(VLOOKUP(DSFA!H134,Risikoberechnung!$H$2:$I$6,2,FALSE)),\"0\",VLOOKUP(DSFA!H134,Risikoberechnung!$H$2:$I$6,2,FALSE))","v":"0"},{"$f":"DSFA!K134","v":"x"},{"$f":"IF(ISNA(VLOOKUP(DSFA!N134,Risikoberechnung!$H$2:$I$6,2,FALSE)),\"\",VLOOKUP(DSFA!N134,Risikoberechnung!$H$2:$I$6,2,FALSE))","v":""},{"$f":"IF(ISNA(VLOOKUP(DSFA!O134,Risikoberechnung!$H$2:$I$6,2,FALSE)),\"\",VLOOKUP(DSFA!O134,Risikoberechnung!$H$2:$I$6,2,FALSE))","v":""},{"$f":"DSFA!R134","v":"x"}]
[{"$f":"DSFA!A135","v":130},{"$f":"IF(ISNA(VLOOKUP(DSFA!G135,Risikoberechnung!$H$2:$I$5,2,FALSE)),\"\",VLOOKUP(DSFA!G135,Risikoberechnung!$H$2:$I$5,2,FALSE))","v":""},{"$f":"IF(ISNA(VLOOKUP(DSFA!H135,Risikoberechnung!$H$2:$I$6,2,FALSE)),\"0\",VLOOKUP(DSFA!H135,Risikoberechnung!$H$2:$I$6,2,FALSE))","v":"0"},{"$f":"DSFA!K135","v":"x"},{"$f":"IF(ISNA(VLOOKUP(DSFA!N135,Risikoberechnung!$H$2:$I$6,2,FALSE)),\"\",VLOOKUP(DSFA!N135,Risikoberechnung!$H$2:$I$6,2,FALSE))","v":""},{"$f":"IF(ISNA(VLOOKUP(DSFA!O135,Risikoberechnung!$H$2:$I$6,2,FALSE)),\"\",VLOOKUP(DSFA!O135,Risikoberechnung!$H$2:$I$6,2,FALSE))","v":""},{"$f":"DSFA!R135","v":"x"}]
[{"$f":"DSFA!A136","v":131},{"$f":"IF(ISNA(VLOOKUP(DSFA!G136,Risikoberechnung!$H$2:$I$5,2,FALSE)),\"\",VLOOKUP(DSFA!G136,Risikoberechnung!$H$2:$I$5,2,FALSE))","v":""},{"$f":"IF(ISNA(VLOOKUP(DSFA!H136,Risikoberechnung!$H$2:$I$6,2,FALSE)),\"0\",VLOOKUP(DSFA!H136,Risikoberechnung!$H$2:$I$6,2,FALSE))","v":"0"},{"$f":"DSFA!K136","v":"x"},{"$f":"IF(ISNA(VLOOKUP(DSFA!N136,Risikoberechnung!$H$2:$I$6,2,FALSE)),\"\",VLOOKUP(DSFA!N136,Risikoberechnung!$H$2:$I$6,2,FALSE))","v":""},{"$f":"IF(ISNA(VLOOKUP(DSFA!O136,Risikoberechnung!$H$2:$I$6,2,FALSE)),\"\",VLOOKUP(DSFA!O136,Risikoberechnung!$H$2:$I$6,2,FALSE))","v":""},{"$f":"DSFA!R136","v":"x"}]
[{"$f":"DSFA!A137","v":132},{"$f":"IF(ISNA(VLOOKUP(DSFA!G137,Risikoberechnung!$H$2:$I$5,2,FALSE)),\"\",VLOOKUP(DSFA!G137,Risikoberechnung!$H$2:$I$5,2,FALSE))","v":""},{"$f":"IF(ISNA(VLOOKUP(DSFA!H137,Risikoberechnung!$H$2:$I$6,2,FALSE)),\"0\",VLOOKUP(DSFA!H137,Risikoberechnung!$H$2:$I$6,2,FALSE))","v":"0"},{"$f":"DSFA!K137","v":"x"},{"$f":"IF(ISNA(VLOOKUP(DSFA!N137,Risikoberechnung!$H$2:$I$6,2,FALSE)),\"\",VLOOKUP(DSFA!N137,Risikoberechnung!$H$2:$I$6,2,FALSE))","v":""},{"$f":"IF(ISNA(VLOOKUP(DSFA!O137,Risikoberechnung!$H$2:$I$6,2,FALSE)),\"\",VLOOKUP(DSFA!O137,Risikoberechnung!$H$2:$I$6,2,FALSE))","v":""},{"$f":"DSFA!R137","v":"x"}]
[{"$f":"DSFA!A138","v":133},{"$f":"IF(ISNA(VLOOKUP(DSFA!G138,Risikoberechnung!$H$2:$I$5,2,FALSE)),\"\",VLOOKUP(DSFA!G138,Risikoberechnung!$H$2:$I$5,2,FALSE))","v":""},{"$f":"IF(ISNA(VLOOKUP(DSFA!H138,Risikoberechnung!$H$2:$I$6,2,FALSE)),\"0\",VLOOKUP(DSFA!H138,Risikoberechnung!$H$2:$I$6,2,FALSE))","v":"0"},{"$f":"DSFA!K138","v":"x"},{"$f":"IF(ISNA(VLOOKUP(DSFA!N138,Risikoberechnung!$H$2:$I$6,2,FALSE)),\"\",VLOOKUP(DSFA!N138,Risikoberechnung!$H$2:$I$6,2,FALSE))","v":""},{"$f":"IF(ISNA(VLOOKUP(DSFA!O138,Risikoberechnung!$H$2:$I$6,2,FALSE)),\"\",VLOOKUP(DSFA!O138,Risikoberechnung!$H$2:$I$6,2,FALSE))","v":""},{"$f":"DSFA!R138","v":"x"}]
[{"$f":"DSFA!A139","v":134},{"$f":"IF(ISNA(VLOOKUP(DSFA!G139,Risikoberechnung!$H$2:$I$5,2,FALSE)),\"\",VLOOKUP(DSFA!G139,Risikoberechnung!$H$2:$I$5,2,FALSE))","v":""},{"$f":"IF(ISNA(VLOOKUP(DSFA!H139,Risikoberechnung!$H$2:$I$6,2,FALSE)),\"0\",VLOOKUP(DSFA!H139,Risikoberechnung!$H$2:$I$6,2,FALSE))","v":"0"},{"$f":"DSFA!K139","v":"x"},{"$f":"IF(ISNA(VLOOKUP(DSFA!N139,Risikoberechnung!$H$2:$I$6,2,FALSE)),\"\",VLOOKUP(DSFA!N139,Risikoberechnung!$H$2:$I$6,2,FALSE))","v":""},{"$f":"IF(ISNA(VLOOKUP(DSFA!O139,Risikoberechnung!$H$2:$I$6,2,FALSE)),\"\",VLOOKUP(DSFA!O139,Risikoberechnung!$H$2:$I$6,2,FALSE))","v":""},{"$f":"DSFA!R139","v":"x"}]
[{"$f":"DSFA!A140","v":135},{"$f":"IF(ISNA(VLOOKUP(DSFA!G140,Risikoberechnung!$H$2:$I$5,2,FALSE)),\"\",VLOOKUP(DSFA!G140,Risikoberechnung!$H$2:$I$5,2,FALSE))","v":""},{"$f":"IF(ISNA(VLOOKUP(DSFA!H140,Risikoberechnung!$H$2:$I$6,2,FALSE)),\"0\",VLOOKUP(DSFA!H140,Risikoberechnung!$H$2:$I$6,2,FALSE))","v":"0"},{"$f":"DSFA!K140","v":"x"},{"$f":"IF(ISNA(VLOOKUP(DSFA!N140,Risikoberechnung!$H$2:$I$6,2,FALSE)),\"\",VLOOKUP(DSFA!N140,Risikoberechnung!$H$2:$I$6,2,FALSE))","v":""},{"$f":"IF(ISNA(VLOOKUP(DSFA!O140,Risikoberechnung!$H$2:$I$6,2,FALSE)),\"\",VLOOKUP(DSFA!O140,Risikoberechnung!$H$2:$I$6,2,FALSE))","v":""},{"$f":"DSFA!R140","v":"x"}]
[{"$f":"DSFA!A141","v":136},{"$f":"IF(ISNA(VLOOKUP(DSFA!G141,Risikoberechnung!$H$2:$I$5,2,FALSE)),\"\",VLOOKUP(DSFA!G141,Risikoberechnung!$H$2:$I$5,2,FALSE))","v":""},{"$f":"IF(ISNA(VLOOKUP(DSFA!H141,Risikoberechnung!$H$2:$I$6,2,FALSE)),\"0\",VLOOKUP(DSFA!H141,Risikoberechnung!$H$2:$I$6,2,FALSE))","v":"0"},{"$f":"DSFA!K141","v":"x"},{"$f":"IF(ISNA(VLOOKUP(DSFA!N141,Risikoberechnung!$H$2:$I$6,2,FALSE)),\"\",VLOOKUP(DSFA!N141,Risikoberechnung!$H$2:$I$6,2,FALSE))","v":""},{"$f":"IF(ISNA(VLOOKUP(DSFA!O141,Risikoberechnung!$H$2:$I$6,2,FALSE)),\"\",VLOOKUP(DSFA!O141,Risikoberechnung!$H$2:$I$6,2,FALSE))","v":""},{"$f":"DSFA!R141","v":"x"}]
[{"$f":"DSFA!A142","v":137},{"$f":"IF(ISNA(VLOOKUP(DSFA!G142,Risikoberechnung!$H$2:$I$5,2,FALSE)),\"\",VLOOKUP(DSFA!G142,Risikoberechnung!$H$2:$I$5,2,FALSE))","v":""},{"$f":"IF(ISNA(VLOOKUP(DSFA!H142,Risikoberechnung!$H$2:$I$6,2,FALSE)),\"0\",VLOOKUP(DSFA!H142,Risikoberechnung!$H$2:$I$6,2,FALSE))","v":"0"},{"$f":"DSFA!K142","v":"x"},{"$f":"IF(ISNA(VLOOKUP(DSFA!N142,Risikoberechnung!$H$2:$I$6,2,FALSE)),\"\",VLOOKUP(DSFA!N142,Risikoberechnung!$H$2:$I$6,2,FALSE))","v":""},{"$f":"IF(ISNA(VLOOKUP(DSFA!O142,Risikoberechnung!$H$2:$I$6,2,FALSE)),\"\",VLOOKUP(DSFA!O142,Risikoberechnung!$H$2:$I$6,2,FALSE))","v":""},{"$f":"DSFA!R142","v":"x"}]

{"sheet":"Risikomatrix2","index":3,"n_rows":19,"n_cols":6,"rows_kept":19,"hidden":true,"merged":[[0,1,1,1],[0,2,0,5],[2,0,4,0],[7,0,8,1],[7,2,7,5],[9,0,11,0],[14,0,15,1],[14,2,14,5],[16,0,18,0]]}
[null,{"$f":"DSFA!G2","v":"Riskoanalyse VOR Maßnahmenfestlegung"},"Schadenshöhe"]
[null,null,"Niedrig","Normal","Hoch","Sehr hoch"]
["Eintrittswahrscheinlichkeit","Hoch",{"$f":"SUMIF(DSFA!$J$6:$J$142,CONCATENATE($C$2,B3),DSFA!$V$6:$V$142)","v":0},{"$f":"SUMIF(DSFA!$J$6:$J$142,CONCATENATE($D$2,B3),DSFA!$V$6:$V$142)","v":0},{"$f":"SUMIF(DSFA!$J$6:$J$142,CONCATENATE($E$2,B3),DSFA!$V$6:$V$142)","v":0},{"$f":"SUMIF(DSFA!$J$6:$J$142,CONCATENATE($F$2,B3),DSFA!$V$6:$V$142)","v":0}]
[null,"Mittel",{"$f":"SUMIF(DSFA!$J$6:$J$142,CONCATENATE($C$2,B4),DSFA!$V$6:$V$142)","v":0},{"$f":"SUMIF(DSFA!$J$6:$J$142,CONCATENATE($D$2,B4),DSFA!$V$6:$V$142)","v":0},{"$f":"SUMIF(DSFA!$J$6:$J$142,CONCATENATE($E$2,B4),DSFA!$V$6:$V$142)","v":0},{"$f":"SUMIF(DSFA!$J$6:$J$142,CONCATENATE($F$2,B4),DSFA!$V$6:$V$142)","v":0}]
[null,"Niedrig",{"$f":"SUMIF(DSFA!$J$6:$J$142,CONCATENATE($C$2,B5),DSFA!$V$6:$V$142)","v":0},{"$f":"SUMIF(DSFA!$J$6:$J$142,CONCATENATE($D$2,B5),DSFA!$V$6:$V$142)","v":0},{"$f":"SUMIF(DSFA!$J$6:$J$142,CONCATENATE($E$2,B5),DSFA!$V$6:$V$142)","v":0},{"$f":"SUMIF(DSFA!$J$6:$J$142,CONCATENATE($F$2,B5),DSFA!$V$6:$V$142)","v":0}]
[]
[]
[{"$f":"DSFA!N2","v":"Riskoanalyse NACH Maßnahmenfestlegung"},null,"Schadenshöhe"]
[null,null,"Niedrig","Normal","Hoch","Sehr hoch"]
["Eintrittswahrscheinlichkeit","Hoch",{"$f":"SUMIF(DSFA!$Q$6:$Q$142,CONCATENATE($C$9,B10),DSFA!$V$6:$V$142)","v":0},{"$f":"SUMIF(DSFA!$Q$6:$Q$142,CONCATENATE($D$9,B10),DSFA!$V$6:$V$142)","v":0},{"$f":"SUMIF(DSFA!$Q$6:$Q$142,CONCATENATE($E$9,B10),DSFA!$V$6:$V$142)","v":0},{"$f":"SUMIF(DSFA!$Q$6:$Q$142,CONCATENATE($F$9,B10),DSFA!$V$6:$V$142)","v":0}]
[null,"Mittel",{"$f":"SUMIF(DSFA!$Q$6:$Q$142,CONCATENATE($C$9,B11),DSFA!$V$6:$V$142)","v":0},{"$f":"SUMIF(DSFA!$Q$6:$Q$142,CONCATENATE($D$9,B11),DSFA!$V$6:$V$142)","v":0},{"$f":"SUMIF(DSFA!$Q$6:$Q$142,CONCATENATE($E$9,B11),DSFA!$V$6:$V$142)","v":0},{"$f":"SUMIF(DSFA!$Q$6:$Q$142,CONCATENATE($F$9,B11),DSFA!$V$6:$V$142)","v":0}]
[null,"Niedrig",{"$f":"SUMIF(DSFA!$Q$6:$Q$142,CONCATENATE($C$9,B12),DSFA!$V$6:$V$142)","v":0},{"$f":"SUMIF(DSFA!$Q$6:$Q$142,CONCATENATE($D$9,B12),DSFA!$V$6:$V$142)","v":0},{"$f":"SUMIF(DSFA!$Q$6:$Q$142,CONCATENATE($E$9,B12),DSFA!$V$6:$V$142)","v":0},{"$f":"SUMIF(DSFA!$Q$6:$Q$142,CONCATENATE($F$9,B12),DSFA!$V$6:$V$142)","v":0}]
[]
[]
["VERÄNDERUNG",null,"Schadenshöhe"]
[null,null,"Niedrig","Normal","Hoch","Sehr hoch"]
["Eintrittswahrscheinlichkeit","Hoch",{"$f":"C10-C3","v":0},0,0,0]
[null,"Mittel",0,0,0,0]
[null,"Niedrig",0,0,0,0]

{"sheet":"Risikoanalyse","index":4,"n_rows":43,"n_cols":5,"rows_kept":43,"hidden":true}
[]
["Schadenshöhe","Risiken für den Betroffenen"]
["Niedrig","Betroffene werden nicht belangt oder könnten auf ein paar Unannehmlichkeiten treffe, welche sie problemlos bewältigen können (Zeitbedarf zur Wiedereingabe von Information, Verärgerung, Irritationen, leichte Verletzung, die nicht mehr als Erste Hilfe erfordert usw.)"]
["Normal","Betroffene können bedeutende Unbequemlichkeiten erfahren, welche sie trotz einiger weniger Schwierigkeiten bewältigen können (zusätzliche Kosten, Ablehnung beim Zugang zu kommerziellen Diensten, Angst, mangelndes Verständnis, Stress, kleine körperliche Gebrechen,Verletzungen oder Krankheiten, die mehr als Erste Hilfe erfordern)"]
["Hoch","Betroffene könnten bedeutende Konsequenzen erfahren, welche sie trotz ernsthafter Schwierigkeiten zu bewältigen in der Lage sein sollten (fehlgeleitete Zahlungsmittel, Verlust der Kreditwürdigkeit, Eigentumsschaden, Arbeitsplatzverlust, Vorladung, schwere, lähmende Verletzung oder Krankheit usw.)"]
["Sehr hoch","Betroffene könnten erhebliche oder sogar unumkehrbare Konsequenzen erfahren, welche sie nicht bewältigen könnten (finanz. Notlage, uneinbringl. Schulden oder Arbeitsunfähigkeit, langfristige psychologische oder physische Gebrechen, Tod usw.)"]
[]
[]
["Eintrittswahrscheinlichkeit"]
["Niedrig"]
["Mittel"]
["Hoch"]
[]
[]
["Ergebnis"]
["positiv"]
["negativ - neue/veränderte Maßnahmen festlegen"]
["negativ - neue/veränderte Maßnahmen nicht festlegen/umsetzen"]
[]
["Stellungnahme"]
["RA korrekt/Maßnahmen ausreichend"]
["RA korrekt/Maßnahmen unzureichend"]
["RA unkorrekt/Maßnahmen ausreichend"]
["RA unkorrekt/Maßnahmen unzureichend"]
[]
[]
["FarbMatrix"]
["Schaden","Eintritt"]
["Niedrig","Niedrig",1,{"$f":"CONCATENATE(\"\"\"\",A29,B29,\"\"\"\",\";\",C29,\";\")","v":"\"NiedrigNiedrig\";1;"},{"$f":"CONCATENATE(D29,D30,D31,)","v":"\"NiedrigNiedrig\";1;\"NiedrigMittel\";2;\"NiedrigHoch\";3;"}]
["Niedrig","Mittel",2,{"$f":"CONCATENATE(\"\"\"\",A30,B30,\"\"\"\",\";\",C30,\";\")","v":"\"NiedrigMittel\";2;"}]
["Niedrig","Hoch",3,{"$f":"CONCATENATE(\"\"\"\",A31,B31,\"\"\"\",\";\",C31,\";\")","v":"\"NiedrigHoch\";3;"}]
[]
["Normal","Niedrig",2,{"$f":"CONCATENATE(\"\"\"\",A33,B33,\"\"\"\",\";\",C33,\";\")","v":"\"NormalNiedrig\";2;"},{"$f":"CONCATENATE(D33,D34,D35,)","v":"\"NormalNiedrig\";2;\"NormalMittel\";3;\"NormalHoch\";4;"}]
["Normal","Mittel",3,{"$f":"CONCATENATE(\"\"\"\",A34,B34,\"\"\"\",\";\",C34,\";\")","v":"\"NormalMittel\";3;"}]
["Normal","Hoch",4,"\"NormalHoch\";4;"]
[]
["Hoch","Niedrig",4,{"$f":"CONCATENATE(\"\"\"\",A37,B37,\"\"\"\",\";\",C37,\";\")","v":"\"HochNiedrig\";4;"},{"$f":"CONCATENATE(D37,D38,D39,)","v":"\"HochNiedrig\";4;\"HochMittel\";5;\"HochHoch\";6;"}]
["Hoch","Mittel",5,{"$f":"CONCATENATE(\"\"\"\",A38,B38,\"\"\"\",\";\",C38,\";\")","v":"\"HochMittel\";5;"}]
["Hoch","Hoch",6,"\"HochHoch\";6;"]
[]
["Sehr hoch","Niedrig",5,{"$f":"CONCATENATE(\"\"\"\",A41,B41,\"\"\"\",\";\",C41,\";\")","v":"\"Sehr hochNiedrig\";5;"},{"$f":"CONCATENATE(D41,D42,D43,)","v":"\"Sehr hochNiedrig\";5;\"Sehr hochMittel\";6;\"Sehr hochHoch\";6;"}]
["Sehr hoch","Mittel",6,{"$f":"CONCATENATE(\"\"\"\",A42,B42,\"\"\"\",\";\",C42,\";\")","v":"\"Sehr hochMittel\";6;"}]
["Sehr hoch","Hoch",6,"\"Sehr hochHoch\";6;"]

{"sheet":"Risiken","index":5,"n_rows":31,"n_cols":1,"rows_kept":31,"hidden":true}
["Risiken"]
["Bitte auswählen"]
["Anderen erheblichen wirtschaftlichen oder gesellschaftlichen Nachteilen"]
["Arbeitsrechtlicher Kontext"]
["Auftauchen (negativer) Informationen (Informationsemergenz)"]
["Behandlung des Menschen als bloßes Objekt"]
["Bildung eines Persönlichkeitsprofils"]
["Bonitätsprüfungen, Forderungsmanagement"]
["Dauerhafte Verfügbarkeit (negativer) Informationen"]
["Diskriminierung"]
["Enttäuschung von Vertraulichkeitserwartungen"]
["Erhöhung individueller Verletzlichkeit für Straftaten"]
["Falsche Zuordnung von Daten"]
["Finanziellen Verlust"]
["Fremdbestimmung"]
["Gesellschaftlich-politische Risiken"]
["Identitätsbetrug"]
["Identitätsdiebstahl"]
["Informationsfehlerhaftigkeit"]
["Rufschädigung"]
["Schamgefühl und Ansehensverlust"]
["Selektivitätsschäden"]
["Systematische Verzerrung von Inhalten (Entkontextualisierung)"]
["Unbefugte Aufhebung der Pseudonymisierung"]
["Unbefugte Offenlegung personenbezogener Daten"]
["Unbefugter Zugang zu personenbezogenen Daten"]
["Veränderung personenbezogener Daten"]
["Verlust der Vertraulichkeit von dem Berufsgeheimnis unterliegenden personenbezogenen Daten"]
["Verlust personenbezogener Daten"]
["Werbung und Zielgruppenpräzisierung"]
["Wirtschaftliche Risiken"]

{"sheet":"Risikobeispiele","index":6,"n_rows":53,"n_cols":1,"rows_kept":53,"hidden":true}
["Risikobeispiele"]
["Bitte auswählen"]
["Abfangen kompromittierender Strahlung"]
["Abhören"]
["Abstreiten von Handlungen"]
["Anschlag"]
["Ausfall oder Störung der Stromversorgung"]
["Ausfall oder Störung von Dienstleistern"]
["Ausfall oder Störung von Kommunikationsnetzen"]
["Ausfall oder Störung von Versorgungsnetzen"]
["Ausfall von Geräten oder Systemen"]
["Ausspähen von Informationen/Spionage"]
["Datenverlust"]
["Diebstahl von Geräten, Datenträgern und Dokumenten"]
["Einspielen von Nachrichten"]
["Elektromagnetische Störstrahlung"]
["Falsche Auswahl eines Patienten in einem Informationssystem"]
["Falsches Einlesen der Krankenversichertenkarte"]
["Falsche Zuordnung einer ID zu einer Patienten"]
["Fehlerhafte Dokumentation/Dateneingabe"]
["Fehlerhafte Nutzung oder Administration von Geräten und Systemen"]
["Fehlfunktionen von Geräten oder Systemen"]
["Fehlplanung oder fehlende Anpassung"]
["Feuer"]
["Großereignisse im Umfeld"]
["Identitätsdiebstahl"]
["Informationen oder Produkte aus unzuverlässiger Quelle"]
["Integritätsverlust schützenswerter Informationen"]
["Katastrophen im Umfeld"]
["Manipulation von Hard- oder Software"]
["Manipulation von Informationen"]
["Missbrauch personenbezogener Daten"]
["Missbrauch von Berechtigungen"]
["Naturkatastrophen"]
["Nötigung, Erpressung oder Korruption"]
["Offenlegung schützenswerter Informationen"]
["Personenausfall"]
["Ressourcenmangel"]
["Sabotage"]
["Schädliche Seiteneffekte IT-gestützter Angriffe"]
["Schadprogramm"]
["Social Engineering"]
["Software-Schwachstellen oder -Fehler"]
["Unbefugtes Eindringen in IT-Systeme"]
["Unbefugtes Eindringen in Räumlichkeiten"]
["Unberechtigte Nutzung oder Administration von Geräten und Systemen"]
["Ungünstige klimatische Bedingungen"]
["Verhinderung von Diensten (Denial of Service)"]
["Verlust von Geräten, Datenträgern und Dokumenten"]
["Verschmutzung, Staub, Korrosion"]
["Verstoß gegen Gesetze oder Regelungen"]
["Wasser"]
["Zerstörung von Geräten oder Datenträgern"]

{"sheet":"Risikoquellen","index":7,"n_rows":43,"n_cols":1,"rows_kept":43,"hidden":true}
["Risikoquellen"]
["Bitte auswählen"]
["Auftragsverarbeiter"]
["Beschäftigter, Fahrlässigkeit"]
["Beschäftigter, Finanzieller Vorteil"]
["Beschäftigter, Spionage"]
["Beschäftigter, Übermüdung/Überlastung"]
["Beschäftigter, Vergeltung/Rache"]
["Beschäftigter, Vorsatz"]
["Beschäftigter, Weggang/Verlassen der Firma"]
["Hacker, Finanzieller Vorteil"]
["Hacker, Lust am „Spielen“"]
["Hacker, Wissensdurst"]
["Hardware, Modifikation"]
["Hardware, Schaden"]
["Hardware, Spionage"]
["Hardware, Überlastung"]
["Hardware, Ungewöhnlicher Gebrauch"]
["Hardware, Verlust"]
["Hardware, Verlust der Festplatte"]
["Journalisten, Informationen für Story"]
["Mitbewerber, Wettbewerbsvorteil"]
["Netzwerkverbindung, Modifikation"]
["Netzwerkverbindung, Spionage"]
["Netzwerkverbindung, Störung"]
["Netzwerkverbindung, Überlastung"]
["Organisierte Kriminalität"]
["Papierdokumente, Modifikation"]
["Papierdokumente, Schaden"]
["Papierdokumente, Verlust"]
["Polizei, Gesetzlicher Auftrag"]
["Postversand, Modifikation"]
["Postversand, Spionage"]
["Postversand, Verlust"]
["Software, Modifikation"]
["Software, Schaden"]
["Software, Spionage"]
["Software, Ungewöhnlicher Gebrauch"]
["Software, Verlust"]
["Staatsanwaltschaft, Gesetzlicher Auftrag"]
["Technologiewechsel"]
["Unbefugte Verarbeitung"]
["Whistleblower"]

{"sheet":"Risikobewältigung","index":8,"n_rows":7,"n_cols":1,"rows_kept":7,"hidden":true}
["R-Bewältigung"]
["Bitte auswählen"]
["Risikovermeidung"]
["Risikominimierung"]
["Risikohandhabung"]
["Risikoübertragung"]
["mehrere"]

{"sheet":"Maßnahmen","index":9,"n_rows":38,"n_cols":1,"rows_kept":38,"hidden":true}
["Maßnahmen"]
["Bitte auswählen"]
["Komplexe Darstellung erforderlich, externes Dokument, zu finden: (bitte Angabe Speicherort)"]
["Pseudonymisierung / Nichtangabe"]
["Pseudonymisierung / Maskierung / Ersetzung"]
["Pseudonymisierung / Mischung / Shuffeling"]
["Pseudonymisierung / Varianzmethode"]
["Pseudonymisierung / Weitere Maßnahme"]
["Verschlüsselung / Blockchiffren"]
["Verschlüsselung / Stromchiffren"]
["Verschlüsselung / Hash-Funktionen"]
["Verschlüsselung / SALT-Angaben"]
["Verschlüsselung / Weitere Maßnahme"]
["Vertraulichkeit / Zutrittskontrolle"]
["Vertraulichkeit / Zugangskontrolle"]
["Vertraulichkeit / Zugriffskontrolle"]
["Vertraulichkeit / Weitergabekontrolle"]
["Vertraulichkeit / Verarbeitungskontrolle"]
["Vertraulichkeit / Trennungskontrolle"]
["Vertraulichkeit / Zweckbindung"]
["Vertraulichkeit / Weitere Maßnahme"]
["Integrität / Eingabekontrolle"]
["Integrität / Auftragskontrolle"]
["Integrität / Weitere Maßnahme"]
["Verfügbarkeit / Backupkonzept"]
["Verfügbarkeit / Recoverykonzept"]
["Verfügbarkeit / Weitere Maßnahme"]
["Belastbarkeit / Ausfallsicherheit / Organisatorische Anforderungen"]
["Belastbarkeit / Ausfallsicherheit / Technische Maßnahmen"]
["Belastbarkeit / Ausfallsicherheit / Server- und Client-Absicherung"]
["Belastbarkeit / Ausfallsicherheit / Weitere Maßnahme"]
["Auditierung Maßnahmen / Zertifizierung"]
["Auditierung Maßnahmen / Auditplan"]
["Auditierung Maßnahmen / Auditzyklen"]
["Auditierung Maßnahmen / Weitere Maßnahme"]
["Schulung / Informationssystem"]
["Schulung / Awareness"]
["Schulung / Datenschutz"]

{"sheet":"Ergebnis","index":10,"n_rows":5,"n_cols":3,"rows_kept":5,"hidden":true}
["Ergebnis"]
["DSFA",null,"Maßnahme"]
["Bitte auswählen",null,"Bitte auswählen"]
["Aufsichtsbehörde konsultieren",null,"Restrisiko akzeptabel"]
["Verarbeitung statthaft",null,"Weitere Maßnahmen erforderlich"]

{"sheet":"Risikoberechnung","index":11,"n_rows":28,"n_cols":9,"rows_kept":28,"hidden":true}
["Risikobewertung"]
["NiedrigNiedrig",1,null,1,"Kein Risiko",{"$f":"1*0.5","v":0.5},null,"Niedrig",0.5]
["NiedrigMittel",2,null,2,"Voraussichtlich kein Risiko",1.5,null,"Normal",1.5]
["NiedrigHoch",3,null,3,"(Normales) Risiko",2.5,null,"Hoch",2.5]
["NormalNiedrig",2,null,4,"Erhebliches Risiko",3.5,null,"Sehr hoch",3.5]
["NormalMittel",3,null,5,"Hohes Risiko",4.5,null,"Mittel",1.5]
["NormalHoch",4,null,6,"untragbares Risiko",5.5]
["HochNiedrig",4]
["HochMittel",5]
["HochHoch",6]
["Sehr hochNiedrig",5]
["Sehr hochMittel",6]
["Sehr hochHoch",6]
[]
[]
[]
["Sehr hochHoch",6]
["HochHoch",6]
["NormalHoch",4]
["NiedrigHoch",3]
["Sehr hochMittel",6]
["HochMittel",5]
["NormalMittel",3]
["NiedrigMittel",2]
["Sehr hochNiedrig",5]
["HochNiedrig",4]
["NormalNiedrig",2]
["NiedrigNiedrig",1]

{"sheet":"Ausfüllhilfen","index":12,"n_rows":5,"n_cols":3,"rows_kept":5,"hidden":true}
["Ja/Nein-Felder",null,"Risikoursprung"]
["Nein",null,"Allgemein"]
["Ja",null,"Aufnahme"]
[null,null,"Behandlung"]
[null,null,"Abrechnung"]